Workbook

Sheet Cover
A1: =RIGHT(CELL("filename", $A$1), LEN(CELL("filename", $A$1)) - SEARCH("]", CELL("filename", $A$1))) -> Cover
B3: Model name: | C3: Cost sharing and total costs model
B4: Version number: | C4: 3d
B5: Filename: | C5: =MID(CELL("filename"), FIND("[", CELL("filename"), 1) + 1, FIND("]", CELL("filename"), 1) - FIND("[", CELL("filename"), 1) - 1) -> PR19FM008 Cost_sharing__total_costs v3d_SWB_FD_signedoff.xlsm
B6: Date: | C6: 2019-11-28
B15: Summary of model: | C15: This model is used to apply cost sharing to expenditure for water resources, water network and wastewater network.
C16: Profiling is applied in the model with using the assumption from the PR19 opex/capex split model.
C17: Adjustments for operating leases are applied as they are not taken into account in the cost assessment models
B19: Error check status | C19: =Check!C$8 -> 0
B20: Track changes status | C20: =Check!$F$20 -> 36
B23: Instructions
B24: Track | C24: To store Track in the Track sheet, follow the steps mentioned below:
B26: Using Macro | C26: Please follow the steps mentioned below for storing Track using a macro:
B28: Step 1 - | C28: Go to the Track sheet and press "Store Outputs" button to save the track for new case
C29: =Track!$E$3 -> Store Track
B31: Step 2 - | C31: A dialog box "Enter the label for the new track column" will appear, type the new track label (For ex: version name like "01A"), the label will appear in row 5.
B33: Step 3 - | C33: A new dialog box "Enter the comment for the new track" will appear, write the brief description of the change done in the model. The description will be updated in row 62.
B35: Step 4 - | C35: Press enter, a new track column will appear before the last stored track:
B37: Step 5 - | C37: Review the difference between stored cases and active case (col H) by selecting the stored case in cell H5.
C38: =Track!$F$5 -> Nil inputs
B40: Manual Steps Macro | C40: Please follow the steps mentioned below for storing Track manually:
B42: Step 1 - | C42: Go to last stored column of 'Track' sheet
C43: Select the column by pressing Ctrl + Spacebar and Copy (Ctrl + C). Then insert a new column after the last stored column by pressing Alt, I, E
B45: Step 2 - | C45: Select the newly inserted column (Ctrl + Spacebar) and delete the previously stored values from this column by pressing Delete button
B47: Step 3 - | C47: Go to active track column (H column)
C48: =Track!$F$5 -> Nil inputs
C49: Select the range from H6 till 'do not delete row - range end' row and Copy (Ctrl + C)
B51: Step 4 - | C51: Paste the selected values (Alt E, S, V) in newly inserted column
B53: Step 5 - | C53: Update 'New track name' in row 5 of newly inserted column. Then select 'New track name' from the dropdown list present in H5.
B55: Step 6 - | C55: Review the difference between stored cases and active case (col H) by selecting the stored case in cell H5.
C56: =Track!$F$5 -> Nil inputs

Sheet Adjustments log
B2: Adjustments log
B5: Run
B6: Type
B7: Stage
B10: # | C10: Description | D10: Location | E10: Link

Sheet F_Inputs
C1: Pr19CostSharIn5
A2: Acronym | B2: Reference | C2: Item description | D2: Unit | E2: Model | F2: 2020-21 | G2: 2021-22 | H2: 2022-23 | I2: 2023-24 | J2: 2024-25
A4: SWB | B4: C_WRTOTEXFM_CS_PR19CA004 | C4: Final cost allowance for cost sharing for Water Resources | D4: £m | E4: Price Review 2019 | F4: 14.79049004 | G4: 14.79049004 | H4: 14.79049004 | I4: 14.79049004 | J4: 14.79049004
A5: SWB | B5: C_WNTOTEXFM_CS_PR19CA004 | C5: Final cost allowance for cost sharing for Network Plus Water | D5: £m | E5: Price Review 2019 | F5: 170.8446042 | G5: 170.8446042 | H5: 170.8446042 | I5: 170.8446042 | J5: 170.8446042
A6: SWB | B6: PR19_WR_CAPEX_CS | C6: Water resources company view of capex - for cost sharing model | D6: £m | E6: Price Review 2019 | F6: 5.483 | G6: 6.041 | H6: 4.95 | I6: 3.775 | J6: 3.465
A7: SWB | B7: PR19_WN_CAPEX_CS | C7: Water network company view of capex - for cost sharing model | D7: £m | E7: Price Review 2019 | F7: 68.813 | G7: 83.796 | H7: 103.568 | I7: 95.089 | J7: 89.401
A8: SWB | B8: PR19_WR_OPEX_CS | C8: Water resources company view of opex - for cost sharing model | D8: £m | E8: Price Review 2019 | F8: 11.085 | G8: 11.149 | H8: 11.166 | I8: 11.199 | J8: 11.242
A9: SWB | B9: PR19_WN_OPEX_CS | C9: Water network company view of opex - for cost sharing model | D9: £m | E9: Price Review 2019 | F9: 79.279 | G9: 79.606 | H9: 79.357 | I9: 78.55 | J9: 78.241
A10: SWB | B10: C_WWNTOTEXFM_CS_PR19CA008 | C10: Efficient totex for cost sharing network plus wastewater £m | D10: £m | E10: Price Review 2019 | F10: 166.40495 | G10: 166.40495 | H10: 166.40495 | I10: 166.40495 | J10: 166.40495
A11: SWB | B11: PR19_WWN_OPEX_CS | C11: Wastewater network company view of opex - for cost sharing model | D11: £m | E11: Price Review 2019 | F11: 80.499 | G11: 80.118 | H11: 79.535 | I11: 77.992 | J11: 77.099
A12: SWB | B12: PR19_BR_OPEX_CS | C12: Bio resources company view of opex - for cost sharing model | D12: £m | E12: Price Review 2019 | F12: 14.304 | G12: 14.456 | H12: 14.433 | I12: 14.448 | J12: 14.513
A13: SWB | B13: PR19_WWN_CAPEX_CS | C13: Wastewater network company view of capex - for cost sharing model | D13: £m | E13: Price Review 2019 | F13: 111.445 | G13: 108.18 | H13: 92.908 | I13: 93.127 | J13: 81.194
A14: SWB | B14: PR19_BR_CAPEX_CS | C14: Bio resources company view of capex - for cost sharing model | D14: £m | E14: Price Review 2019 | F14: 5.436 | G14: 5.687 | H14: 6.375 | I14: 6.03 | J14: 5.441
A15: SWB | B15: C_BRTOTEXFM_CS_PR19CA008 | C15: Efficient totex for cost sharing bioresources £m | D15: £m | E15: Price Review 2019 | F15: 18.57531774 | G15: 18.57531774 | H15: 18.57531774 | I15: 18.57531774 | J15: 18.57531774
A16: SWB | B16: C_DUMMYTOTEXFM_CS_PR19CA008 | C16: Final cost allowance for cost sharing for WWW Dummy £m | D16: £m | E16: Price Review 2019 | F16: 0 | G16: 0 | H16: 0 | I16: 0 | J16: 0
A17: SWB | B17: PR19_DMMY_OPEX_CS | C17: Dummy company view of opex - for cost sharing model | D17: £m | E17: Price Review 2019 | F17: 0 | G17: 0 | H17: 0 | I17: 0 | J17: 0
A18: SWB | B18: PR19_DMMY_CAPEX_CS | C18: Dummy company view of capex - for cost sharing model | D18: £m | E18: Price Review 2019 | F18: 0 | G18: 0 | H18: 0 | I18: 0 | J18: 0
A19: SWB | B19: C_WROTHER_EXCPDR_PR19CA004 | C19: WR - Other costs not subject to cost sharing excl PDR | D19: £m | E19: Price Review 2019 | F19: 0.1965 | G19: 0.1965 | H19: 0.1965 | I19: 0.1965 | J19: 0.1965
A20: SWB | B20: C_WNOTHER_EXCPDR_PR19CA004 | C20: WN - Other costs not subject to cost sharing excl PDR | D20: £m | E20: Price Review 2019 | F20: 1.612777966 | G20: 1.612777966 | H20: 1.612777966 | I20: 1.612777966 | J20: 1.612777966
A21: SWB | B21: C_WWNOTHER_EXCPDR_PR19CA008 | C21: WWN - Other costs not subject to cost sharing excl PDR | D21: £m | E21: Price Review 2019 | F21: 1.555849847 | G21: 1.555849847 | H21: 1.555849847 | I21: 1.555849847 | J21: 1.555849847
A22: SWB | B22: C_BROTHER_EXCPDR_PR19CA008 | C22: BR - Other costs not subject to cost sharing excl PDR | D22: £m | E22: Price Review 2019 | F22: 0 | G22: 0 | H22: 0 | I22: 0 | J22: 0
A23: SWB | B23: C_DMYOTHER_EXCPDR_PR19CA008 | C23: DMMY - Other costs not subject to cost sharing excl PDR | D23: £m | E23: Price Review 2019
A24: SWB | B24: C_OP_LEASE_ADJ_WR_PR19 | C24: Opex lease adjustment - WR - Real | D24: £m | E24: Price Review 2019 | F24: 0 | G24: 0 | H24: 0 | I24: 0 | J24: 0
A25: SWB | B25: C_OP_LEASE_ADJ_WN_PR19 | C25: Opex lease adjustment - WN - Real | D25: £m | E25: Price Review 2019 | F25: -0.7660553323 | G25: -0.699247295 | H25: -0.654095085 | I25: -0.6226027098 | J25: -0.5906495937
A26: SWB | B26: C_OP_LEASE_ADJ_WWN_PR19 | C26: Opex lease adjustment - WWN - Real | D26: £m | E26: Price Review 2019 | F26: -0.7572613297 | G26: -0.693554644 | H26: -0.6494887816 | I26: -0.6181299892 | J26: -0.588912389
A27: SWB | B27: C_OP_LEASE_ADJ_BR_PR19 | C27: Opex lease adjustment - BR - Real | D27: £m | E27: Price Review 2019 | F27: 0 | G27: 0 | H27: 0 | I27: 0 | J27: 0
A28: SWB | B28: C_OP_LEASE_ADJ_DMMY_PR19 | C28: Opex lease adjustment - DMMY - Real | D28: £m | E28: Price Review 2019 | F28: 0 | G28: 0 | H28: 0 | I28: 0 | J28: 0
A29: SWB | B29: C_CAPEX_SPLIT_WR_PR19CA091 | C29: Capex split for cost sharing - WR | D29: % | E29: Price Review 2019 | F29: 0.06020690009 | G29: 0.06760834879 | H29: 0.05608806687 | I29: 0.04309109018 | J29: 0.03512741034
A30: SWB | B30: C_OPEX_SPLIT_WR_PR19CA091 | C30: Opex split for cost sharing - WR | D30: % | E30: Price Review 2019 | F30: 0.1465055326 | G30: 0.1473269078 | H30: 0.1475512384 | I30: 0.1479635403 | J30: 0.1485309646
A31: SWB | B31: C_CAPEX_SPLIT_WN_PR19CA091 | C31: Capex split for cost sharing - WN | D31: % | E31: Price Review 2019 | F31: 0.07890622131 | G31: 0.09444605204 | H31: 0.1133272399 | I31: 0.1055474301 | J31: 0.1005743937
A32: SWB | B32: C_OPEX_SPLIT_WN_PR19CA091 | C32: Opex split for cost sharing - WN | D32: % | E32: Price Review 2019 | F32: 0.1023604171 | G32: 0.1025220505 | H32: 0.101673549 | I32: 0.1005670315 | J32: 0.1000756148
A33: SWB | B33: C_CAPEX_SPLIT_WWN_PR19CA091 | C33: Capex split for cost sharing - WWN | D33: % | E33: Price Review 2019 | F33: 0.122189893 | G33: 0.1190193078 | H33: 0.102488078 | I33: 0.1030629666 | J33: 0.0909980551
A34: SWB | B34: C_OPEX_SPLIT_WWN_PR19CA091 | C34: Opex split for cost sharing - WWN | D34: % | E34: Price Review 2019 | F34: 0.0941106126 | G34: 0.09369806934 | H34: 0.09301876501 | I34: 0.09122397817 | J34: 0.0901902743
A35: SWB | B35: C_CAPEX_SPLIT_BR_PR19CA091 | C35: Capex split for cost sharing - BR | D35: % | E35: Price Review 2019 | F35: 0.0480257258 | G35: 0.04921491495 | H35: 0.05247415759 | I35: 0.05083766442 | J35: 0.04805276763
A36: SWB | B36: C_OPEX_SPLIT_BR_PR19CA091 | C36: Opex split for cost sharing - BR | D36: % | E36: Price Review 2019 | F36: 0.1489578028 | G36: 0.1505415171 | H36: 0.1503018761 | I36: 0.1504581637 | J36: 0.1511354099
A37: SWB | B37: C_CAPEX_SPLIT_DMMY_PR19CA091 | C37: Capex split for cost sharing - DMMY | D37: % | E37: Price Review 2019 | F37: 0 | G37: 0 | H37: 0 | I37: 0 | J37: 0
A38: SWB | B38: C_OPEX_SPLIT_DMMY_PR19CA091 | C38: Opex split for cost sharing - DMMY | D38: % | E38: Price Review 2019 | F38: 0 | G38: 0 | H38: 0 | I38: 0 | J38: 0

Sheet InpOverride
A1: =RIGHT(CELL("filename", $A$1), LEN(CELL("filename", $A$1)) - SEARCH("]", CELL("filename", $A$1))) -> InpOverride
E2: =Time!E$22 -> Model Period BEG | J2: =Time!J$22 -> 2019-04-01 | K2: =Time!K$22 -> 2020-04-01 | L2: =Time!L$22 -> 2021-04-01 | M2: =Time!M$22 -> 2022-04-01 | N2: =Time!N$22 -> 2023-04-01 | O2: =Time!O$22 -> 2024-04-01
E3: =Time!E$23 -> Model Period END | F3: =Check!F$8 -> 0 | G3: Error chks | J3: =Time!J$23 -> 2020-03-31 | K3: =Time!K$23 -> 2021-03-31 | L3: =Time!L$23 -> 2022-03-31 | M3: =Time!M$23 -> 2023-03-31 | N3: =Time!N$23 -> 2024-03-31 | O3: =Time!O$23 -> 2025-03-31
E4: =Time!E$59 -> Pre Forecast vs Forecast | F4: =Check!$F$20 -> 36 | G4: Track checks | J4: =Time!J$59 -> Pre Fcst | K4: =Time!K$59 -> Forecast | L4: =Time!L$59 -> Forecast | M4: =Time!M$59 -> Forecast | N4: =Time!N$59 -> Forecast | O4: =Time!O$59 -> Forecast
E5: =Time!E$101 -> Financial Year Ending | J5: =Time!J$101 -> 2020 | K5: =Time!K$101 -> 2021 | L5: =Time!L$101 -> 2022 | M5: =Time!M$101 -> 2023 | N5: =Time!N$101 -> 2024 | O5: =Time!O$101 -> 2025
E6: =Time!E$11 -> Model column counter | F6: Constant | G6: Unit | H6: Total | J6: =Time!J$11 -> 1 | K6: =Time!K$11 -> 2 | L6: =Time!L$11 -> 3 | M6: =Time!M$11 -> 4 | N6: =Time!N$11 -> 5 | O6: =Time!O$11 -> 6
A8: TIME
E10: First date of time ruler | F10: 2019-04-01 | G10: date
E12: Last Pre Forecast Date | F12: 2020-03-31 | G12: date
E14: Acquisition date (midnight) | F14: 2020-03-31 | G14: date
E15: Length of forecast period | F15: 5 | G15: years
E16: Last forecast date | F16: =DATE(YEAR(F14)+F15,MONTH(F14),DAY(F14)) -> 2025-03-31 | G16: date
E19: Operation Start Date (midnight) | F19: 2021-03-31 | G19: date
E20: Operation Finish Date (midnight) | F20: 2025-03-31 | G20: date
E21: First Modelling Column Financial Year Number | F21: 2020 | G21: year
E22: Financial Year End Month Number | F22: 3 | G22: month #
A25: TOTEX INPUTS
C27: Water Resources
E28: =F_Inputs!C$4 -> Final cost allowance for cost sharing for Water Resources | G28: =F_Inputs!D$4 -> £m | H28: =SUM(J28:P28) -> 73.95245022 | K28: =F_Inputs!F$4 -> 14.79049004 | L28: =F_Inputs!G$4 -> 14.79049004 | M28: =F_Inputs!H$4 -> 14.79049004 | N28: =F_Inputs!I$4 -> 14.79049004 | O28: =F_Inputs!J$4 -> 14.79049004
E30: =F_Inputs!C$6 -> Water resources company view of capex - for cost sharing model | G30: =F_Inputs!D$6 -> £m | H30: =SUM(J30:P30) -> 23.714 | K30: =F_Inputs!F$6 -> 5.483 | L30: =F_Inputs!G$6 -> 6.041 | M30: =F_Inputs!H$6 -> 4.95 | N30: =F_Inputs!I$6 -> 3.775 | O30: =F_Inputs!J$6 -> 3.465
E31: =F_Inputs!C$8 -> Water resources company view of opex - for cost sharing model | G31: =F_Inputs!D$8 -> £m | H31: 55.841 | K31: =F_Inputs!F$8 -> 11.085 | L31: =F_Inputs!G$8 -> 11.149 | M31: =F_Inputs!H$8 -> 11.166 | N31: =F_Inputs!I$8 -> 11.199 | O31: =F_Inputs!J$8 -> 11.242
E32: =F_Inputs!C$19 -> WR - Other costs not subject to cost sharing excl PDR | G32: =F_Inputs!D$19 -> £m | H32: =SUM(J32:P32) -> 0.9825 | K32: =F_Inputs!F$19 -> 0.1965 | L32: =F_Inputs!G$19 -> 0.1965 | M32: =F_Inputs!H$19 -> 0.1965 | N32: =F_Inputs!I$19 -> 0.1965 | O32: =F_Inputs!J$19 -> 0.1965
E34: WR operating lease adjustment | G34: £m | H34: =SUM(K34:O34) -> 0 | K34: =F_Inputs!F24 -> 0 | L34: =F_Inputs!G24 -> 0 | M34: =F_Inputs!H24 -> 0 | N34: =F_Inputs!I24 -> 0 | O34: =F_Inputs!J24 -> 0
C36: Water Network
E37: =F_Inputs!C$5 -> Final cost allowance for cost sharing for Network Plus Water | G37: =F_Inputs!D$5 -> £m | H37: 854.2230211 | K37: =F_Inputs!F$5 -> 170.8446042 | L37: =F_Inputs!G$5 -> 170.8446042 | M37: =F_Inputs!H$5 -> 170.8446042 | N37: =F_Inputs!I$5 -> 170.8446042 | O37: =F_Inputs!J$5 -> 170.8446042
E39: =F_Inputs!C$7 -> Water network company view of capex - for cost sharing model | G39: =F_Inputs!D$7 -> £m | H39: 440.667 | K39: =F_Inputs!F$7 -> 68.813 | L39: =F_Inputs!G$7 -> 83.796 | M39: =F_Inputs!H$7 -> 103.568 | N39: =F_Inputs!I$7 -> 95.089 | O39: =F_Inputs!J$7 -> 89.401
E40: =F_Inputs!C$9 -> Water network company view of opex - for cost sharing model | G40: =F_Inputs!D$9 -> £m | H40: 395.033 | K40: =F_Inputs!F$9 -> 79.279 | L40: =F_Inputs!G$9 -> 79.606 | M40: =F_Inputs!H$9 -> 79.357 | N40: =F_Inputs!I$9 -> 78.55 | O40: =F_Inputs!J$9 -> 78.241
E41: =F_Inputs!C$20 -> WN - Other costs not subject to cost sharing excl PDR | G41: =F_Inputs!D$20 -> £m | H41: 8.063889828 | K41: =F_Inputs!F$20 -> 1.612777966 | L41: =F_Inputs!G$20 -> 1.612777966 | M41: =F_Inputs!H$20 -> 1.612777966 | N41: =F_Inputs!I$20 -> 1.612777966 | O41: =F_Inputs!J$20 -> 1.612777966
E43: WN operating lease adjustment | G43: £m | H43: =SUM(K43:O43) -> -3.332650016 | K43: =F_Inputs!F25 -> -0.7660553323 | L43: =F_Inputs!G25 -> -0.699247295 | M43: =F_Inputs!H25 -> -0.654095085 | N43: =F_Inputs!I25 -> -0.6226027098 | O43: =F_Inputs!J25 -> -0.5906495937
C45: Water
E46: =F_Inputs!C6 -> Water resources company view of capex - for cost sharing model | G46: =F_Inputs!D6 -> £m | H46: 23.714 | K46: =F_Inputs!F6 -> 5.483 | L46: =F_Inputs!G6 -> 6.041 | M46: =F_Inputs!H6 -> 4.95 | N46: =F_Inputs!I6 -> 3.775 | O46: =F_Inputs!J6 -> 3.465
E47: =F_Inputs!C7 -> Water network company view of capex - for cost sharing model | G47: =F_Inputs!D7 -> £m | H47: 440.667 | K47: =F_Inputs!F7 -> 68.813 | L47: =F_Inputs!G7 -> 83.796 | M47: =F_Inputs!H7 -> 103.568 | N47: =F_Inputs!I7 -> 95.089 | O47: =F_Inputs!J7 -> 89.401
E48: =F_Inputs!C8 -> Water resources company view of opex - for cost sharing model | G48: =F_Inputs!D8 -> £m | H48: 55.841 | K48: =F_Inputs!F8 -> 11.085 | L48: =F_Inputs!G8 -> 11.149 | M48: =F_Inputs!H8 -> 11.166 | N48: =F_Inputs!I8 -> 11.199 | O48: =F_Inputs!J8 -> 11.242
E49: =F_Inputs!C9 -> Water network company view of opex - for cost sharing model | G49: =F_Inputs!D9 -> £m | H49: 395.033 | K49: =F_Inputs!F9 -> 79.279 | L49: =F_Inputs!G9 -> 79.606 | M49: =F_Inputs!H9 -> 79.357 | N49: =F_Inputs!I9 -> 78.55 | O49: =F_Inputs!J9 -> 78.241
E50: Total gross capital expenditure - Water | F50: =SUM(H46:H49) -> 915.255
C52: Wastewater Network
E53: =F_Inputs!C$10 -> Efficient totex for cost sharing network plus wastewater £m | G53: =F_Inputs!D$10 -> £m | H53: 832.0247498 | K53: =F_Inputs!F$10 -> 166.40495 | L53: =F_Inputs!G$10 -> 166.40495 | M53: =F_Inputs!H$10 -> 166.40495 | N53: =F_Inputs!I$10 -> 166.40495 | O53: =F_Inputs!J$10 -> 166.40495
E55: =F_Inputs!C$13 -> Wastewater network company view of capex - for cost sharing model | G55: =F_Inputs!D$13 -> £m | H55: 486.854 | K55: =F_Inputs!F$13 -> 111.445 | L55: =F_Inputs!G$13 -> 108.18 | M55: =F_Inputs!H$13 -> 92.908 | N55: =F_Inputs!I$13 -> 93.127 | O55: =F_Inputs!J$13 -> 81.194
E56: =F_Inputs!C$11 -> Wastewater network company view of opex - for cost sharing model | G56: =F_Inputs!D$11 -> £m | H56: 395.243 | K56: =F_Inputs!F$11 -> 80.499 | L56: =F_Inputs!G$11 -> 80.118 | M56: =F_Inputs!H$11 -> 79.535 | N56: =F_Inputs!I$11 -> 77.992 | O56: =F_Inputs!J$11 -> 77.099
E57: =F_Inputs!C$21 -> WWN - Other costs not subject to cost sharing excl PDR | G57: =F_Inputs!D$21 -> £m | H57: 7.779249234 | K57: =F_Inputs!F$21 -> 1.555849847 | L57: =F_Inputs!G$21 -> 1.555849847 | M57: =F_Inputs!H$21 -> 1.555849847 | N57: =F_Inputs!I$21 -> 1.555849847 | O57: =F_Inputs!J$21 -> 1.555849847
E59: WWN operating lease adjustment | G59: £m | H59: =SUM(K59:O59) -> -3.307347133 | K59: =F_Inputs!F26 -> -0.7572613297 | L59: =F_Inputs!G26 -> -0.693554644 | M59: =F_Inputs!H26 -> -0.6494887816 | N59: =F_Inputs!I26 -> -0.6181299892 | O59: =F_Inputs!J26 -> -0.588912389
C62: Bioresources
E63: =F_Inputs!C$15 -> Efficient totex for cost sharing bioresources £m | G63: =F_Inputs!D$15 -> £m | H63: 92.87658869 | K63: =F_Inputs!F$15 -> 18.57531774 | L63: =F_Inputs!G$15 -> 18.57531774 | M63: =F_Inputs!H$15 -> 18.57531774 | N63: =F_Inputs!I$15 -> 18.57531774 | O63: =F_Inputs!J$15 -> 18.57531774
E65: =F_Inputs!C$14 -> Bio resources company view of capex - for cost sharing model | G65: =F_Inputs!D$14 -> £m | H65: 28.969 | K65: =F_Inputs!F$14 -> 5.436 | L65: =F_Inputs!G$14 -> 5.687 | M65: =F_Inputs!H$14 -> 6.375 | N65: =F_Inputs!I$14 -> 6.03 | O65: =F_Inputs!J$14 -> 5.441
E66: =F_Inputs!C$12 -> Bio resources company view of opex - for cost sharing model | G66: =F_Inputs!D$12 -> £m | H66: 72.154 | K66: =F_Inputs!F$12 -> 14.304 | L66: =F_Inputs!G$12 -> 14.456 | M66: =F_Inputs!H$12 -> 14.433 | N66: =F_Inputs!I$12 -> 14.448 | O66: =F_Inputs!J$12 -> 14.513
E67: =F_Inputs!C$22 -> BR - Other costs not subject to cost sharing excl PDR | G67: =F_Inputs!D$22 -> £m | H67: 0 | K67: =F_Inputs!F$22 -> 0 | L67: =F_Inputs!G$22 -> 0 | M67: =F_Inputs!H$22 -> 0 | N67: =F_Inputs!I$22 -> 0 | O67: =F_Inputs!J$22 -> 0
E69: BR operating lease adjustment | G69: £m | H69: =SUM(K69:O69) -> 0 | K69: =F_Inputs!F27 -> 0 | L69: =F_Inputs!G27 -> 0 | M69: =F_Inputs!H27 -> 0 | N69: =F_Inputs!I27 -> 0 | O69: =F_Inputs!J27 -> 0
C72: Dummy
E73: =F_Inputs!C$16 -> Final cost allowance for cost sharing for WWW Dummy £m | G73: =F_Inputs!D$16 -> £m | H73: =SUM(J73:P73) -> 0 | K73: =F_Inputs!F$16 -> 0 | L73: =F_Inputs!G$16 -> 0 | M73: =F_Inputs!H$16 -> 0 | N73: =F_Inputs!I$16 -> 0 | O73: =F_Inputs!J$16 -> 0
E75: =F_Inputs!C$17 -> Dummy company view of opex - for cost sharing model | G75: =F_Inputs!D$17 -> £m | H75: 0 | K75: =F_Inputs!F$17 -> 0 | L75: =F_Inputs!G$17 -> 0 | M75: =F_Inputs!H$17 -> 0 | N75: =F_Inputs!I$17 -> 0 | O75: =F_Inputs!J$17 -> 0
E76: =F_Inputs!C$18 -> Dummy company view of capex - for cost sharing model | G76: =F_Inputs!D$18 -> £m | H76: 0 | K76: =F_Inputs!F$18 -> 0 | L76: =F_Inputs!G$18 -> 0 | M76: =F_Inputs!H$18 -> 0 | N76: =F_Inputs!I$18 -> 0 | O76: =F_Inputs!J$18 -> 0
E77: =F_Inputs!C$23 -> DMMY - Other costs not subject to cost sharing excl PDR | G77: =F_Inputs!D$23 -> £m | H77: 0 | K77: =F_Inputs!F$23 -> 0 | L77: =F_Inputs!G$23 -> 0 | M77: =F_Inputs!H$23 -> 0 | N77: =F_Inputs!I$23 -> 0 | O77: =F_Inputs!J$23 -> 0
E79: DMMY operating lease adjustment | G79: £m | H79: =SUM(K79:O79) -> 0 | K79: =F_Inputs!F28 -> 0 | L79: =F_Inputs!G28 -> 0 | M79: =F_Inputs!H28 -> 0 | N79: =F_Inputs!I28 -> 0 | O79: =F_Inputs!J28 -> 0
A82: TOTAL COST ALLOWANCE INCLUDING EX-ANTE COST SHARING - OVERRIDES
E84: Cost allowance override switch - Water | F84: 3 | G84: 1 = model calculated, 2 = Override, 3 = Off
E86: Water resources - total cost allowance including ex-ante cost sharing - Override | G86: £m
E88: Water network - total cost allowance including ex-ante cost sharing - Override | G88: £m
E90: Cost allowance override switch - Waste | F90: 3 | G90: 1 = model calculated, 2 = Override, 3 = Off
E92: Wastewater network - total cost allowance including ex-ante cost sharing - Override | G92: £m
A95: TOTEX PROFILING
B97: TOTEX PROFILING INPUTS
D99: Water Resources
E100: Capex profile - WR | G100: % | H100: =SUM(I100:P100) -> 0.2621218163 | J100: 0 | K100: =F_Inputs!F29 -> 0.06020690009 | L100: =F_Inputs!G29 -> 0.06760834879 | M100: =F_Inputs!H29 -> 0.05608806687 | N100: =F_Inputs!I29 -> 0.04309109018 | O100: =F_Inputs!J29 -> 0.03512741034 | P100: 0
E101: Opex profile - WR | G101: % | H101: =SUM(I101:P101) -> 0.7378781837 | J101: 0 | K101: =F_Inputs!F30 -> 0.1465055326 | L101: =F_Inputs!G30 -> 0.1473269078 | M101: =F_Inputs!H30 -> 0.1475512384 | N101: =F_Inputs!I30 -> 0.1479635403 | O101: =F_Inputs!J30 -> 0.1485309646 | P101: 0
D103: Water Network
E104: Capex profile - WN | G104: % | H104: =SUM(I104:P104) -> 0.4928013371 | J104: 0 | K104: =F_Inputs!F31 -> 0.07890622131 | L104: =F_Inputs!G31 -> 0.09444605204 | M104: =F_Inputs!H31 -> 0.1133272399 | N104: =F_Inputs!I31 -> 0.1055474301 | O104: =F_Inputs!J31 -> 0.1005743937 | P104: 0
E105: Opex profile - WN | G105: % | H105: =SUM(I105:P105) -> 0.5071986629 | J105: 0 | K105: =F_Inputs!F32 -> 0.1023604171 | L105: =F_Inputs!G32 -> 0.1025220505 | M105: =F_Inputs!H32 -> 0.101673549 | N105: =F_Inputs!I32 -> 0.1005670315 | O105: =F_Inputs!J32 -> 0.1000756148 | P105: 0
D107: Wastewater Network
E108: Capex profile - WWN | G108: % | H108: =SUM(I108:P108) -> 0.5377583006 | J108: 0 | K108: =F_Inputs!F33 -> 0.122189893 | L108: =F_Inputs!G33 -> 0.1190193078 | M108: =F_Inputs!H33 -> 0.102488078 | N108: =F_Inputs!I33 -> 0.1030629666 | O108: =F_Inputs!J33 -> 0.0909980551 | P108: 0
E109: Opex profile - WNN | G109: % | H109: =SUM(I109:P109) -> 0.4622416994 | J109: 0 | K109: =F_Inputs!F34 -> 0.0941106126 | L109: =F_Inputs!G34 -> 0.09369806934 | M109: =F_Inputs!H34 -> 0.09301876501 | N109: =F_Inputs!I34 -> 0.09122397817 | O109: =F_Inputs!J34 -> 0.0901902743 | P109: 0
D111: Bioresources
E112: Capex profile - BR | G112: % | H112: =SUM(I112:P112) -> 0.2486052304 | J112: 0 | K112: =F_Inputs!F35 -> 0.0480257258 | L112: =F_Inputs!G35 -> 0.04921491495 | M112: =F_Inputs!H35 -> 0.05247415759 | N112: =F_Inputs!I35 -> 0.05083766442 | O112: =F_Inputs!J35 -> 0.04805276763 | P112: 0
E113: Opex profile - BR | G113: % | H113: =SUM(I113:P113) -> 0.7513947696 | J113: 0 | K113: =F_Inputs!F36 -> 0.1489578028 | L113: =F_Inputs!G36 -> 0.1505415171 | M113: =F_Inputs!H36 -> 0.1503018761 | N113: =F_Inputs!I36 -> 0.1504581637 | O113: =F_Inputs!J36 -> 0.1511354099 | P113: 0
D115: Dummy Control
E116: Capex profile - DMMY | G116: % | H116: =SUM(I116:P116) -> 0 | J116: 0 | K116: =F_Inputs!F37 -> 0 | L116: =F_Inputs!G37 -> 0 | M116: =F_Inputs!H37 -> 0 | N116: =F_Inputs!I37 -> 0 | O116: =F_Inputs!J37 -> 0 | P116: 0
E117: Opex profile - DMMY | G117: % | H117: =SUM(I117:P117) -> 0 | J117: 0 | K117: =F_Inputs!F38 -> 0 | L117: =F_Inputs!G38 -> 0 | M117: =F_Inputs!H38 -> 0 | N117: =F_Inputs!I38 -> 0 | O117: =F_Inputs!J38 -> 0 | P117: 0
B120: TOTEX PROFILING OVERRIDES
E121: Allowed capex and opex override switch - WR | F121: 1 | G121: 2 = Override, 1 = Calculated in opex/capex model
E122: Override capex - water resources | G122: £m
E123: Override opex - water resources | G123: £m
E125: Allowed capex and opex override switch - WN | F125: 1 | G125: 2 = Override, 1 = Calculated in opex/capex model
E126: Override capex - water network | G126: £m
E127: Override opex - water network | G127: £m
E129: Allowed capex and opex override switch - WWN | F129: 1 | G129: 2 = Override, 1 = Calculated in opex/capex model
E130: Override capex - Wastewater network | G130: £m
E131: Override opex - Wastewater network | G131: £m
E133: Allowed capex and opex override switch - BIO | F133: 1 | G133: 2 = Override, 1 = Calculated in opex/capex model
E134: Override capex - Bioresources | G134: £m
E135: Override opex - Bioresources | G135: £m
E137: Allowed capex and opex override switch - DMMY | F137: 1 | G137: 2 = Override, 1 = Calculated in opex/capex model
E138: Override capex - Dummy | G138: £m
E139: Override opex - Dummy | G139: £m
A141: COST SHARING CALCULATION INPUTS
C143: IAP Classification
E144: Company IAP classification | F144: Not Significant Scrutiny | G144: text
E146: Cost sharing rates Fast track overrides | F146: 1 | G146: 1 = Fast Track company, 0 = Non SS/ST company
E147: Fast track Cost sharing Override rates | F147: 0.5 | G147: %
E149: Outperform
C151: Parameter - Ranges | E151: less than or equal 80%
E152: Parameter(s) 1 | F152: 0.8 | G152: %
E153: greater than 80% and less than or equal to 90%
E154: Parameter 2 | F154: 0.8 | G154: %
E155: Parameter 3 | F155: 0.9 | G155: %
E156: Parameter 4
E157: greater than 90% and less than or equal to 110%
E158: Parameter 4 | F158: 0.9 | G158: %
E159: Parameter 5 | F159: 1.1 | G159: %
E160: Parameter 6
E161: greater than 110% and less than or equal to 120%
E162: Parameter 7 | F162: 1.1 | G162: %
E163: Parameter 8 | F163: 1.2 | G163: %
E164: Parameter 9
E165: greater than120%
E166: Parameter 10 | F166: 1.2 | G166: %
E168: Underperform
E169: less than or equal to a 100%
E170: Parameter 11 | F170: 1 | G170: %
E174: Parameter(s) 1 | F174: 0.65 | G174: %
C175: Parameter - Coefficients | E175: greater than 80% and less than or equal to 90%
E176: Parameter 2 | F176: 0.65 | G176: %
E177: Parameter 3 | F177: 0.5 | G177: %
E178: Parameter 4 | F178: 0.8 | G178: %
E179: greater than 90% and less than or equal to 110%
E180: Parameter 4 | F180: 0.6 | G180: %
E181: Parameter 5 | F181: 1 | G181: %
E182: Parameter 6 | F182: 0.9 | G182: %
E183: greater than 110% and less than or equal to 120%
E184: Parameter 7 | F184: 0.4 | G184: %
E185: Parameter 8 | F185: 1 | G185: %
E186: Parameter 9 | F186: 1.1 | G186: %
E187: greater than120%
E188: Parameter 10 | F188: 0.3 | G188: %
E190: Underperform
E191: less than or equal to a 100%
E192: Parameter 11 | F192: 0.5 | G192: %
E194: Inputs for significant scrutiny cost sharing rates
E195: Outperform
E196: Cost sharing rate | F196: 0.25 | G196: %
E198: Underperform
E199: Cost Sharing rate | F199: 0.75 | G199: %
E202: The inputs below in lines 154 and 156 do not relate to the years/period in the time bar above.
E203: Business plan totex | G203: % | J203: 0.75 | K203: 0.8 | L203: 0.85 | M203: 0.9 | N203: 0.95 | O203: 1 | P203: 1.05 | Q203: 1.1 | R203: 1.15 | S203: 1.2 | T203: 1.25
E205: Ofwat totex baseline | G205: % | J205: 1 | K205: 1 | L205: 1 | M205: 1 | N205: 1 | O205: 1 | P205: 1 | Q205: 1 | R205: 1 | S205: 1 | T205: 1
A216: NON CHANGEABLE INPUTS
E217: Model Check Tolerance Level | F217: 0.0001 | G217: tolerance
B218: Model Tolerance
E219: Model Track Tolerance Level | F219: 0.001 | G219: tolerance
A223: END OF SHEET

Sheet Time
A1: =RIGHT(CELL("filename", $A$1), LEN(CELL("filename", $A$1)) - SEARCH("]", CELL("filename", $A$1))) -> Time
E2: =Time!E$22 -> Model Period BEG | J2: =Time!J$22 -> 2019-04-01 | K2: =Time!K$22 -> 2020-04-01 | L2: =Time!L$22 -> 2021-04-01 | M2: =Time!M$22 -> 2022-04-01 | N2: =Time!N$22 -> 2023-04-01 | O2: =Time!O$22 -> 2024-04-01 | P2: =Time!P$22 -> 2025-04-01 | Q2: =Time!Q$22 -> 2026-04-01 | R2: =Time!R$22 -> 2027-04-01 | S2: =Time!S$22 -> 2028-04-01 | T2: =Time!T$22 -> 2029-04-01
E3: =Time!E$23 -> Model Period END | F3: =Check!F$8 -> 0 | G3: Error chks | J3: =Time!J$23 -> 2020-03-31 | K3: =Time!K$23 -> 2021-03-31 | L3: =Time!L$23 -> 2022-03-31 | M3: =Time!M$23 -> 2023-03-31 | N3: =Time!N$23 -> 2024-03-31 | O3: =Time!O$23 -> 2025-03-31 | P3: =Time!P$23 -> 2026-03-31 | Q3: =Time!Q$23 -> 2027-03-31 | R3: =Time!R$23 -> 2028-03-31 | S3: =Time!S$23 -> 2029-03-31 | T3: =Time!T$23 -> 2030-03-31
E4: =Time!E$59 -> Pre Forecast vs Forecast | F4: =Check!$F$20 -> 36 | G4: Track checks | J4: =Time!J$59 -> Pre Fcst | K4: =Time!K$59 -> Forecast | L4: =Time!L$59 -> Forecast | M4: =Time!M$59 -> Forecast | N4: =Time!N$59 -> Forecast | O4: =Time!O$59 -> Forecast | P4: =Time!P$59 -> Post-Fcst | Q4: =Time!Q$59 -> Post-Fcst | R4: =Time!R$59 -> Post-Fcst | S4: =Time!S$59 -> Post-Fcst | T4: =Time!T$59 -> Post-Fcst
E5: =Time!E$101 -> Financial Year Ending | J5: =Time!J$101 -> 2020 | K5: =Time!K$101 -> 2021 | L5: =Time!L$101 -> 2022 | M5: =Time!M$101 -> 2023 | N5: =Time!N$101 -> 2024 | O5: =Time!O$101 -> 2025 | P5: =Time!P$101 -> 2026 | Q5: =Time!Q$101 -> 2027 | R5: =Time!R$101 -> 2028 | S5: =Time!S$101 -> 2029 | T5: =Time!T$101 -> 2030
E6: =Time!E$11 -> Model column counter | F6: Constant | G6: Unit | H6: Total | J6: =Time!J$11 -> 1 | K6: =Time!K$11 -> 2 | L6: =Time!L$11 -> 3 | M6: =Time!M$11 -> 4 | N6: =Time!N$11 -> 5 | O6: =Time!O$11 -> 6 | P6: =Time!P$11 -> 7 | Q6: =Time!Q$11 -> 8 | R6: =Time!R$11 -> 9 | S6: =Time!S$11 -> 10 | T6: =Time!T$11 -> 11
A8: MODEL PERIOD
B10: Model Column Counter
E11: Model column counter | G11: counter | J11: =I11 + 1 -> 1 | K11: =J11 + 1 -> 2 | L11: 3 | M11: 4 | N11: 5 | O11: 6 | P11: 7 | Q11: =P11 + 1 -> 8 | R11: =Q11 + 1 -> 9 | S11: =R11 + 1 -> 10 | T11: =S11 + 1 -> 11
E12: Model Column Total | F12: =MAX(J11:BU11) -> 11 | G12: column
E14: =E$11 -> Model column counter | F14: 0 | G14: counter | H14: 0 | I14: 0 | J14: 1 | K14: 2 | L14: 3 | M14: 4 | N14: 5 | O14: 6 | P14: 7 | Q14: 8 | R14: 9 | S14: 10 | T14: 11
E15: First model column flag | G15: flag | H15: =SUM(J15:BU15) -> 1 | J15: =IF( J14 = 1, 1, 0) -> 1 | K15: 0 | L15: 0 | M15: 0 | N15: 0 | O15: 0 | P15: 0 | Q15: =IF( Q14 = 1, 1, 0) -> 0 | R15: 0 | S15: 0 | T15: 0
E17: =InpOverride!E$10 -> First date of time ruler | F17: =InpOverride!F$10 -> 2019-04-01 | G17: =InpOverride!G$10 -> date
E18: First model period BEG | F18: =DATE(YEAR(F17), MONTH(F17), 1) -> 2019-04-01 | G18: month
E20: =E$18 -> First model period BEG | F20: =F$18 -> 2019-04-01 | G20: =G$18 -> month
E21: =E$15 -> First model column flag | F21: 0 | G21: flag | H21: 1 | I21: 0 | J21: 1 | K21: 0 | L21: 0 | M21: 0 | N21: 0 | O21: 0 | P21: 0 | Q21: 0 | R21: 0 | S21: 0 | T21: 0
E22: Model Period BEG | G22: date | J22: =IF( J21 = 1, $F20, I23 + 1) -> 2019-04-01 | K22: 2020-04-01 | L22: 2021-04-01 | M22: 2022-04-01 | N22: 2023-04-01 | O22: 2024-04-01 | P22: 2025-04-01 | Q22: =IF( Q21 = 1, $F20, P23 + 1) -> 2026-04-01 | R22: =IF( R21 = 1, $F20, Q23 + 1) -> 2027-04-01 | S22: =IF( S21 = 1, $F20, R23 + 1) -> 2028-04-01 | T22: =IF( T21 = 1, $F20, S23 + 1) -> 2029-04-01
E23: Model Period END | G23: date | J23: =DATE(YEAR(J22), MONTH(J22) + 12, DAY(1) - 1) -> 2020-03-31 | K23: 2021-03-31 | L23: 2022-03-31 | M23: 2023-03-31 | N23: 2024-03-31 | O23: 2025-03-31 | P23: 2026-03-31 | Q23: =DATE(YEAR(Q22), MONTH(Q22) + 12, DAY(1) - 1) -> 2027-03-31 | R23: 2028-03-31 | S23: 2029-03-31 | T23: 2030-03-31
E25: =E$23 -> Model Period END | F25: 00:00:00 | G25: date | H25: 00:00:00 | I25: 00:00:00 | J25: 2020-03-31 | K25: 2021-03-31 | L25: 2022-03-31 | M25: 2023-03-31 | N25: 2024-03-31 | O25: 2025-03-31 | P25: 2026-03-31 | Q25: 2027-03-31 | R25: 2028-03-31 | S25: 2029-03-31 | T25: 2030-03-31
D26: less | E26: =E$22 -> Model Period BEG | F26: 00:00:00 | G26: date | H26: 00:00:00 | I26: 00:00:00 | J26: 2019-04-01 | K26: 2020-04-01 | L26: 2021-04-01 | M26: 2022-04-01 | N26: 2023-04-01 | O26: 2024-04-01 | P26: 2025-04-01 | Q26: 2026-04-01 | R26: 2027-04-01 | S26: 2028-04-01 | T26: 2029-04-01
E27: Days in Model Period | G27: days | H27: =SUM(J27:BU27) -> 4018 | J27: =J25 - J26 + 1 -> 366 | K27: 365 | L27: 365 | M27: 365 | N27: 366 | O27: 365 | P27: 365 | Q27: =Q25 - Q26 + 1 -> 365 | R27: 366 | S27: 365 | T27: 365
A30: PRE FORECAST PERIOD
E32: =InpOverride!E$12 -> Last Pre Forecast Date | F32: =InpOverride!F$12 -> 2020-03-31 | G32: =InpOverride!G$12 -> date
E33: =E$23 -> Model Period END | F33: 00:00:00 | G33: date | H33: 00:00:00 | I33: 00:00:00 | J33: 2020-03-31 | K33: 2021-03-31 | L33: 2022-03-31 | M33: 2023-03-31 | N33: 2024-03-31 | O33: 2025-03-31 | P33: 2026-03-31 | Q33: 2027-03-31 | R33: 2028-03-31 | S33: 2029-03-31 | T33: 2030-03-31
E34: Last Pre Forecast Flag | G34: flag | H34: =SUM(J34:BU34) -> 1 | J34: =IF(J33 = $F32, 1, 0) -> 1 | K34: 0 | L34: 0 | M34: 0 | N34: 0 | O34: 0 | P34: 0 | Q34: =IF(Q33 = $F32, 1, 0) -> 0 | R34: 0 | S34: 0 | T34: 0
E35: Pre Forecast Period Flag | G35: flag | H35: =SUM(J35:BU35) -> 1 | J35: =IF($F32 >= J33, 1, 0) -> 1 | K35: =IF($F32 >= K33, 1, 0) -> 0 | L35: 0 | M35: 0 | N35: 0 | O35: 0 | P35: 0 | Q35: =IF($F32 >= Q33, 1, 0) -> 0 | R35: 0 | S35: 0 | T35: 0
E36: Pre Forecast Period Total | F36: =SUM(J35:BU35) -> 1 | G36: columns
E38: =InpOverride!E$14 -> Acquisition date (midnight) | F38: =InpOverride!F$14 -> 2020-03-31 | G38: =InpOverride!G$14 -> date
E39: =E$23 -> Model Period END | F39: 00:00:00 | G39: date | H39: 00:00:00 | I39: 00:00:00 | J39: 2020-03-31 | K39: 2021-03-31 | L39: 2022-03-31 | M39: 2023-03-31 | N39: 2024-03-31 | O39: 2025-03-31 | P39: 2026-03-31 | Q39: 2027-03-31 | R39: 2028-03-31 | S39: 2029-03-31 | T39: 2030-03-31
E40: Acquisition / initial balance date flag | G40: flag | H40: =SUM(J40:BU40) -> 1 | J40: =IF(J39 = $F38, 1, 0) -> 1 | K40: 0 | L40: 0 | M40: 0 | N40: 0 | O40: 0 | P40: 0 | Q40: =IF(Q39 = $F38, 1, 0) -> 0 | R40: 0 | S40: 0 | T40: 0
A43: FORECAST PERIOD
E45: =E$34 -> Last Pre Forecast Flag | F45: 0 | G45: flag | H45: 1 | I45: 0 | J45: 1 | K45: 0 | L45: 0 | M45: 0 | N45: 0 | O45: 0 | P45: 0 | Q45: 0 | R45: 0 | S45: 0 | T45: 0
E46: 1st Forecast Period Flag | G46: flag | H46: =SUM(J46:BU46) -> 1 | J46: =I45 -> 0 | K46: 1 | L46: 0 | M46: 0 | N46: 0 | O46: 0 | P46: 0 | Q46: =P45 -> 0 | R46: =Q45 -> 0 | S46: =R45 -> 0 | T46: =S45 -> 0
E48: =InpOverride!E$16 -> Last forecast date | F48: =InpOverride!F$16 -> 2025-03-31 | G48: =InpOverride!G$16 -> date
E49: =E$23 -> Model Period END | F49: 00:00:00 | G49: date | H49: 00:00:00 | I49: 00:00:00 | J49: 2020-03-31 | K49: 2021-03-31 | L49: 2022-03-31 | M49: 2023-03-31 | N49: 2024-03-31 | O49: 2025-03-31 | P49: 2026-03-31 | Q49: 2027-03-31 | R49: 2028-03-31 | S49: 2029-03-31 | T49: 2030-03-31
E50: Last Forecast Period Flag | G50: flag | H50: =SUM(J50:BU50) -> 1 | J50: =IF(AND($F48 > I49, $F48 <= J49), 1, 0) -> 0 | K50: 0 | L50: 0 | M50: 0 | N50: 0 | O50: 1 | P50: 0 | Q50: =IF(AND($F48 > P49, $F48 <= Q49), 1, 0) -> 0 | R50: =IF(AND($F48 > Q49, $F48 <= R49), 1, 0) -> 0 | S50: =IF(AND($F48 > R49, $F48 <= S49), 1, 0) -> 0 | T50: =IF(AND($F48 > S49, $F48 <= T49), 1, 0) -> 0
E52: =E$46 -> 1st Forecast Period Flag | F52: 0 | G52: flag | H52: 1 | I52: 0 | J52: 0 | K52: 1 | L52: 0 | M52: 0 | N52: 0 | O52: 0 | P52: 0 | Q52: 0 | R52: 0 | S52: 0 | T52: 0
E53: =E$50 -> Last Forecast Period Flag | F53: 0 | G53: flag | H53: 1 | I53: 0 | J53: 0 | K53: 0 | L53: 0 | M53: 0 | N53: 0 | O53: 1 | P53: 0 | Q53: 0 | R53: 0 | S53: 0 | T53: 0
E54: Forecast Period Flag | G54: flag | H54: =SUM(J54:BU54) -> 5 | J54: =J52 - I53 + I54 -> 0 | K54: 1 | L54: 1 | M54: 1 | N54: 1 | O54: 1 | P54: 0 | Q54: =Q52 - P53 + P54 -> 0 | R54: =R52 - Q53 + Q54 -> 0 | S54: =S52 - R53 + R54 -> 0 | T54: =T52 - S53 + S54 -> 0
E55: Forecast Period Total | F55: =SUM(J54:BU54) -> 5 | G55: columns
E57: =E$35 -> Pre Forecast Period Flag | F57: 0 | G57: flag | H57: 1 | I57: 0 | J57: 1 | K57: 0 | L57: 0 | M57: 0 | N57: 0 | O57: 0 | P57: 0 | Q57: 0 | R57: 0 | S57: 0 | T57: 0
E58: =E$54 -> Forecast Period Flag | F58: 0 | G58: flag | H58: 5 | I58: 0 | J58: 0 | K58: 1 | L58: 1 | M58: 1 | N58: 1 | O58: 1 | P58: 0 | Q58: 0 | R58: 0 | S58: 0 | T58: 0
E59: Pre Forecast vs Forecast | G59: flag | J59: =IF(J57 = 1, "Pre Fcst", IF(J58 = 1, "Forecast", "Post-Fcst")) -> Pre Fcst | K59: Forecast | L59: Forecast | M59: Forecast | N59: Forecast | O59: Forecast | P59: Post-Fcst | Q59: =IF(Q57 = 1, "Pre Fcst", IF(Q58 = 1, "Forecast", "Post-Fcst")) -> Post-Fcst | R59: Post-Fcst | S59: Post-Fcst | T59: Post-Fcst
A62: POST FORECAST PERIOD
E64: =E$50 -> Last Forecast Period Flag | F64: 0 | G64: flag | H64: 1 | I64: 0 | J64: 0 | K64: 0 | L64: 0 | M64: 0 | N64: 0 | O64: 1 | P64: 0 | Q64: 0 | R64: 0 | S64: 0 | T64: 0
E65: 1st Post Last Forecast Period Flag | G65: flag | H65: =SUM(J65:BU65) -> 1 | J65: =I64 -> 0 | K65: 0 | L65: 0 | M65: 0 | N65: 0 | O65: 0 | P65: 1 | Q65: =P64 -> 0 | R65: =Q64 -> 0 | S65: =R64 -> 0 | T65: =S64 -> 0
E67: =E$65 -> 1st Post Last Forecast Period Flag | F67: 0 | G67: flag | H67: 1 | I67: 0 | J67: 0 | K67: 0 | L67: 0 | M67: 0 | N67: 0 | O67: 0 | P67: 1 | Q67: 0 | R67: 0 | S67: 0 | T67: 0
E68: Post Forecast Period Flag | G68: flag | H68: =SUM(J68:BU68) -> 5 | J68: =I68 + J67 -> 0 | K68: 0 | L68: 0 | M68: 0 | N68: 0 | O68: 0 | P68: 1 | Q68: =P68 + Q67 -> 1 | R68: =Q68 + R67 -> 1 | S68: =R68 + S67 -> 1 | T68: =S68 + T67 -> 1
E69: Post Forecast Period Total | F69: =SUM(J68:BU68) -> 5 | G69: columns
A72: MODELLING PERIOD CHECK
E74: =E$12 -> Model Column Total | F74: =F$12 -> 11 | G74: =G$12 -> column
D75: less | E75: =E$36 -> Pre Forecast Period Total | F75: =F$36 -> 1 | G75: =G$36 -> columns
D76: less | E76: =E$55 -> Forecast Period Total | F76: =F$55 -> 5 | G76: =G$55 -> columns
D77: less | E77: =E$69 -> Post Forecast Period Total | F77: =F$69 -> 5 | G77: =G$69 -> columns
E78: Modelling Period Check | F78: =IF(F74 - SUM(F75:F77) <> 0, 1, 0) -> 0 | G78: check
A81: PARTIAL PERIOD FLAG (PPF)
C82: This is an example of a part period flag. It is not currently used.
B83: Operation Partial Period Flag (PPF)
E84: =E$18 -> First model period BEG | F84: =F$18 -> 2019-04-01 | G84: =G$18 -> month
E85: =InpOverride!E$20 -> Operation Finish Date (midnight) | F85: =InpOverride!F$20 -> 2025-03-31 | G85: =InpOverride!G$20 -> date
E86: =E$22 -> Model Period BEG | F86: 00:00:00 | G86: date | H86: 00:00:00 | I86: 00:00:00 | J86: 2019-04-01 | K86: 2020-04-01 | L86: 2021-04-01 | M86: 2022-04-01 | N86: 2023-04-01 | O86: 2024-04-01 | P86: 2025-04-01 | Q86: 2026-04-01 | R86: 2027-04-01 | S86: 2028-04-01 | T86: 2029-04-01
E87: =E$23 -> Model Period END | F87: 00:00:00 | G87: date | H87: 00:00:00 | I87: 00:00:00 | J87: 2020-03-31 | K87: 2021-03-31 | L87: 2022-03-31 | M87: 2023-03-31 | N87: 2024-03-31 | O87: 2025-03-31 | P87: 2026-03-31 | Q87: 2027-03-31 | R87: 2028-03-31 | S87: 2029-03-31 | T87: 2030-03-31
E88: Days in Operation Period | G88: days | H88: =SUM(J88:BU88) -> 2192 | J88: =MAX(0, (MIN($F85, J87) - MAX($F84, J86) + 1)) -> 366 | K88: 365 | L88: 365 | M88: 365 | N88: 366 | O88: 365 | P88: 0 | Q88: =MAX(0, (MIN($F85, Q87) - MAX($F84, Q86) + 1)) -> 0 | R88: 0 | S88: 0 | T88: 0
E90: =E$88 -> Days in Operation Period | F90: 0 | G90: days | H90: 2192 | I90: 0 | J90: 366 | K90: 365 | L90: 365 | M90: 365 | N90: 366 | O90: 365 | P90: 0 | Q90: 0 | R90: 0 | S90: 0 | T90: 0
E91: =E$27 -> Days in Model Period | F91: 0 | G91: days | H91: 4018 | I91: 0 | J91: 366 | K91: 365 | L91: 365 | M91: 365 | N91: 366 | O91: 365 | P91: 365 | Q91: 365 | R91: 366 | S91: 365 | T91: 365
E92: Operation Period PPF | G92: factor | H92: =SUM(J92:BU92) -> 6 | J92: =J90 / J91 -> 1 | K92: 1 | L92: 1 | M92: 1 | N92: 1 | O92: 1 | P92: 0 | Q92: =Q90 / Q91 -> 0 | R92: 0 | S92: 0 | T92: 0
A95: FINANCIAL YEAR
E97: =InpOverride!E21 -> First Modelling Column Financial Year Number | F97: =InpOverride!F21 -> 2020 | G97: =InpOverride!G21 -> year
E98: =InpOverride!E22 -> Financial Year End Month Number | F98: =InpOverride!F22 -> 3 | G98: =InpOverride!G22 -> month #
E99: =E$23 -> Model Period END | F99: 00:00:00 | G99: date | H99: 00:00:00 | I99: 00:00:00 | J99: 2020-03-31 | K99: 2021-03-31 | L99: 2022-03-31 | M99: 2023-03-31 | N99: 2024-03-31 | O99: 2025-03-31 | P99: 2026-03-31 | Q99: 2027-03-31 | R99: 2028-03-31 | S99: 2029-03-31 | T99: 2030-03-31
E100: =E$15 -> First model column flag | F100: 0 | G100: flag | H100: 1 | I100: 0 | J100: 1 | K100: 0 | L100: 0 | M100: 0 | N100: 0 | O100: 0 | P100: 0 | Q100: 0 | R100: 0 | S100: 0 | T100: 0
E101: Financial Year Ending | G101: year # | J101: =IF(J100 = 1, $F97, IF(J99 > (DATE(I101, $F98 + 1, 1) - 1), I101 + 1, I101)) -> 2020 | K101: =IF(K100 = 1, $F97, IF(K99 > (DATE(J101, $F98 + 1, 1) - 1), J101 + 1, J101)) -> 2021 | L101: 2022 | M101: 2023 | N101: 2024 | O101: 2025 | P101: 2026 | Q101: =IF(Q100 = 1, $F97, IF(Q99 > (DATE(P101, $F98 + 1, 1) - 1), P101 + 1, P101)) -> 2027 | R101: =IF(R100 = 1, $F97, IF(R99 > (DATE(Q101, $F98 + 1, 1) - 1), Q101 + 1, Q101)) -> 2028 | S101: =IF(S100 = 1, $F97, IF(S99 > (DATE(R101, $F98 + 1, 1) - 1), R101 + 1, R101)) -> 2029 | T101: =IF(T100 = 1, $F97, IF(T99 > (DATE(S101, $F98 + 1, 1) - 1), S101 + 1, S101)) -> 2030
A104: END OF SHEET

Sheet Dashboards-->

Sheet Dashboard - WR + WN
A1: =RIGHT(CELL("filename", $A$1), LEN(CELL("filename", $A$1)) - SEARCH("]", CELL("filename", $A$1))) -> Dashboard - WR + WN
B4: Modeller's Inputs | H4: Key user inputs for incentive payment / penalty example
B5: These inputs are set and should not be changed. | H5: These inputs allow the user to test totex over/under spend impacts.
B7: Inputs for exceptional, fast track and slow track cost sharing rates | H7: Company's forecast totex of relevant control(s) | N7: ='Ex-ante allowances'!F66+'Ex-ante allowances'!F13 -> 915.255 | O7: £m
B9: Outperform | C9: Coefficient | F9: Range | H9: Ofwat baseline efficient totex of relevant control(s) | N9: ='Ex-ante allowances'!F70+'Ex-ante allowances'!F17 -> 924.8428213 | O9: £m
B10: less than or equal 80%
B11: Parameter(s) 1 | C11: =InpOverride!F174 -> 0.65 | D11: % | F11: =InpOverride!F152 -> 0.8 | H11: Company outturn totex of relevant control(s) | N11: ='Ex-ante allowances'!F74+'Ex-ante allowances'!F21 -> 915.255 | O11: £m
B12: greater than 80% and less than or equal to 90%
B13: Parameter 2 | C13: =InpOverride!F176 -> 0.65 | D13: % | F13: =InpOverride!F154 -> 0.8 | H13: Company IAP classification | N13: =InpOverride!F144 -> Not Significant Scrutiny | O13: Text
B14: Parameter 3 | C14: =InpOverride!F177 -> 0.5 | D14: % | F14: =InpOverride!F155 -> 0.9
B15: Parameter 4 | C15: =InpOverride!F178 -> 0.8 | D15: %
B16: greater than 90% and less than or equal to 110%
B17: Parameter 4 | C17: =InpOverride!F180 -> 0.6 | D17: % | F17: =InpOverride!F158 -> 0.9 | N17: =N9*0.9 -> 832.3585391
B18: Parameter 5 | C18: =InpOverride!F181 -> 1 | D18: % | F18: =InpOverride!F159 -> 1.1
B19: Parameter 6 | C19: =InpOverride!F182 -> 0.9 | D19: %
B20: greater than 110% and less than or equal to 120%
B21: Parameter 7 | C21: =InpOverride!F184 -> 0.4 | D21: % | F21: =InpOverride!F162 -> 1.1
B22: Parameter 8 | C22: =InpOverride!F185 -> 1 | D22: % | F22: =InpOverride!F163 -> 1.2
B23: Parameter 9 | C23: =InpOverride!F186 -> 1.1 | D23: %
B24: greater than120%
B25: Parameter 10 | C25: =InpOverride!F188 -> 0.3 | D25: % | F25: =InpOverride!F166 -> 1.2
B27: Underperform
B28: less than or equal to a 100%
B29: Parameter 11 | C29: =InpOverride!F192 -> 0.5 | D29: % | F29: =InpOverride!F170 -> 1
B31: Inputs for significant scrutiny cost sharing rates
B32: Outperform
B34: Cost sharing rate | C34: =InpOverride!F196 -> 0.25 | D34: %
B36: Underperform
B38: Cost Sharing rate | C38: =InpOverride!F199 -> 0.75 | D38: %
B42: Cost sharing scheme for PR19 - final calibration for exceptional, fast track and slow track business plans
F45: Table 1: the incentive payment or penalty (as a % of ofwat totex baseline) for given cost sharing rates for different value of outturn expenditure for exceptional, fast track and slow track business plans. This is applicable to the water network plus, water resources and wastewater network plus price controls.
B47: Example | F47: Business plan totex % | G47: =InpOverride!J$203 -> 0.75 | H47: =InpOverride!K$203 -> 0.8 | I47: =InpOverride!L$203 -> 0.85 | J47: =InpOverride!M$203 -> 0.9 | K47: =InpOverride!N$203 -> 0.95 | L47: =InpOverride!O$203 -> 1 | M47: =InpOverride!P$203 -> 1.05 | N47: =InpOverride!Q$203 -> 1.1 | O47: =InpOverride!R$203 -> 1.15 | P47: =InpOverride!S$203 -> 1.2 | Q47: =InpOverride!T$203 -> 1.25
B48: Company forecast Totex | C48: =N7 -> 915.255 | D48: £m | F48: Ofwat totex baseline % | G48: =InpOverride!J$205 -> 1 | H48: =InpOverride!K$205 -> 1 | I48: =InpOverride!L$205 -> 1 | J48: =InpOverride!M$205 -> 1 | K48: =InpOverride!N$205 -> 1 | L48: =InpOverride!O$205 -> 1 | M48: =InpOverride!P$205 -> 1 | N48: =InpOverride!Q$205 -> 1 | O48: =InpOverride!R$205 -> 1 | P48: =InpOverride!S$205 -> 1 | Q48: =InpOverride!T$205 -> 1
B49: Ofwat forecast of efficient Totex | C49: =N9 -> 924.8428213 | D49: £m | F49: Cost sharing rate (outperform) | G49: ='Dashboard Calcs'!J71 -> 0.65 | H49: ='Dashboard Calcs'!K71 -> 0.65 | I49: ='Dashboard Calcs'!L71 -> 0.625 | J49: ='Dashboard Calcs'!M71 -> 0.6 | K49: ='Dashboard Calcs'!N71 -> 0.55 | L49: ='Dashboard Calcs'!O71 -> 0.5 | M49: ='Dashboard Calcs'!P71 -> 0.45 | N49: ='Dashboard Calcs'!Q71 -> 0.4 | O49: ='Dashboard Calcs'!R71 -> 0.35 | P49: ='Dashboard Calcs'!S71 -> 0.3 | Q49: ='Dashboard Calcs'!T71 -> 0.3
B50: Ratio company's forecast: Ofwat baseline | C50: =(C48/C49) -> 0.9896330262 | D50: % | F50: Cost sharing rate (underperform) | G50: ='Dashboard Calcs'!J91 -> 0.5 | H50: ='Dashboard Calcs'!K91 -> 0.5 | I50: ='Dashboard Calcs'!L91 -> 0.5 | J50: ='Dashboard Calcs'!M91 -> 0.5 | K50: ='Dashboard Calcs'!N91 -> 0.5 | L50: ='Dashboard Calcs'!O91 -> 0.5 | M50: ='Dashboard Calcs'!P91 -> 0.55 | N50: ='Dashboard Calcs'!Q91 -> 0.6 | O50: ='Dashboard Calcs'!R91 -> 0.65 | P50: ='Dashboard Calcs'!S91 -> 0.7 | Q50: ='Dashboard Calcs'!T91 -> 0.7
B51: Cost sharing rate for outperform | C51: ='Dashboard Calcs'!F169 -> 0.5 | D51: % | F51: Actual expenditure: baseline | G51: Total incentive payment or penalty to company (payment as a % of ofwat totex baseline)
B52: Cost sharing rate for underperform | C52: ='Dashboard Calcs'!F189 -> 0.5 | D52: % | F52: =InpOverride!K$203 -> 0.8 | G52: =IF($F52 < G$48, G$49, G$50) * (G$48 - $F52) -> 0.13 | H52: =IF($F52 < H$48, H$49, H$50) * (H$48 - $F52) -> 0.13 | I52: 0.125 | J52: 0.12 | K52: 0.11 | L52: 0.1 | M52: 0.09 | N52: 0.08 | O52: 0.07 | P52: 0.06 | Q52: 0.06
B53: Company outturn expenditure | C53: =N11 -> 915.255 | D53: £m | F53: =InpOverride!L$203 -> 0.85 | G53: =IF($F53 < G$48, G$49, G$50) * (G$48 - $F53) -> 0.0975 | H53: 0.0975 | I53: 0.09375 | J53: 0.09 | K53: 0.0825 | L53: 0.075 | M53: 0.0675 | N53: 0.06 | O53: 0.0525 | P53: 0.045 | Q53: 0.045
B54: Incentive payment (+) or penalty (-) | C54: =IF((C53<C49),C51,C52)*(C49-C53) -> 4.793910634 | D54: £m | F54: =InpOverride!M$203 -> 0.9 | G54: 0.065 | H54: 0.065 | I54: 0.0625 | J54: 0.06 | K54: 0.055 | L54: 0.05 | M54: 0.045 | N54: 0.04 | O54: 0.035 | P54: 0.03 | Q54: 0.03
B55: Ex-ante allowance above Ofwat forecast | C55: =C48+C54-C49 -> -4.793910634 | D55: £m | F55: =InpOverride!N$203 -> 0.95 | G55: 0.0325 | H55: 0.0325 | I55: =IF($F55 < I$48, I$49, I$50) * (I$48 - $F55) -> 0.03125 | J55: 0.03 | K55: 0.0275 | L55: 0.025 | M55: 0.0225 | N55: 0.02 | O55: 0.0175 | P55: 0.015 | Q55: 0.015
F56: =InpOverride!O$203 -> 1 | G56: 0 | H56: 0 | I56: =IF($F56 < I$48, I$49, I$50) * (I$48 - $F56) -> 0 | J56: 0 | K56: 0 | L56: 0 | M56: 0 | N56: 0 | O56: 0 | P56: 0 | Q56: 0
F57: =InpOverride!P$203 -> 1.05 | G57: -0.025 | H57: -0.025 | I57: =IF($F57 < I$48, I$49, I$50) * (I$48 - $F57) -> -0.025 | J57: -0.025 | K57: -0.025 | L57: -0.025 | M57: -0.0275 | N57: -0.03 | O57: -0.0325 | P57: -0.035 | Q57: -0.035
F58: =InpOverride!Q$203 -> 1.1 | G58: -0.05 | H58: -0.05 | I58: -0.05 | J58: -0.05 | K58: -0.05 | L58: -0.05 | M58: -0.055 | N58: -0.06 | O58: -0.065 | P58: -0.07 | Q58: -0.07
F59: =InpOverride!R$203 -> 1.15 | G59: -0.075 | H59: -0.075 | I59: -0.075 | J59: -0.075 | K59: -0.075 | L59: -0.075 | M59: -0.0825 | N59: -0.09 | O59: -0.0975 | P59: -0.105 | Q59: -0.105
F60: =InpOverride!S$203 -> 1.2 | G60: -0.1 | H60: -0.1 | I60: -0.1 | J60: -0.1 | K60: -0.1 | L60: -0.1 | M60: -0.11 | N60: -0.12 | O60: -0.13 | P60: -0.14 | Q60: -0.14
F61: Note: values shaded in blue represent the maximum reward that can be obtained for a given actual expenditure: baseline ratio
B65: Cost sharing scheme for PR19 - final calibration for significant scrutiny business plans
F68: Table 2: the incentive payment or penalty (as a % of ofwat totex baseline) for given cost sharing rates for different value of outturn expenditure for significant scrutiny business plans. This is applicable to the water network plus, water resources and wastewater network plus price controls.
B70: Example | F70: Business plan totex | G70: =InpOverride!J$203 -> 0.75 | H70: =InpOverride!K$203 -> 0.8 | I70: =InpOverride!L$203 -> 0.85 | J70: =InpOverride!M$203 -> 0.9 | K70: =InpOverride!N$203 -> 0.95 | L70: =InpOverride!O$203 -> 1 | M70: =InpOverride!P$203 -> 1.05 | N70: =InpOverride!Q$203 -> 1.1 | O70: =InpOverride!R$203 -> 1.15 | P70: =InpOverride!S$203 -> 1.2 | Q70: =InpOverride!T$203 -> 1.25
B71: Company forecast Totex | C71: =N7 -> 915.255 | D71: £m | F71: Ofwat totex baseline | G71: =InpOverride!J$205 -> 1 | H71: =InpOverride!K$205 -> 1 | I71: =InpOverride!L$205 -> 1 | J71: =InpOverride!M$205 -> 1 | K71: =InpOverride!N$205 -> 1 | L71: =InpOverride!O$205 -> 1 | M71: =InpOverride!P$205 -> 1 | N71: =InpOverride!Q$205 -> 1 | O71: =InpOverride!R$205 -> 1 | P71: =InpOverride!S$205 -> 1 | Q71: =InpOverride!T$205 -> 1
B72: Ofwat forecast of efficient Totex | C72: =N9 -> 924.8428213 | D72: £m | F72: Cost sharing rate (outperform) | G72: =$C34 -> 0.25 | H72: =$C34 -> 0.25 | I72: 0.25 | J72: 0.25 | K72: 0.25 | L72: 0.25 | M72: 0.25 | N72: 0.25 | O72: 0.25 | P72: 0.25 | Q72: 0.25
B73: Ratio company's forecast: Ofwat baseline | C73: =(C71/C72) -> 0.9896330262 | D73: % | F73: Cost sharing rate (underperform) | G73: =$C38 -> 0.75 | H73: 0.75 | I73: 0.75 | J73: 0.75 | K73: 0.75 | L73: 0.75 | M73: 0.75 | N73: 0.75 | O73: 0.75 | P73: 0.75 | Q73: 0.75
B74: Cost sharing rate for outperform | C74: =C34 -> 0.25 | D74: % | F74: Actual expenditure: baseline | G74: Total incentive payment or penalty to company (payment as a % of ofwat totex baseline)
B75: Cost sharing rate for underperform | C75: =C38 -> 0.75 | D75: % | F75: =InpOverride!K$203 -> 0.8 | G75: =IF($F75 < G$71, G$72, G$73) * (G$71 - $F75) -> 0.05 | H75: =IF($F75 < H$71, H$72, H$73) * (H$71 - $F75) -> 0.05 | I75: 0.05 | J75: 0.05 | K75: 0.05 | L75: 0.05 | M75: 0.05 | N75: 0.05 | O75: 0.05 | P75: 0.05 | Q75: 0.05
B76: Company outturn expenditure | C76: =N11 -> 915.255 | D76: £m | F76: =InpOverride!L$203 -> 0.85 | G76: =IF($F76 < G$71, G$72, G$73) * (G$71 - $F76) -> 0.0375 | H76: 0.0375 | I76: 0.0375 | J76: 0.0375 | K76: 0.0375 | L76: 0.0375 | M76: 0.0375 | N76: 0.0375 | O76: 0.0375 | P76: 0.0375 | Q76: 0.0375
B77: Incentive payment (+) or penalty (-) | C77: =IF((C76<C72),C74,C75)*(C72-C76) -> 2.396955317 | D77: £m | F77: =InpOverride!M$203 -> 0.9 | G77: 0.025 | H77: 0.025 | I77: 0.025 | J77: 0.025 | K77: 0.025 | L77: 0.025 | M77: 0.025 | N77: 0.025 | O77: 0.025 | P77: 0.025 | Q77: 0.025
B78: Ex-ante allowance above Ofwat forecast | C78: =C71+C77-C72 -> -7.190865951 | D78: £m | F78: =InpOverride!N$203 -> 0.95 | G78: 0.0125 | H78: 0.0125 | I78: 0.0125 | J78: 0.0125 | K78: 0.0125 | L78: 0.0125 | M78: 0.0125 | N78: 0.0125 | O78: 0.0125 | P78: 0.0125 | Q78: 0.0125
F79: =InpOverride!O$203 -> 1 | G79: 0 | H79: 0 | I79: 0 | J79: 0 | K79: 0 | L79: 0 | M79: 0 | N79: 0 | O79: 0 | P79: 0 | Q79: 0
C80: =C77-C54 -> -2.396955317 | F80: =InpOverride!P$203 -> 1.05 | G80: -0.0375 | H80: -0.0375 | I80: -0.0375 | J80: -0.0375 | K80: -0.0375 | L80: -0.0375 | M80: -0.0375 | N80: -0.0375 | O80: -0.0375 | P80: -0.0375 | Q80: -0.0375
F81: =InpOverride!Q$203 -> 1.1 | G81: -0.075 | H81: -0.075 | I81: -0.075 | J81: -0.075 | K81: -0.075 | L81: -0.075 | M81: -0.075 | N81: -0.075 | O81: -0.075 | P81: -0.075 | Q81: -0.075
F82: =InpOverride!R$203 -> 1.15 | G82: -0.1125 | H82: -0.1125 | I82: -0.1125 | J82: -0.1125 | K82: -0.1125 | L82: -0.1125 | M82: -0.1125 | N82: -0.1125 | O82: -0.1125 | P82: -0.1125 | Q82: -0.1125
F83: =InpOverride!S$203 -> 1.2 | G83: -0.15 | H83: -0.15 | I83: -0.15 | J83: -0.15 | K83: -0.15 | L83: -0.15 | M83: -0.15 | N83: -0.15 | O83: -0.15 | P83: -0.15 | Q83: -0.15
F84: Note: values shaded in blue represent the maximum reward that can be obtained for a given actual expenditure: baseline ratio

Sheet Dashboard - WWN
A1: =RIGHT(CELL("filename", $A$1), LEN(CELL("filename", $A$1)) - SEARCH("]", CELL("filename", $A$1))) -> Dashboard - WWN
B4: Modeller's Inputs | H4: Key user inputs for incentive payment / penalty example
B5: These inputs are set and should not be changed. | H5: These inputs allow the user to test totex over/under spend impacts.
B7: Inputs for exceptional, fast track and slow track cost sharing rates | H7: Company's forecast totex of relevant control(s) | N7: ='Ex-ante allowances'!F123 -> 882.097 | O7: £m
B9: Outperform | C9: Coefficient | F9: Range | H9: Ofwat baseline efficient totex of relevant control(s) | N9: ='Ex-ante allowances'!F127 -> 828.7174027 | O9: £m
B10: less than or equal 80%
B11: Parameter(s) 1 | C11: =InpOverride!F174 -> 0.65 | D11: % | F11: =InpOverride!F152 -> 0.8 | H11: Company outturn totex of relevant control(s) | N11: ='Ex-ante allowances'!F131 -> 882.097 | O11: £m
B12: greater than 80% and less than or equal to 90%
B13: Parameter 2 | C13: =InpOverride!F176 -> 0.65 | D13: % | F13: =InpOverride!F154 -> 0.8 | H13: Company IAP classification | N13: =InpOverride!F144 -> Not Significant Scrutiny | O13: Text
B14: Parameter 3 | C14: =InpOverride!F177 -> 0.5 | D14: % | F14: =InpOverride!F155 -> 0.9
B15: Parameter 4 | C15: =InpOverride!F178 -> 0.8 | D15: %
B16: greater than 90% and less than or equal to 110%
B17: Parameter 4 | C17: =InpOverride!F180 -> 0.6 | D17: % | F17: =InpOverride!F158 -> 0.9
B18: Parameter 5 | C18: =InpOverride!F181 -> 1 | D18: % | F18: =InpOverride!F159 -> 1.1
B19: Parameter 6 | C19: =InpOverride!F182 -> 0.9 | D19: %
B20: greater than 110% and less than or equal to 120%
B21: Parameter 7 | C21: =InpOverride!F184 -> 0.4 | D21: % | F21: =InpOverride!F162 -> 1.1
B22: Parameter 8 | C22: =InpOverride!F185 -> 1 | D22: % | F22: =InpOverride!F163 -> 1.2
B23: Parameter 9 | C23: =InpOverride!F186 -> 1.1 | D23: %
B24: greater than120%
B25: Parameter 10 | C25: =InpOverride!F188 -> 0.3 | D25: % | F25: =InpOverride!F166 -> 1.2
B27: Underperform
B28: less than or equal to a 100%
B29: Parameter 11 | C29: =InpOverride!F192 -> 0.5 | D29: % | F29: =InpOverride!F170 -> 1
B31: Inputs for significant scrutiny cost sharing rates
B32: Outperform
B34: Cost sharing rate | C34: =InpOverride!F196 -> 0.25 | D34: %
B36: Underperform
B38: Cost Sharing rate | C38: =InpOverride!F199 -> 0.75 | D38: %
B42: Cost sharing scheme for PR19 - final calibration for exceptional, fast track and slow track business plans
F45: Table 1: the incentive payment or penalty (as a % of ofwat totex baseline) for given cost sharing rates for different value of outturn expenditure for exceptional, fast track and slow track business plans. This is applicable to the water network plus, water resources and wastewater network plus price controls.
B47: Example | F47: Business plan totex % | G47: =InpOverride!J$203 -> 0.75 | H47: =InpOverride!K$203 -> 0.8 | I47: =InpOverride!L$203 -> 0.85 | J47: =InpOverride!M$203 -> 0.9 | K47: =InpOverride!N$203 -> 0.95 | L47: =InpOverride!O$203 -> 1 | M47: =InpOverride!P$203 -> 1.05 | N47: =InpOverride!Q$203 -> 1.1 | O47: =InpOverride!R$203 -> 1.15 | P47: =InpOverride!S$203 -> 1.2 | Q47: =InpOverride!T$203 -> 1.25
B48: Company forecast Totex | C48: =N7 -> 882.097 | D48: £m | F48: Ofwat totex baseline % | G48: =InpOverride!J$205 -> 1 | H48: =InpOverride!K$205 -> 1 | I48: =InpOverride!L$205 -> 1 | J48: =InpOverride!M$205 -> 1 | K48: =InpOverride!N$205 -> 1 | L48: =InpOverride!O$205 -> 1 | M48: =InpOverride!P$205 -> 1 | N48: =InpOverride!Q$205 -> 1 | O48: =InpOverride!R$205 -> 1 | P48: =InpOverride!S$205 -> 1 | Q48: =InpOverride!T$205 -> 1
B49: Ofwat forecast of efficient Totex | C49: =N9 -> 828.7174027 | D49: £m | F49: Cost sharing rate (outperform) | G49: ='Dashboard Calcs'!J71 -> 0.65 | H49: ='Dashboard Calcs'!K71 -> 0.65 | I49: ='Dashboard Calcs'!L71 -> 0.625 | J49: ='Dashboard Calcs'!M71 -> 0.6 | K49: ='Dashboard Calcs'!N71 -> 0.55 | L49: ='Dashboard Calcs'!O71 -> 0.5 | M49: ='Dashboard Calcs'!P71 -> 0.45 | N49: ='Dashboard Calcs'!Q71 -> 0.4 | O49: ='Dashboard Calcs'!R71 -> 0.35 | P49: ='Dashboard Calcs'!S71 -> 0.3 | Q49: ='Dashboard Calcs'!T71 -> 0.3
B50: Ratio company's forecast: Ofwat baseline | C50: =(C48/C49) -> 1.064412304 | D50: % | F50: Cost sharing rate (underperform) | G50: ='Dashboard Calcs'!J91 -> 0.5 | H50: ='Dashboard Calcs'!K91 -> 0.5 | I50: ='Dashboard Calcs'!L91 -> 0.5 | J50: ='Dashboard Calcs'!M91 -> 0.5 | K50: ='Dashboard Calcs'!N91 -> 0.5 | L50: ='Dashboard Calcs'!O91 -> 0.5 | M50: ='Dashboard Calcs'!P91 -> 0.55 | N50: ='Dashboard Calcs'!Q91 -> 0.6 | O50: ='Dashboard Calcs'!R91 -> 0.65 | P50: ='Dashboard Calcs'!S91 -> 0.7 | Q50: ='Dashboard Calcs'!T91 -> 0.7
B51: Cost sharing rate for outperform | C51: ='Dashboard Calcs'!F262 -> 0.5 | D51: % | F51: Actual expenditure: baseline | G51: Total incentive payment or penalty to company (payment as a % of ofwat totex baseline)
B52: Cost sharing rate for underperform | C52: ='Dashboard Calcs'!F282 -> 0.5 | D52: % | F52: =InpOverride!K$203 -> 0.8 | G52: =IF($F52 < G$48, G$49, G$50) * (G$48 - $F52) -> 0.13 | H52: =IF($F52 < H$48, H$49, H$50) * (H$48 - $F52) -> 0.13 | I52: 0.125 | J52: 0.12 | K52: 0.11 | L52: 0.1 | M52: 0.09 | N52: 0.08 | O52: 0.07 | P52: 0.06 | Q52: 0.06
B53: Company outturn expenditure | C53: =N11 -> 882.097 | D53: £m | F53: =InpOverride!L$203 -> 0.85 | G53: =IF($F53 < G$48, G$49, G$50) * (G$48 - $F53) -> 0.0975 | H53: 0.0975 | I53: 0.09375 | J53: 0.09 | K53: 0.0825 | L53: 0.075 | M53: 0.0675 | N53: 0.06 | O53: 0.0525 | P53: 0.045 | Q53: 0.045
B54: Incentive payment (+) or penalty (-) | C54: =IF((C53<C49),C51,C52)*(C49-C53) -> -26.68979864 | D54: £m | F54: =InpOverride!M$203 -> 0.9 | G54: 0.065 | H54: 0.065 | I54: 0.0625 | J54: 0.06 | K54: 0.055 | L54: 0.05 | M54: 0.045 | N54: 0.04 | O54: 0.035 | P54: 0.03 | Q54: 0.03
B55: Ex-ante allowance above Ofwat forecast | C55: =C48+C54-C49 -> 26.68979864 | D55: £m | F55: =InpOverride!N$203 -> 0.95 | G55: 0.0325 | H55: 0.0325 | I55: 0.03125 | J55: 0.03 | K55: 0.0275 | L55: 0.025 | M55: 0.0225 | N55: 0.02 | O55: 0.0175 | P55: 0.015 | Q55: 0.015
F56: =InpOverride!O$203 -> 1 | G56: 0 | H56: 0 | I56: 0 | J56: 0 | K56: 0 | L56: 0 | M56: 0 | N56: 0 | O56: 0 | P56: 0 | Q56: 0
F57: =InpOverride!P$203 -> 1.05 | G57: -0.025 | H57: -0.025 | I57: -0.025 | J57: -0.025 | K57: -0.025 | L57: -0.025 | M57: -0.0275 | N57: -0.03 | O57: -0.0325 | P57: -0.035 | Q57: -0.035
F58: =InpOverride!Q$203 -> 1.1 | G58: -0.05 | H58: -0.05 | I58: -0.05 | J58: -0.05 | K58: -0.05 | L58: -0.05 | M58: -0.055 | N58: -0.06 | O58: -0.065 | P58: -0.07 | Q58: -0.07
F59: =InpOverride!R$203 -> 1.15 | G59: -0.075 | H59: -0.075 | I59: -0.075 | J59: -0.075 | K59: -0.075 | L59: -0.075 | M59: -0.0825 | N59: -0.09 | O59: -0.0975 | P59: -0.105 | Q59: -0.105
F60: =InpOverride!S$203 -> 1.2 | G60: -0.1 | H60: -0.1 | I60: -0.1 | J60: -0.1 | K60: -0.1 | L60: -0.1 | M60: -0.11 | N60: -0.12 | O60: -0.13 | P60: -0.14 | Q60: -0.14
F61: Note: values shaded in blue represent the maximum reward that can be obtained for a given actual expenditure: baseline ratio
B65: Cost sharing scheme for PR19 - final calibration for significant scrutiny business plans
F68: Table 2: the incentive payment or penalty (as a % of ofwat totex baseline) for given cost sharing rates for different value of outturn expenditure for significant scrutiny business plans. This is applicable to the water network plus, water resources and wastewater network plus price controls.
B70: Example | F70: Business plan totex | G70: =InpOverride!J$203 -> 0.75 | H70: =InpOverride!K$203 -> 0.8 | I70: =InpOverride!L$203 -> 0.85 | J70: =InpOverride!M$203 -> 0.9 | K70: =InpOverride!N$203 -> 0.95 | L70: =InpOverride!O$203 -> 1 | M70: =InpOverride!P$203 -> 1.05 | N70: =InpOverride!Q$203 -> 1.1 | O70: =InpOverride!R$203 -> 1.15 | P70: =InpOverride!S$203 -> 1.2 | Q70: =InpOverride!T$203 -> 1.25
B71: Company forecast Totex | C71: =N7 -> 882.097 | D71: £m | F71: Ofwat totex baseline | G71: =InpOverride!J$205 -> 1 | H71: =InpOverride!K$205 -> 1 | I71: =InpOverride!L$205 -> 1 | J71: =InpOverride!M$205 -> 1 | K71: =InpOverride!N$205 -> 1 | L71: =InpOverride!O$205 -> 1 | M71: =InpOverride!P$205 -> 1 | N71: =InpOverride!Q$205 -> 1 | O71: =InpOverride!R$205 -> 1 | P71: =InpOverride!S$205 -> 1 | Q71: =InpOverride!T$205 -> 1
B72: Ofwat forecast of efficient Totex | C72: =N9 -> 828.7174027 | D72: £m | F72: Cost sharing rate (outperform) | G72: =$C34 -> 0.25 | H72: =$C34 -> 0.25 | I72: 0.25 | J72: 0.25 | K72: 0.25 | L72: 0.25 | M72: 0.25 | N72: 0.25 | O72: 0.25 | P72: 0.25 | Q72: 0.25
B73: Ratio company's forecast: Ofwat baseline | C73: =(C71/C72) -> 1.064412304 | D73: % | F73: Cost sharing rate (underperform) | G73: =$C38 -> 0.75 | H73: 0.75 | I73: 0.75 | J73: 0.75 | K73: 0.75 | L73: 0.75 | M73: 0.75 | N73: 0.75 | O73: 0.75 | P73: 0.75 | Q73: 0.75
B74: Cost sharing rate for outperform | C74: =C34 -> 0.25 | D74: % | F74: Actual expenditure: baseline | G74: Total incentive payment or penalty to company (payment as a % of ofwat totex baseline)
B75: Cost sharing rate for underperform | C75: =C38 -> 0.75 | D75: % | F75: =InpOverride!K$203 -> 0.8 | G75: =IF($F75 < G$71, G$72, G$73) * (G$71 - $F75) -> 0.05 | H75: =IF($F75 < H$71, H$72, H$73) * (H$71 - $F75) -> 0.05 | I75: 0.05 | J75: 0.05 | K75: 0.05 | L75: 0.05 | M75: 0.05 | N75: 0.05 | O75: 0.05 | P75: 0.05 | Q75: 0.05
B76: Company outturn expenditure | C76: =N11 -> 882.097 | D76: £m | F76: =InpOverride!L$203 -> 0.85 | G76: =IF($F76 < G$71, G$72, G$73) * (G$71 - $F76) -> 0.0375 | H76: 0.0375 | I76: 0.0375 | J76: 0.0375 | K76: 0.0375 | L76: 0.0375 | M76: 0.0375 | N76: 0.0375 | O76: 0.0375 | P76: 0.0375 | Q76: 0.0375
B77: Incentive payment (+) or penalty (-) | C77: =IF((C76<C72),C74,C75)*(C72-C76) -> -40.03469796 | D77: £m | F77: =InpOverride!M$203 -> 0.9 | G77: 0.025 | H77: 0.025 | I77: 0.025 | J77: 0.025 | K77: 0.025 | L77: 0.025 | M77: 0.025 | N77: 0.025 | O77: 0.025 | P77: 0.025 | Q77: 0.025
B78: Ex-ante allowance above Ofwat forecast | C78: =C71+C77-C72 -> 13.34489932 | D78: £m | F78: =InpOverride!N$203 -> 0.95 | G78: 0.0125 | H78: 0.0125 | I78: 0.0125 | J78: 0.0125 | K78: 0.0125 | L78: 0.0125 | M78: 0.0125 | N78: 0.0125 | O78: 0.0125 | P78: 0.0125 | Q78: 0.0125
F79: =InpOverride!O$203 -> 1 | G79: 0 | H79: 0 | I79: 0 | J79: 0 | K79: 0 | L79: 0 | M79: 0 | N79: 0 | O79: 0 | P79: 0 | Q79: 0
F80: =InpOverride!P$203 -> 1.05 | G80: -0.0375 | H80: -0.0375 | I80: -0.0375 | J80: -0.0375 | K80: -0.0375 | L80: -0.0375 | M80: -0.0375 | N80: -0.0375 | O80: -0.0375 | P80: -0.0375 | Q80: -0.0375
F81: =InpOverride!Q$203 -> 1.1 | G81: -0.075 | H81: -0.075 | I81: -0.075 | J81: -0.075 | K81: -0.075 | L81: -0.075 | M81: -0.075 | N81: -0.075 | O81: -0.075 | P81: -0.075 | Q81: -0.075
F82: =InpOverride!R$203 -> 1.15 | G82: -0.1125 | H82: -0.1125 | I82: -0.1125 | J82: -0.1125 | K82: -0.1125 | L82: -0.1125 | M82: -0.1125 | N82: -0.1125 | O82: -0.1125 | P82: -0.1125 | Q82: -0.1125
F83: =InpOverride!S$203 -> 1.2 | G83: -0.15 | H83: -0.15 | I83: -0.15 | J83: -0.15 | K83: -0.15 | L83: -0.15 | M83: -0.15 | N83: -0.15 | O83: -0.15 | P83: -0.15 | Q83: -0.15
F84: Note: values shaded in blue represent the maximum reward that can be obtained for a given actual expenditure: baseline ratio

Sheet Calc-->

Sheet Dashboard Calcs
A1: =RIGHT(CELL("filename", $A$1), LEN(CELL("filename", $A$1)) - SEARCH("]", CELL("filename", $A$1))) -> Dashboard Calcs
E2: =Time!E$22 -> Model Period BEG
E3: =Time!E$23 -> Model Period END | F3: =Check!F$8 -> 0 | G3: Error chks
E4: =Time!E$59 -> Pre Forecast vs Forecast | F4: =Check!$F$20 -> 36 | G4: Track checks
E5: =Time!E$101 -> Financial Year Ending
E6: =Time!E$11 -> Model column counter | F6: Constant | G6: Unit | H6: Total
A8: CALCULATION
B10: Outperformance flags
E12: =InpOverride!E$203 -> Business plan totex | F12: =InpOverride!F$203 -> 0 | G12: =InpOverride!G$203 -> % | H12: =InpOverride!H$203 -> 0 | I12: =InpOverride!I$203 -> 0 | J12: =InpOverride!J$203 -> 0.75 | K12: =InpOverride!K$203 -> 0.8 | L12: =InpOverride!L$203 -> 0.85 | M12: =InpOverride!M$203 -> 0.9 | N12: =InpOverride!N$203 -> 0.95 | O12: =InpOverride!O$203 -> 1 | P12: =InpOverride!P$203 -> 1.05 | Q12: =InpOverride!Q$203 -> 1.1 | R12: =InpOverride!R$203 -> 1.15 | S12: =InpOverride!S$203 -> 1.2 | T12: =InpOverride!T$203 -> 1.25
E13: =InpOverride!E$152 & " - Range" -> Parameter(s) 1 - Range | F13: =InpOverride!F$152 -> 0.8 | G13: =InpOverride!G$152 -> %
E14: Outperformance flag: less than or equal 80% | G14: Flag | J14: =IF(J12<=$F13,1,0) -> 1 | K14: 1 | L14: 0 | M14: 0 | N14: 0 | O14: 0 | P14: 0 | Q14: 0 | R14: 0 | S14: 0 | T14: 0
E16: =InpOverride!E$203 -> Business plan totex | F16: =InpOverride!F$203 -> 0 | G16: =InpOverride!G$203 -> % | H16: =InpOverride!H$203 -> 0 | I16: =InpOverride!I$203 -> 0 | J16: =InpOverride!J$203 -> 0.75 | K16: =InpOverride!K$203 -> 0.8 | L16: =InpOverride!L$203 -> 0.85 | M16: =InpOverride!M$203 -> 0.9 | N16: =InpOverride!N$203 -> 0.95 | O16: =InpOverride!O$203 -> 1 | P16: =InpOverride!P$203 -> 1.05 | Q16: =InpOverride!Q$203 -> 1.1 | R16: =InpOverride!R$203 -> 1.15 | S16: =InpOverride!S$203 -> 1.2 | T16: =InpOverride!T$203 -> 1.25
E17: =InpOverride!E$154 & " - Range" -> Parameter 2 - Range | F17: =InpOverride!F$154 -> 0.8 | G17: =InpOverride!G$154 -> %
E18: =InpOverride!E$155 & " - Range" -> Parameter 3 - Range | F18: =InpOverride!F$155 -> 0.9 | G18: =InpOverride!G$155 -> %
E19: Outperformance flag: greater than 80% and less than or equal to 90% | G19: Flag | J19: =IF(AND(J16>$F17,J16<=$F18),1,0) -> 0 | K19: 0 | L19: 1 | M19: 1 | N19: 0 | O19: 0 | P19: 0 | Q19: 0 | R19: 0 | S19: 0 | T19: 0
E21: =InpOverride!E$203 -> Business plan totex | F21: =InpOverride!F$203 -> 0 | G21: =InpOverride!G$203 -> % | H21: =InpOverride!H$203 -> 0 | I21: =InpOverride!I$203 -> 0 | J21: =InpOverride!J$203 -> 0.75 | K21: =InpOverride!K$203 -> 0.8 | L21: =InpOverride!L$203 -> 0.85 | M21: =InpOverride!M$203 -> 0.9 | N21: =InpOverride!N$203 -> 0.95 | O21: =InpOverride!O$203 -> 1 | P21: =InpOverride!P$203 -> 1.05 | Q21: =InpOverride!Q$203 -> 1.1 | R21: =InpOverride!R$203 -> 1.15 | S21: =InpOverride!S$203 -> 1.2 | T21: =InpOverride!T$203 -> 1.25
E22: =InpOverride!E$158 & " - Range" -> Parameter 4 - Range | F22: =InpOverride!F$158 -> 0.9 | G22: =InpOverride!G$158 -> %
E23: =InpOverride!E$159 & " - Range" -> Parameter 5 - Range | F23: =InpOverride!F$159 -> 1.1 | G23: =InpOverride!G$159 -> %
E24: Outperformance flag: greater than 90% and less than or equal to 110% | G24: Flag | J24: =IF(AND(J21>$F22,J21<=$F23),1,0) -> 0 | K24: 0 | L24: 0 | M24: 0 | N24: 1 | O24: 1 | P24: 1 | Q24: 1 | R24: 0 | S24: 0 | T24: 0
E26: =InpOverride!E$203 -> Business plan totex | F26: =InpOverride!F$203 -> 0 | G26: =InpOverride!G$203 -> % | H26: =InpOverride!H$203 -> 0 | I26: =InpOverride!I$203 -> 0 | J26: =InpOverride!J$203 -> 0.75 | K26: =InpOverride!K$203 -> 0.8 | L26: =InpOverride!L$203 -> 0.85 | M26: =InpOverride!M$203 -> 0.9 | N26: =InpOverride!N$203 -> 0.95 | O26: =InpOverride!O$203 -> 1 | P26: =InpOverride!P$203 -> 1.05 | Q26: =InpOverride!Q$203 -> 1.1 | R26: =InpOverride!R$203 -> 1.15 | S26: =InpOverride!S$203 -> 1.2 | T26: =InpOverride!T$203 -> 1.25
E27: =InpOverride!E$162 & " - Range" -> Parameter 7 - Range | F27: =InpOverride!F$162 -> 1.1 | G27: =InpOverride!G$162 -> %
E28: =InpOverride!E$163 & " - Range" -> Parameter 8 - Range | F28: =InpOverride!F$163 -> 1.2 | G28: =InpOverride!G$163 -> %
E29: Outperformance flag: greater than 110% and less than or equal to 120% | G29: Flag | J29: =IF(AND(J26>$F27,J26<=$F28),1,0) -> 0 | K29: 0 | L29: 0 | M29: 0 | N29: 0 | O29: 0 | P29: 0 | Q29: 0 | R29: 1 | S29: 1 | T29: 0
E31: =InpOverride!E$203 -> Business plan totex | F31: =InpOverride!F$203 -> 0 | G31: =InpOverride!G$203 -> % | H31: =InpOverride!H$203 -> 0 | I31: =InpOverride!I$203 -> 0 | J31: =InpOverride!J$203 -> 0.75 | K31: =InpOverride!K$203 -> 0.8 | L31: =InpOverride!L$203 -> 0.85 | M31: =InpOverride!M$203 -> 0.9 | N31: =InpOverride!N$203 -> 0.95 | O31: =InpOverride!O$203 -> 1 | P31: =InpOverride!P$203 -> 1.05 | Q31: =InpOverride!Q$203 -> 1.1 | R31: =InpOverride!R$203 -> 1.15 | S31: =InpOverride!S$203 -> 1.2 | T31: =InpOverride!T$203 -> 1.25
E32: =InpOverride!E$166 & " - Range" -> Parameter 10 - Range | F32: =InpOverride!F$166 -> 1.2 | G32: =InpOverride!G$166 -> %
E33: Outperformance flag: greater than120% | G33: Flag | J33: =IF(J31>$F32,1,0) -> 0 | K33: 0 | L33: 0 | M33: 0 | N33: 0 | O33: 0 | P33: 0 | Q33: 0 | R33: 0 | S33: 0 | T33: 1
B35: Outperformance percentages
E37: =E$14 -> Outperformance flag: less than or equal 80% | F37: 0 | G37: Flag | H37: 0 | I37: 0 | J37: 1 | K37: 1 | L37: 0 | M37: 0 | N37: 0 | O37: 0 | P37: 0 | Q37: 0 | R37: 0 | S37: 0 | T37: 0
E38: =InpOverride!E$174 &" - Coefficient" -> Parameter(s) 1 - Coefficient | F38: =InpOverride!F$174 -> 0.65 | G38: =InpOverride!G$174 -> %
E39: Outperformance: less than or equal 80% | J39: =J37 * $F38 -> 0.65 | K39: 0.65 | L39: 0 | M39: 0 | N39: 0 | O39: 0 | P39: 0 | Q39: 0 | R39: 0 | S39: 0 | T39: 0
E41: =E$19 -> Outperformance flag: greater than 80% and less than or equal to 90% | F41: 0 | G41: Flag | H41: 0 | I41: 0 | J41: 0 | K41: 0 | L41: 1 | M41: 1 | N41: 0 | O41: 0 | P41: 0 | Q41: 0 | R41: 0 | S41: 0 | T41: 0
E42: =InpOverride!E$176 &" - Coefficient" -> Parameter 2 - Coefficient | F42: =InpOverride!F$176 -> 0.65 | G42: =InpOverride!G$176 -> %
E43: =InpOverride!E$177 &" - Coefficient" -> Parameter 3 - Coefficient | F43: =InpOverride!F$177 -> 0.5 | G43: =InpOverride!G$177 -> %
E44: =InpOverride!E$178 &" - Coefficient" -> Parameter 4 - Coefficient | F44: =InpOverride!F$178 -> 0.8 | G44: =InpOverride!G$178 -> %
E45: =InpOverride!E$203 -> Business plan totex | F45: =InpOverride!F$203 -> 0 | G45: =InpOverride!G$203 -> % | H45: =InpOverride!H$203 -> 0 | I45: =InpOverride!I$203 -> 0 | J45: =InpOverride!J$203 -> 0.75 | K45: =InpOverride!K$203 -> 0.8 | L45: =InpOverride!L$203 -> 0.85 | M45: =InpOverride!M$203 -> 0.9 | N45: =InpOverride!N$203 -> 0.95 | O45: =InpOverride!O$203 -> 1 | P45: =InpOverride!P$203 -> 1.05 | Q45: =InpOverride!Q$203 -> 1.1 | R45: =InpOverride!R$203 -> 1.15 | S45: =InpOverride!S$203 -> 1.2 | T45: =InpOverride!T$203 -> 1.25
E46: Outperformance: greater than 80% and less than or equal to 90% | J46: =J41 * ($F42 - $F43 * (J45 - $F44)) -> 0 | K46: 0 | L46: 0.625 | M46: 0.6 | N46: 0 | O46: 0 | P46: 0 | Q46: 0 | R46: 0 | S46: 0 | T46: 0
E48: =E$24 -> Outperformance flag: greater than 90% and less than or equal to 110% | F48: 0 | G48: Flag | H48: 0 | I48: 0 | J48: 0 | K48: 0 | L48: 0 | M48: 0 | N48: 1 | O48: 1 | P48: 1 | Q48: 1 | R48: 0 | S48: 0 | T48: 0
E49: =InpOverride!E$180 &" - Coefficient" -> Parameter 4 - Coefficient | F49: =InpOverride!F$180 -> 0.6 | G49: =InpOverride!G$180 -> %
E50: =InpOverride!E$181 &" - Coefficient" -> Parameter 5 - Coefficient | F50: =InpOverride!F$181 -> 1 | G50: =InpOverride!G$181 -> %
E51: =InpOverride!E$182 &" - Coefficient" -> Parameter 6 - Coefficient | F51: =InpOverride!F$182 -> 0.9 | G51: =InpOverride!G$182 -> %
E52: =InpOverride!E$203 -> Business plan totex | F52: =InpOverride!F$203 -> 0 | G52: =InpOverride!G$203 -> % | H52: =InpOverride!H$203 -> 0 | I52: =InpOverride!I$203 -> 0 | J52: =InpOverride!J$203 -> 0.75 | K52: =InpOverride!K$203 -> 0.8 | L52: =InpOverride!L$203 -> 0.85 | M52: =InpOverride!M$203 -> 0.9 | N52: =InpOverride!N$203 -> 0.95 | O52: =InpOverride!O$203 -> 1 | P52: =InpOverride!P$203 -> 1.05 | Q52: =InpOverride!Q$203 -> 1.1 | R52: =InpOverride!R$203 -> 1.15 | S52: =InpOverride!S$203 -> 1.2 | T52: =InpOverride!T$203 -> 1.25
E53: Outperformance: greater than 90% and less than or equal to 110% | J53: =J48 * ($F49 - $F50 * (J52 - $F51)) -> 0 | K53: 0 | L53: 0 | M53: 0 | N53: 0.55 | O53: 0.5 | P53: 0.45 | Q53: 0.4 | R53: 0 | S53: 0 | T53: 0
E55: =E$29 -> Outperformance flag: greater than 110% and less than or equal to 120% | F55: 0 | G55: Flag | H55: 0 | I55: 0 | J55: 0 | K55: 0 | L55: 0 | M55: 0 | N55: 0 | O55: 0 | P55: 0 | Q55: 0 | R55: 1 | S55: 1 | T55: 0
E56: =InpOverride!E$184 &" - Coefficient" -> Parameter 7 - Coefficient | F56: =InpOverride!F$184 -> 0.4 | G56: =InpOverride!G$184 -> %
E57: =InpOverride!E$185 &" - Coefficient" -> Parameter 8 - Coefficient | F57: =InpOverride!F$185 -> 1 | G57: =InpOverride!G$185 -> %
E58: =InpOverride!E$186 &" - Coefficient" -> Parameter 9 - Coefficient | F58: =InpOverride!F$186 -> 1.1 | G58: =InpOverride!G$186 -> %
E59: =InpOverride!E$203 -> Business plan totex | F59: =InpOverride!F$203 -> 0 | G59: =InpOverride!G$203 -> % | H59: =InpOverride!H$203 -> 0 | I59: =InpOverride!I$203 -> 0 | J59: =InpOverride!J$203 -> 0.75 | K59: =InpOverride!K$203 -> 0.8 | L59: =InpOverride!L$203 -> 0.85 | M59: =InpOverride!M$203 -> 0.9 | N59: =InpOverride!N$203 -> 0.95 | O59: =InpOverride!O$203 -> 1 | P59: =InpOverride!P$203 -> 1.05 | Q59: =InpOverride!Q$203 -> 1.1 | R59: =InpOverride!R$203 -> 1.15 | S59: =InpOverride!S$203 -> 1.2 | T59: =InpOverride!T$203 -> 1.25
E60: Outperformance: greater than 110% and less than or equal to 120% | J60: =J55 * ($F56 - $F57 * (J59 - $F58)) -> 0 | K60: 0 | L60: 0 | M60: 0 | N60: 0 | O60: 0 | P60: 0 | Q60: 0 | R60: =R55 * ($F56 - $F57 * (R59 - $F58)) -> 0.35 | S60: =S55 * ($F56 - $F57 * (S59 - $F58)) -> 0.3 | T60: 0
E62: =E$33 -> Outperformance flag: greater than120% | F62: 0 | G62: Flag | H62: 0 | I62: 0 | J62: 0 | K62: 0 | L62: 0 | M62: 0 | N62: 0 | O62: 0 | P62: 0 | Q62: 0 | R62: 0 | S62: 0 | T62: 1
E63: =InpOverride!E$188 &" - Coefficient" -> Parameter 10 - Coefficient | F63: =InpOverride!F$188 -> 0.3 | G63: =InpOverride!G$188 -> %
E64: Outperformance: greater than120% | J64: =J62*$F63 -> 0 | K64: 0 | L64: 0 | M64: 0 | N64: 0 | O64: 0 | P64: 0 | Q64: 0 | R64: 0 | S64: 0 | T64: 0.3
E66: =E$39 -> Outperformance: less than or equal 80% | F66: 0 | G66: 0 | H66: 0 | I66: 0 | J66: 0.65 | K66: 0.65 | L66: 0 | M66: 0 | N66: 0 | O66: 0 | P66: 0 | Q66: 0 | R66: 0 | S66: 0 | T66: 0
E67: =E$46 -> Outperformance: greater than 80% and less than or equal to 90% | F67: 0 | G67: 0 | H67: 0 | I67: 0 | J67: 0 | K67: 0 | L67: 0.625 | M67: 0.6 | N67: 0 | O67: 0 | P67: 0 | Q67: 0 | R67: 0 | S67: 0 | T67: 0
E68: =E$53 -> Outperformance: greater than 90% and less than or equal to 110% | F68: 0 | G68: 0 | H68: 0 | I68: 0 | J68: 0 | K68: 0 | L68: 0 | M68: 0 | N68: 0.55 | O68: 0.5 | P68: 0.45 | Q68: 0.4 | R68: 0 | S68: 0 | T68: 0
E69: =E$60 -> Outperformance: greater than 110% and less than or equal to 120% | F69: 0 | G69: 0 | H69: 0 | I69: 0 | J69: 0 | K69: 0 | L69: 0 | M69: 0 | N69: 0 | O69: 0 | P69: 0 | Q69: 0 | R69: 0.35 | S69: 0.3 | T69: 0
E70: =E$64 -> Outperformance: greater than120% | F70: 0 | G70: 0 | H70: 0 | I70: 0 | J70: 0 | K70: 0 | L70: 0 | M70: 0 | N70: 0 | O70: 0 | P70: 0 | Q70: 0 | R70: 0 | S70: 0 | T70: 0.3
E71: Outperformance summary sharing rates | J71: =SUM(J66:J70) -> 0.65 | K71: 0.65 | L71: 0.625 | M71: 0.6 | N71: 0.55 | O71: 0.5 | P71: 0.45 | Q71: 0.4 | R71: 0.35 | S71: 0.3 | T71: 0.3
B73: Underperformance calculations
E74: =InpOverride!E$203 -> Business plan totex | F74: =InpOverride!F$203 -> 0 | G74: =InpOverride!G$203 -> % | H74: =InpOverride!H$203 -> 0 | I74: =InpOverride!I$203 -> 0 | J74: =InpOverride!J$203 -> 0.75 | K74: =InpOverride!K$203 -> 0.8 | L74: =InpOverride!L$203 -> 0.85 | M74: =InpOverride!M$203 -> 0.9 | N74: =InpOverride!N$203 -> 0.95 | O74: =InpOverride!O$203 -> 1 | P74: =InpOverride!P$203 -> 1.05 | Q74: =InpOverride!Q$203 -> 1.1 | R74: =InpOverride!R$203 -> 1.15 | S74: =InpOverride!S$203 -> 1.2 | T74: =InpOverride!T$203 -> 1.25
E75: =InpOverride!E$170 & " - Range" -> Parameter 11 - Range | F75: =InpOverride!F$170 -> 1 | G75: =InpOverride!G$170 -> %
E76: Underperformance: less than or equal to 100% flag | J76: =IF(J74<=$F75,1,0) -> 1 | K76: 1 | L76: 1 | M76: 1 | N76: 1 | O76: 1 | P76: 0 | Q76: 0 | R76: 0 | S76: 0 | T76: 0
E78: =E$76 -> Underperformance: less than or equal to 100% flag | F78: 0 | G78: 0 | H78: 0 | I78: 0 | J78: 1 | K78: 1 | L78: 1 | M78: 1 | N78: 1 | O78: 1 | P78: 0 | Q78: 0 | R78: 0 | S78: 0 | T78: 0
E79: =InpOverride!E$192 &" - Coefficient" -> Parameter 11 - Coefficient | F79: =InpOverride!F$192 -> 0.5 | G79: =InpOverride!G$192 -> %
E80: Underperformance: totex sharing rate less than to equal to 100% | J80: =J78 * $F79 -> 0.5 | K80: 0.5 | L80: 0.5 | M80: 0.5 | N80: 0.5 | O80: 0.5 | P80: 0 | Q80: 0 | R80: 0 | S80: 0 | T80: 0
E82: =E$76 -> Underperformance: less than or equal to 100% flag | F82: 0 | G82: 0 | H82: 0 | I82: 0 | J82: 1 | K82: 1 | L82: 1 | M82: 1 | N82: 1 | O82: 1 | P82: 0 | Q82: 0 | R82: 0 | S82: 0 | T82: 0
E83: Underperformance: greater than a 100% flag | J83: =1 - J82 -> 0 | K83: 0 | L83: 0 | M83: 0 | N83: 0 | O83: 0 | P83: 1 | Q83: 1 | R83: 1 | S83: 1 | T83: 1
E85: =E$83 -> Underperformance: greater than a 100% flag | F85: 0 | G85: 0 | H85: 0 | I85: 0 | J85: 0 | K85: 0 | L85: 0 | M85: 0 | N85: 0 | O85: 0 | P85: 1 | Q85: 1 | R85: 1 | S85: 1 | T85: 1
E86: =E$71 -> Outperformance summary sharing rates | F86: 0 | G86: 0 | H86: 0 | I86: 0 | J86: 0.65 | K86: 0.65 | L86: 0.625 | M86: 0.6 | N86: 0.55 | O86: 0.5 | P86: 0.45 | Q86: 0.4 | R86: 0.35 | S86: 0.3 | T86: 0.3
E87: Underperformance: totex sharing rate greater than a 100% | J87: =J85 * (1 - J86) -> 0 | K87: 0 | L87: 0 | M87: 0 | N87: 0 | O87: 0 | P87: 0.55 | Q87: 0.6 | R87: 0.65 | S87: 0.7 | T87: 0.7
E89: =E$80 -> Underperformance: totex sharing rate less than to equal to 100% | F89: 0 | G89: 0 | H89: 0 | I89: 0 | J89: 0.5 | K89: 0.5 | L89: 0.5 | M89: 0.5 | N89: 0.5 | O89: 0.5 | P89: 0 | Q89: 0 | R89: 0 | S89: 0 | T89: 0
E90: =E$87 -> Underperformance: totex sharing rate greater than a 100% | F90: 0 | G90: 0 | H90: 0 | I90: 0 | J90: 0 | K90: 0 | L90: 0 | M90: 0 | N90: 0 | O90: 0 | P90: 0.55 | Q90: 0.6 | R90: 0.65 | S90: 0.7 | T90: 0.7
E91: Underperformance summary sharing rates | J91: =SUM(J89:J90) -> 0.5 | K91: 0.5 | L91: 0.5 | M91: 0.5 | N91: 0.5 | O91: 0.5 | P91: 0.55 | Q91: 0.6 | R91: 0.65 | S91: 0.7 | T91: 0.7
A93: WATER RESOURCES AND WATER NETWORK PLUS
E95: ='Ex-ante allowances'!E$70 -> Water Network - Ofwat Baseline Total Gross Totex - Real | F95: ='Ex-ante allowances'!F$70 -> 850.890371 | G95: ='Ex-ante allowances'!G$70 -> £m
E96: ='Ex-ante allowances'!E$17 -> Water Resources - Ofwat Baseline Total Gross Totex - Real | F96: ='Ex-ante allowances'!F$17 -> 73.95245022 | G96: ='Ex-ante allowances'!G$17 -> £m
E97: Water - Ofwat Baseline Total Gross Totex - Real | F97: =SUM(F95:F96) -> 924.8428213 | G97: £m
E99: =InpOverride!E$50 -> Total gross capital expenditure - Water | F99: =InpOverride!F$50 -> 915.255 | G99: =InpOverride!G$50 -> 0
E100: =E$97 -> Water - Ofwat Baseline Total Gross Totex - Real | F100: =F$97 -> 924.8428213 | G100: £m
E101: Example: totex ratio company's forecast: Ofwat baseline | F101: =F99/F100 -> 0.9896330262 | G101: %
E103: =E$101 -> Example: totex ratio company's forecast: Ofwat baseline | F103: =F$101 -> 0.9896330262 | G103: =G$101 -> %
E104: =InpOverride!E$152 & " - Range" -> Parameter(s) 1 - Range | F104: =InpOverride!F$152 -> 0.8 | G104: =InpOverride!G$152 -> %
E105: Example Outperformance flag: less than or equal 80% | F105: =IF(F103<=$F104,1,0) -> 0 | G105: Flag
E107: =E$101 -> Example: totex ratio company's forecast: Ofwat baseline | F107: =F$101 -> 0.9896330262 | G107: %
E108: =InpOverride!E$154 & " - Range" -> Parameter 2 - Range | F108: =InpOverride!F$154 -> 0.8 | G108: =InpOverride!G$154 -> %
E109: =InpOverride!E$155 & " - Range" -> Parameter 3 - Range | F109: =InpOverride!F$155 -> 0.9 | G109: =InpOverride!G$155 -> %
E110: Example Outperformance flag: greater than 80% and less than or equal to 90% | F110: =IF(AND(F107>$F108,F107<=$F109),1,0) -> 0 | G110: Flag
E112: =E$101 -> Example: totex ratio company's forecast: Ofwat baseline | F112: =F$101 -> 0.9896330262 | G112: %
E113: =InpOverride!E$158 & " - Range" -> Parameter 4 - Range | F113: =InpOverride!F$158 -> 0.9 | G113: =InpOverride!G$158 -> %
E114: =InpOverride!E$159 & " - Range" -> Parameter 5 - Range | F114: =InpOverride!F$159 -> 1.1 | G114: =InpOverride!G$159 -> %
E115: Example Outperformance flag: greater than 90% and less than or equal to 110% | F115: =IF(AND(F112>$F113,F112<=$F114),1,0) -> 1 | G115: Flag
E117: =E$101 -> Example: totex ratio company's forecast: Ofwat baseline | F117: =F$101 -> 0.9896330262 | G117: %
E118: =InpOverride!E$162 & " - Range" -> Parameter 7 - Range | F118: =InpOverride!F$162 -> 1.1 | G118: =InpOverride!G$162 -> %
E119: =InpOverride!E$163 & " - Range" -> Parameter 8 - Range | F119: =InpOverride!F$163 -> 1.2 | G119: =InpOverride!G$163 -> %
E120: Example Outperformance flag: greater than 110% and less than or equal to 120% | F120: =IF(AND(F117>$F118,F117<=$F119),1,0) -> 0 | G120: Flag
E122: =E$101 -> Example: totex ratio company's forecast: Ofwat baseline | F122: =F$101 -> 0.9896330262 | G122: %
E123: =InpOverride!E$166 & " - Range" -> Parameter 10 - Range | F123: =InpOverride!F$166 -> 1.2 | G123: =InpOverride!G$166 -> %
E124: Example Outperformance flag: greater than120% | F124: =IF(F122>$F123,1,0) -> 0 | G124: Flag
E127: =E$105 -> Example Outperformance flag: less than or equal 80% | F127: =F$105 -> 0 | G127: Flag
E128: =InpOverride!E$174 &" - Coefficient" -> Parameter(s) 1 - Coefficient | F128: =InpOverride!F$174 -> 0.65 | G128: =InpOverride!G$174 -> %
E129: Example outperformance: less than or equal 80% | F129: =F127 * $F128 -> 0 | G129: %
E131: =E$110 -> Example Outperformance flag: greater than 80% and less than or equal to 90% | F131: =F$110 -> 0 | G131: Flag
E132: =InpOverride!E$176 &" - Coefficient" -> Parameter 2 - Coefficient | F132: =InpOverride!F$176 -> 0.65 | G132: =InpOverride!G$176 -> %
E133: =InpOverride!E$177 &" - Coefficient" -> Parameter 3 - Coefficient | F133: =InpOverride!F$177 -> 0.5 | G133: =InpOverride!G$177 -> %
E134: =InpOverride!E$178 &" - Coefficient" -> Parameter 4 - Coefficient | F134: =InpOverride!F$178 -> 0.8 | G134: =InpOverride!G$178 -> %
E135: =E$101 -> Example: totex ratio company's forecast: Ofwat baseline | F135: =F$101 -> 0.9896330262 | G135: %
E136: Example outperformance: greater than 80% and less than or equal to 90% | F136: =F131 * ($F132 - $F133 * (F135 - $F134)) -> 0 | G136: %
E138: =E$115 -> Example Outperformance flag: greater than 90% and less than or equal to 110% | F138: =F$115 -> 1 | G138: Flag
E139: =InpOverride!E$180 &" - Coefficient" -> Parameter 4 - Coefficient | F139: =InpOverride!F$180 -> 0.6 | G139: =InpOverride!G$180 -> %
E140: =InpOverride!E$181 &" - Coefficient" -> Parameter 5 - Coefficient | F140: =InpOverride!F$181 -> 1 | G140: =InpOverride!G$181 -> %
E141: =InpOverride!E$182 &" - Coefficient" -> Parameter 6 - Coefficient | F141: =InpOverride!F$182 -> 0.9 | G141: =InpOverride!G$182 -> %
E142: =E$101 -> Example: totex ratio company's forecast: Ofwat baseline | F142: =F$101 -> 0.9896330262 | G142: %
E143: Example outperformance: greater than 90% and less than or equal to 110% | F143: =F138 * ($F139 - $F140 * (F142 - $F141)) -> 0.5103669738 | G143: %
E145: =E$120 -> Example Outperformance flag: greater than 110% and less than or equal to 120% | F145: =F$120 -> 0 | G145: Flag
E146: =InpOverride!E$184 &" - Coefficient" -> Parameter 7 - Coefficient | F146: =InpOverride!F$184 -> 0.4 | G146: =InpOverride!G$184 -> %
E147: =InpOverride!E$185 &" - Coefficient" -> Parameter 8 - Coefficient | F147: =InpOverride!F$185 -> 1 | G147: =InpOverride!G$185 -> %
E148: =InpOverride!E$186 &" - Coefficient" -> Parameter 9 - Coefficient | F148: =InpOverride!F$186 -> 1.1 | G148: =InpOverride!G$186 -> %
E149: =E$101 -> Example: totex ratio company's forecast: Ofwat baseline | F149: =F$101 -> 0.9896330262 | G149: =G$101 -> %
E150: Example outperformance: greater than 110% and less than or equal to 120% | F150: =F145 * ($F146 - $F147 * (F149 - $F148)) -> 0 | G150: %
E152: =E$124 -> Example Outperformance flag: greater than120% | F152: =F$124 -> 0 | G152: Flag
E153: =InpOverride!E$188 &" - Coefficient" -> Parameter 10 - Coefficient | F153: =InpOverride!F$188 -> 0.3 | G153: =InpOverride!G$188 -> %
E154: Example outperformance: greater than120% | F154: =F152*$F153 -> 0 | G154: %
E157: =E$129 -> Example outperformance: less than or equal 80% | F157: =F$129 -> 0 | G157: %
E158: =E$136 -> Example outperformance: greater than 80% and less than or equal to 90% | F158: =F$136 -> 0 | G158: %
E159: =E$143 -> Example outperformance: greater than 90% and less than or equal to 110% | F159: =F$143 -> 0.5103669738 | G159: %
E160: =E$150 -> Example outperformance: greater than 110% and less than or equal to 120% | F160: =F$150 -> 0 | G160: %
E161: =E$154 -> Example outperformance: greater than120% | F161: =F$154 -> 0 | G161: %
E162: Actual outperformance cost sharing rate for example | F162: =SUM(F157:F161) -> 0.5103669738 | G162: %
E164: =InpOverride!E146 -> Cost sharing rates Fast track overrides | F164: =InpOverride!F146 -> 1 | G164: =InpOverride!G146 -> 1 = Fast Track company, 0 = Non SS/ST company
E165: =InpOverride!E147 -> Fast track Cost sharing Override rates | F165: =InpOverride!F147 -> 0.5 | G165: =InpOverride!G147 -> %
E166: =E162 -> Actual outperformance cost sharing rate for example | F166: =F162 -> 0.5103669738 | G166: =G162 -> %
E167: Outperformance cost sharing rate | F167: =IF(F164 = 1, F165, F166) -> 0.5 | G167: %
E169: =E167 -> Outperformance cost sharing rate | F169: =F167 -> 0.5 | G169: =G167 -> %
E172: =E$101 -> Example: totex ratio company's forecast: Ofwat baseline | F172: =F$101 -> 0.9896330262 | G172: %
E173: =InpOverride!E$170 & " - Range" -> Parameter 11 - Range | F173: =InpOverride!F$170 -> 1 | G173: =InpOverride!G$170 -> %
E174: Example underperformance: less than or equal to 100% flag | F174: =IF(F172<=$F173,1,0) -> 1 | G174: Flag
E176: =E$174 -> Example underperformance: less than or equal to 100% flag | F176: =F$174 -> 1 | G176: Flag
E177: =InpOverride!E$192 &" - Coefficient" -> Parameter 11 - Coefficient | F177: =InpOverride!F$192 -> 0.5 | G177: =InpOverride!G$192 -> %
E178: Example underperformance: totex sharing rate less than to equal to 100% | F178: =F176 * $F177 -> 0.5 | G178: %
E180: =E$176 -> Example underperformance: less than or equal to 100% flag | F180: =F$176 -> 1 | G180: Flag
E181: Example underperformance: greater than a 100% flag | F181: =1 - F180 -> 0 | G181: Flag
E183: =E$181 -> Example underperformance: greater than a 100% flag | F183: =F$181 -> 0 | G183: Flag
E184: =E$169 -> Outperformance cost sharing rate | F184: =F$169 -> 0.5 | G184: %
E185: Example underperformance: totex sharing rate greater than a 100% | F185: =F183 * (1 - F184) -> 0 | G185: %
E187: =E$178 -> Example underperformance: totex sharing rate less than to equal to 100% | F187: =F$178 -> 0.5 | G187: %
E188: =E$185 -> Example underperformance: totex sharing rate greater than a 100% | F188: =F$185 -> 0 | G188: %
E189: Example underperformance summary sharing rates | F189: =SUM(F187:F188) -> 0.5 | G189: %
A191: WASTEWATER NETWORK PLUS
E193: ='Ex-ante allowances'!E$123 -> Wastewater Network - Total Expenditure | F193: ='Ex-ante allowances'!F$123 -> 882.097 | G193: ='Ex-ante allowances'!G$123 -> £m
E194: ='Ex-ante allowances'!E$127 -> Wastewater Network - Ofwat Baseline Total Gross Totex - Real | F194: ='Ex-ante allowances'!F$127 -> 828.7174027 | G194: ='Ex-ante allowances'!G$127 -> £m
E195: Example: totex ratio company's forecast: Ofwat baseline | F195: =IF(F194 = 0,0, F193/F194) -> 1.064412304 | G195: %
E197: =E$195 -> Example: totex ratio company's forecast: Ofwat baseline | F197: =F$195 -> 1.064412304 | G197: =G$195 -> %
E198: =InpOverride!E$152 & " - Range" -> Parameter(s) 1 - Range | F198: =InpOverride!F$152 -> 0.8 | G198: =InpOverride!G$152 -> %
E199: Example Outperformance flag: less than or equal 80% | F199: =IF(F197<=$F198,1,0) -> 0 | G199: Flag
E201: =E$195 -> Example: totex ratio company's forecast: Ofwat baseline | F201: =F$195 -> 1.064412304 | G201: %
E202: =InpOverride!E$154 & " - Range" -> Parameter 2 - Range | F202: =InpOverride!F$154 -> 0.8 | G202: =InpOverride!G$154 -> %
E203: =InpOverride!E$155 & " - Range" -> Parameter 3 - Range | F203: =InpOverride!F$155 -> 0.9 | G203: =InpOverride!G$155 -> %
E204: Example Outperformance flag: greater than 80% and less than or equal to 90% | F204: =IF(AND(F201>$F202,F201<=$F203),1,0) -> 0 | G204: Flag
E206: =E$195 -> Example: totex ratio company's forecast: Ofwat baseline | F206: =F$195 -> 1.064412304 | G206: %
E207: =InpOverride!E$158 & " - Range" -> Parameter 4 - Range | F207: =InpOverride!F$158 -> 0.9 | G207: =InpOverride!G$158 -> %
E208: =InpOverride!E$159 & " - Range" -> Parameter 5 - Range | F208: =InpOverride!F$159 -> 1.1 | G208: =InpOverride!G$159 -> %
E209: Example Outperformance flag: greater than 90% and less than or equal to 110% | F209: =IF(AND(F206>$F207,F206<=$F208),1,0) -> 1 | G209: Flag
E211: =E$195 -> Example: totex ratio company's forecast: Ofwat baseline | F211: =F$195 -> 1.064412304 | G211: %
E212: =InpOverride!E$162 & " - Range" -> Parameter 7 - Range | F212: =InpOverride!F$162 -> 1.1 | G212: =InpOverride!G$162 -> %
E213: =InpOverride!E$163 & " - Range" -> Parameter 8 - Range | F213: =InpOverride!F$163 -> 1.2 | G213: =InpOverride!G$163 -> %
E214: Example Outperformance flag: greater than 110% and less than or equal to 120% | F214: =IF(AND(F211>$F212,F211<=$F213),1,0) -> 0 | G214: Flag
E216: =E$195 -> Example: totex ratio company's forecast: Ofwat baseline | F216: =F$195 -> 1.064412304 | G216: %
E217: =InpOverride!E$166 & " - Range" -> Parameter 10 - Range | F217: =InpOverride!F$166 -> 1.2 | G217: =InpOverride!G$166 -> %
E218: Example Outperformance flag: greater than120% | F218: =IF(F216>$F217,1,0) -> 0 | G218: Flag
E221: =E$199 -> Example Outperformance flag: less than or equal 80% | F221: =F$199 -> 0 | G221: Flag
E222: =InpOverride!E$174 &" - Coefficient" -> Parameter(s) 1 - Coefficient | F222: =InpOverride!F$174 -> 0.65 | G222: =InpOverride!G$174 -> %
E223: Example outperformance: less than or equal 80% | F223: =F221 * $F222 -> 0 | G223: %
E225: =E$204 -> Example Outperformance flag: greater than 80% and less than or equal to 90% | F225: =F$204 -> 0 | G225: Flag
E226: =InpOverride!E$176 &" - Coefficient" -> Parameter 2 - Coefficient | F226: =InpOverride!F$176 -> 0.65 | G226: =InpOverride!G$176 -> %
E227: =InpOverride!E$177 &" - Coefficient" -> Parameter 3 - Coefficient | F227: =InpOverride!F$177 -> 0.5 | G227: =InpOverride!G$177 -> %
E228: =InpOverride!E$178 &" - Coefficient" -> Parameter 4 - Coefficient | F228: =InpOverride!F$178 -> 0.8 | G228: =InpOverride!G$178 -> %
E229: =E$195 -> Example: totex ratio company's forecast: Ofwat baseline | F229: =F$195 -> 1.064412304 | G229: %
E230: Example outperformance: greater than 80% and less than or equal to 90% | F230: =F225 * ($F226 - $F227 * (F229 - $F228)) -> 0 | G230: %
E232: =E$209 -> Example Outperformance flag: greater than 90% and less than or equal to 110% | F232: =F$209 -> 1 | G232: Flag
E233: =InpOverride!E$180 &" - Coefficient" -> Parameter 4 - Coefficient | F233: =InpOverride!F$180 -> 0.6 | G233: =InpOverride!G$180 -> %
E234: =InpOverride!E$181 &" - Coefficient" -> Parameter 5 - Coefficient | F234: =InpOverride!F$181 -> 1 | G234: =InpOverride!G$181 -> %
E235: =InpOverride!E$182 &" - Coefficient" -> Parameter 6 - Coefficient | F235: =InpOverride!F$182 -> 0.9 | G235: =InpOverride!G$182 -> %
E236: =E$195 -> Example: totex ratio company's forecast: Ofwat baseline | F236: =F$195 -> 1.064412304 | G236: %
E237: Example outperformance: greater than 90% and less than or equal to 110% | F237: =F232 * ($F233 - $F234 * (F236 - $F235)) -> 0.435587696 | G237: %
E239: =E$214 -> Example Outperformance flag: greater than 110% and less than or equal to 120% | F239: =F$214 -> 0 | G239: Flag
E240: =InpOverride!E$184 &" - Coefficient" -> Parameter 7 - Coefficient | F240: =InpOverride!F$184 -> 0.4 | G240: =InpOverride!G$184 -> %
E241: =InpOverride!E$185 &" - Coefficient" -> Parameter 8 - Coefficient | F241: =InpOverride!F$185 -> 1 | G241: =InpOverride!G$185 -> %
E242: =InpOverride!E$186 &" - Coefficient" -> Parameter 9 - Coefficient | F242: =InpOverride!F$186 -> 1.1 | G242: =InpOverride!G$186 -> %
E243: =E$195 -> Example: totex ratio company's forecast: Ofwat baseline | F243: =F$195 -> 1.064412304 | G243: %
E244: Example outperformance: greater than 110% and less than or equal to 120% | F244: =F239 * ($F240 - $F241 * (F243 - $F242)) -> 0 | G244: %
E246: =E$218 -> Example Outperformance flag: greater than120% | F246: =F$218 -> 0 | G246: Flag
E247: =InpOverride!E$188 &" - Coefficient" -> Parameter 10 - Coefficient | F247: =InpOverride!F$188 -> 0.3 | G247: =InpOverride!G$188 -> %
E248: Example outperformance: greater than120% | F248: =F246*$F247 -> 0 | G248: %
E250: =E$223 -> Example outperformance: less than or equal 80% | F250: =F$223 -> 0 | G250: %
E251: =E$230 -> Example outperformance: greater than 80% and less than or equal to 90% | F251: =F$230 -> 0 | G251: %
E252: =E$237 -> Example outperformance: greater than 90% and less than or equal to 110% | F252: =F$237 -> 0.435587696 | G252: %
E253: =E$244 -> Example outperformance: greater than 110% and less than or equal to 120% | F253: =F$244 -> 0 | G253: %
E254: =E$248 -> Example outperformance: greater than120% | F254: =F$248 -> 0 | G254: %
E255: Actual outperformance cost sharing rate for example | F255: =SUM(F250:F254) -> 0.435587696 | G255: %
E257: =InpOverride!E146 -> Cost sharing rates Fast track overrides | F257: =InpOverride!F146 -> 1 | G257: =InpOverride!G146 -> 1 = Fast Track company, 0 = Non SS/ST company
E258: =InpOverride!E147 -> Fast track Cost sharing Override rates | F258: =InpOverride!F147 -> 0.5 | G258: =InpOverride!G147 -> %
... 18 more rows

Sheet Ex-ante allowances
A1: =RIGHT(CELL("filename", $A$1), LEN(CELL("filename", $A$1)) - SEARCH("]", CELL("filename", $A$1))) -> Ex-ante allowances
E2: =Time!E$22 -> Model Period BEG | J2: =Time!J$22 -> 2019-04-01 | K2: =Time!K$22 -> 2020-04-01 | L2: =Time!L$22 -> 2021-04-01 | M2: =Time!M$22 -> 2022-04-01 | N2: =Time!N$22 -> 2023-04-01 | O2: =Time!O$22 -> 2024-04-01 | P2: =Time!P$22 -> 2025-04-01
E3: =Time!E$23 -> Model Period END | F3: =Check!F$8 -> 0 | G3: Error chks | J3: =Time!J$23 -> 2020-03-31 | K3: =Time!K$23 -> 2021-03-31 | L3: =Time!L$23 -> 2022-03-31 | M3: =Time!M$23 -> 2023-03-31 | N3: =Time!N$23 -> 2024-03-31 | O3: =Time!O$23 -> 2025-03-31 | P3: =Time!P$23 -> 2026-03-31
E4: =Time!E$59 -> Pre Forecast vs Forecast | F4: =Check!$F$20 -> 36 | G4: Track checks | J4: =Time!J$59 -> Pre Fcst | K4: =Time!K$59 -> Forecast | L4: =Time!L$59 -> Forecast | M4: =Time!M$59 -> Forecast | N4: =Time!N$59 -> Forecast | O4: =Time!O$59 -> Forecast | P4: =Time!P$59 -> Post-Fcst
E5: =Time!E$101 -> Financial Year Ending | J5: =Time!J$101 -> 2020 | K5: =Time!K$101 -> 2021 | L5: =Time!L$101 -> 2022 | M5: =Time!M$101 -> 2023 | N5: =Time!N$101 -> 2024 | O5: =Time!O$101 -> 2025 | P5: =Time!P$101 -> 2026
E6: =Time!E$11 -> Model column counter | F6: Constant | G6: Unit | H6: Total | J6: =Time!J$11 -> 1 | K6: =Time!K$11 -> 2 | L6: =Time!L$11 -> 3 | M6: =Time!M$11 -> 4 | N6: =Time!N$11 -> 5 | O6: =Time!O$11 -> 6 | P6: =Time!P$11 -> 7
A8: EX-ANTE ALLOWANCES
B10: Water Resources
E11: =InpOverride!E$30 -> Water resources company view of capex - for cost sharing model | F11: =InpOverride!F$30 -> 0 | G11: =InpOverride!G$30 -> £m | H11: =InpOverride!H$30 -> 23.714 | I11: =InpOverride!I$30 -> 0 | J11: =InpOverride!J$30 -> 0 | K11: =InpOverride!K$30 -> 5.483 | L11: =InpOverride!L$30 -> 6.041 | M11: =InpOverride!M$30 -> 4.95 | N11: =InpOverride!N$30 -> 3.775 | O11: =InpOverride!O$30 -> 3.465 | P11: =InpOverride!P$30 -> 0
E12: =InpOverride!E$31 -> Water resources company view of opex - for cost sharing model | F12: =InpOverride!F$31 -> 0 | G12: =InpOverride!G$31 -> £m | H12: =InpOverride!H$31 -> 55.841 | I12: =InpOverride!I$31 -> 0 | J12: =InpOverride!J$31 -> 0 | K12: =InpOverride!K$31 -> 11.085 | L12: =InpOverride!L$31 -> 11.149 | M12: =InpOverride!M$31 -> 11.166 | N12: =InpOverride!N$31 -> 11.199 | O12: =InpOverride!O$31 -> 11.242 | P12: =InpOverride!P$31 -> 0
E13: Water Resources - Total Expenditure | F13: =SUM(H11:H12) -> 79.555 | G13: £m
E15: =InpOverride!E$28 -> Final cost allowance for cost sharing for Water Resources | F15: =InpOverride!F$28 -> 0 | G15: =InpOverride!G$28 -> £m | H15: =InpOverride!H$28 -> 73.95245022 | I15: =InpOverride!I$28 -> 0 | J15: =InpOverride!J$28 -> 0 | K15: =InpOverride!K$28 -> 14.79049004 | L15: =InpOverride!L$28 -> 14.79049004 | M15: =InpOverride!M$28 -> 14.79049004 | N15: =InpOverride!N$28 -> 14.79049004 | O15: =InpOverride!O$28 -> 14.79049004 | P15: =InpOverride!P$28 -> 0
E16: =InpOverride!E34 -> WR operating lease adjustment | F16: =InpOverride!F34 -> 0 | G16: =InpOverride!G34 -> £m | H16: =InpOverride!H34 -> 0 | I16: =InpOverride!I34 -> 0 | J16: =InpOverride!J34 -> 0 | K16: =InpOverride!K34 -> 0 | L16: =InpOverride!L34 -> 0 | M16: =InpOverride!M34 -> 0 | N16: =InpOverride!N34 -> 0 | O16: =InpOverride!O34 -> 0 | P16: =InpOverride!P34 -> 0
E17: Water Resources - Ofwat Baseline Total Gross Totex - Real | F17: =SUM($H$15:$H$16) -> 73.95245022 | G17: £m
E19: =InpOverride!E$30 -> Water resources company view of capex - for cost sharing model | G19: £m | H19: =SUM(K19:O19) -> 23.714 | J19: =InpOverride!J$30 -> 0 | K19: =InpOverride!K$30 -> 5.483 | L19: =InpOverride!L$30 -> 6.041 | M19: =InpOverride!M$30 -> 4.95 | N19: =InpOverride!N$30 -> 3.775 | O19: =InpOverride!O$30 -> 3.465 | P19: =InpOverride!P$30 -> 0
E20: =InpOverride!E$31 -> Water resources company view of opex - for cost sharing model | G20: £m | H20: =SUM(K20:O20) -> 55.841 | J20: =InpOverride!J$31 -> 0 | K20: =InpOverride!K$31 -> 11.085 | L20: =InpOverride!L$31 -> 11.149 | M20: =InpOverride!M$31 -> 11.166 | N20: =InpOverride!N$31 -> 11.199 | O20: =InpOverride!O$31 -> 11.242 | P20: =InpOverride!P$31 -> 0
E21: [Company outturn totex - Water Resources] | F21: =SUM(H19:H20) -> 79.555 | G21: £m
D23: Ex-ante allowance
E24: =E$13 -> Water Resources - Total Expenditure | F24: =F$13 -> 79.555 | G24: =G$13 -> £m
E25: =E$17 -> Water Resources - Ofwat Baseline Total Gross Totex - Real | F25: =F$17 -> 73.95245022 | G25: =G$17 -> £m
E26: Ratio company's forecast: Ofwat baseline | F26: =(F24/F25) -> 1.075758812 | G26: %
E27: ='Dashboard Calcs'!E$169 -> Outperformance cost sharing rate | F27: ='Dashboard Calcs'!F$169 -> 0.5 | G27: ='Dashboard Calcs'!G$169 -> %
E28: ='Dashboard Calcs'!E$189 -> Example underperformance summary sharing rates | F28: ='Dashboard Calcs'!F$189 -> 0.5 | G28: ='Dashboard Calcs'!G$189 -> %
E29: =E$21 -> [Company outturn totex - Water Resources] | F29: =F$21 -> 79.555 | G29: =G$21 -> £m
E30: Incentive payment (+) or penalty (-) | F30: =IF(( F29 < F25), F27, F28) * (F25 - F29) -> -2.801274891 | G30: £m
E31: Ex-ante allowance above Ofwat forecast | F31: =F24+F30-F25 -> 2.801274891 | G31: £m
D33: Ex-ante allowance - significant scrutiny
E34: =E$13 -> Water Resources - Total Expenditure | F34: =F$13 -> 79.555 | G34: =G$13 -> £m
E35: =E$17 -> Water Resources - Ofwat Baseline Total Gross Totex - Real | F35: =F$17 -> 73.95245022 | G35: £m
E36: Ratio company's forecast: Ofwat baseline | F36: =(F34/F35) -> 1.075758812 | G36: %
E37: =InpOverride!E$196 -> Cost sharing rate | F37: =InpOverride!F$196 -> 0.25 | G37: =InpOverride!G$196 -> %
E38: =InpOverride!E$199 -> Cost Sharing rate | F38: =InpOverride!F$199 -> 0.75 | G38: =InpOverride!G$199 -> %
E39: =E$21 -> [Company outturn totex - Water Resources] | F39: =F$21 -> 79.555 | G39: =G$21 -> £m
E40: Incentive payment (+) or penalty (-) - significant scrutiny | F40: =IF(( F39 < F35), F37, F38) * (F35 - F39) -> -4.201912336 | G40: £m
E41: Ex-ante allowance above Ofwat forecast - significant scrutiny | F41: =F34+F40-F35 -> 1.400637445 | G41: £m
E43: =InpOverride!E$144 -> Company IAP classification | F43: =InpOverride!F$144 -> Not Significant Scrutiny | G43: =InpOverride!G$144 -> text
E44: =E$31 -> Ex-ante allowance above Ofwat forecast | F44: =F$31 -> 2.801274891 | G44: =G$31 -> £m
E45: =E$41 -> Ex-ante allowance above Ofwat forecast - significant scrutiny | F45: =F$41 -> 1.400637445 | G45: =G$41 -> £m
E46: Ex-ante allowance above Ofwat forecast | F46: =IF(F43 = "Not Significant Scrutiny",F44, F45) -> 2.801274891 | G46: £m
E48: =InpOverride!E$84 -> Cost allowance override switch - Water | F48: =InpOverride!F$84 -> 3 | G48: =InpOverride!G$84 -> 1 = model calculated, 2 = Override, 3 = Off
E49: =E$46 -> Ex-ante allowance above Ofwat forecast | F49: =F$46 -> 2.801274891 | G49: =G$46 -> £m
E50: Ex-ante allowance above Ofwat forecast - Active | F50: =IF(F48 = 3, 0, F49) -> 0 | G50: £m
D52: Total Cost allowance
E53: =E$17 -> Water Resources - Ofwat Baseline Total Gross Totex - Real | F53: =F$17 -> 73.95245022 | G53: £m
E54: =E$46 -> Ex-ante allowance above Ofwat forecast | F54: =F$46 -> 2.801274891 | G54: =G$46 -> £m
E55: Water resources - total cost allowance including ex-ante cost sharing | F55: =F53 + F54 -> 76.75372511 | G55: £m
E57: =InpOverride!E$84 -> Cost allowance override switch - Water | F57: =InpOverride!F$84 -> 3 | G57: =InpOverride!G$84 -> 1 = model calculated, 2 = Override, 3 = Off
E58: =E$55 -> Water resources - total cost allowance including ex-ante cost sharing | F58: =F$55 -> 76.75372511 | G58: £m
E59: =InpOverride!E$86 -> Water resources - total cost allowance including ex-ante cost sharing - Override | F59: =InpOverride!F$86 -> 0 | G59: =InpOverride!G$86 -> £m
E60: =E$17 -> Water Resources - Ofwat Baseline Total Gross Totex - Real | F60: =F$17 -> 73.95245022 | G60: £m
E61: Water resources - total cost allowance including ex-ante cost sharing - active | F61: =CHOOSE($F$57,F58,F59,F60) -> 73.95245022 | G61: £m
B63: Water Network
E64: =InpOverride!E$39 -> Water network company view of capex - for cost sharing model | F64: =InpOverride!F$39 -> 0 | G64: =InpOverride!G$39 -> £m | H64: =InpOverride!H$39 -> 440.667 | I64: =InpOverride!I$39 -> 0 | J64: =InpOverride!J$39 -> 0 | K64: =InpOverride!K$39 -> 68.813 | L64: =InpOverride!L$39 -> 83.796 | M64: =InpOverride!M$39 -> 103.568 | N64: =InpOverride!N$39 -> 95.089 | O64: =InpOverride!O$39 -> 89.401 | P64: =InpOverride!P$39 -> 0
E65: =InpOverride!E$40 -> Water network company view of opex - for cost sharing model | F65: =InpOverride!F$40 -> 0 | G65: =InpOverride!G$40 -> £m | H65: =InpOverride!H$40 -> 395.033 | I65: =InpOverride!I$40 -> 0 | J65: =InpOverride!J$40 -> 0 | K65: =InpOverride!K$40 -> 79.279 | L65: =InpOverride!L$40 -> 79.606 | M65: =InpOverride!M$40 -> 79.357 | N65: =InpOverride!N$40 -> 78.55 | O65: =InpOverride!O$40 -> 78.241 | P65: =InpOverride!P$40 -> 0
E66: Water Network - Total Expenditure | F66: =SUM(H64:H65) -> 835.7 | G66: £m
E68: =InpOverride!E$37 -> Final cost allowance for cost sharing for Network Plus Water | F68: =InpOverride!F$37 -> 0 | G68: =InpOverride!G$37 -> £m | H68: =InpOverride!H$37 -> 854.2230211 | I68: =InpOverride!I$37 -> 0 | J68: =InpOverride!J$37 -> 0 | K68: =InpOverride!K$37 -> 170.8446042 | L68: =InpOverride!L$37 -> 170.8446042 | M68: =InpOverride!M$37 -> 170.8446042 | N68: =InpOverride!N$37 -> 170.8446042 | O68: =InpOverride!O$37 -> 170.8446042 | P68: =InpOverride!P$37 -> 0
E69: =InpOverride!E43 -> WN operating lease adjustment | F69: =InpOverride!F43 -> 0 | G69: =InpOverride!G43 -> £m | H69: =InpOverride!H43 -> -3.332650016 | I69: =InpOverride!I43 -> 0 | J69: =InpOverride!J43 -> 0 | K69: =InpOverride!K43 -> -0.7660553323 | L69: =InpOverride!L43 -> -0.699247295 | M69: =InpOverride!M43 -> -0.654095085 | N69: =InpOverride!N43 -> -0.6226027098 | O69: =InpOverride!O43 -> -0.5906495937 | P69: =InpOverride!P43 -> 0
E70: Water Network - Ofwat Baseline Total Gross Totex - Real | F70: =SUM($H$68:$H$69) -> 850.890371 | G70: £m
E72: =InpOverride!E$39 -> Water network company view of capex - for cost sharing model | F72: =InpOverride!F$39 -> 0 | G72: =InpOverride!G$39 -> £m | H72: =InpOverride!H$39 -> 440.667 | I72: =InpOverride!I$39 -> 0 | J72: =InpOverride!J$39 -> 0 | K72: =InpOverride!K$39 -> 68.813 | L72: =InpOverride!L$39 -> 83.796 | M72: =InpOverride!M$39 -> 103.568 | N72: =InpOverride!N$39 -> 95.089 | O72: =InpOverride!O$39 -> 89.401 | P72: =InpOverride!P$39 -> 0
E73: =InpOverride!E$40 -> Water network company view of opex - for cost sharing model | F73: =InpOverride!F$40 -> 0 | G73: =InpOverride!G$40 -> £m | H73: =InpOverride!H$40 -> 395.033 | I73: =InpOverride!I$40 -> 0 | J73: =InpOverride!J$40 -> 0 | K73: =InpOverride!K$40 -> 79.279 | L73: =InpOverride!L$40 -> 79.606 | M73: =InpOverride!M$40 -> 79.357 | N73: =InpOverride!N$40 -> 78.55 | O73: =InpOverride!O$40 -> 78.241 | P73: =InpOverride!P$40 -> 0
E74: [Company outturn totex - Water Network] | F74: =SUM(H72:H73) -> 835.7 | G74: £m
E76: =E$21 -> [Company outturn totex - Water Resources] | F76: =F$21 -> 79.555 | G76: =G$21 -> £m
E77: =E$74 -> [Company outturn totex - Water Network] | F77: =F$74 -> 835.7 | G77: =G$74 -> £m
E78: Company outturn totex of - Water | F78: =SUM(F76:F77) -> 915.255 | G78: £m
D80: Ex-ante allowance
E81: =E$66 -> Water Network - Total Expenditure | F81: =F$66 -> 835.7 | G81: =G$66 -> £m
E82: =E$70 -> Water Network - Ofwat Baseline Total Gross Totex - Real | F82: =F$70 -> 850.890371 | G82: =G$70 -> £m
E83: Ratio company's forecast: Ofwat baseline | F83: =(F81/F82) -> 0.9821476755 | G83: %
E84: ='Dashboard Calcs'!E$169 -> Outperformance cost sharing rate | F84: ='Dashboard Calcs'!F$169 -> 0.5 | G84: ='Dashboard Calcs'!G$169 -> %
E85: ='Dashboard Calcs'!E$189 -> Example underperformance summary sharing rates | F85: ='Dashboard Calcs'!F$189 -> 0.5 | G85: ='Dashboard Calcs'!G$189 -> %
E86: =E$74 -> [Company outturn totex - Water Network] | F86: =F$74 -> 835.7 | G86: =G$74 -> £m
E87: Incentive payment (+) or penalty (-) - Water Network | F87: =IF(( F86 < F82), F84, F85) * (F82 - F86) -> 7.595185525 | G87: £m
E88: Ex-ante allowance above Ofwat forecast - Water Network | F88: =F81+F87-F82 -> -7.595185525 | G88: £m
D90: Ex-ante allowance - significant scrutiny
E91: =E$66 -> Water Network - Total Expenditure | F91: =F$66 -> 835.7 | G91: =G$66 -> £m
E92: =E$70 -> Water Network - Ofwat Baseline Total Gross Totex - Real | F92: =F$70 -> 850.890371 | G92: =G$70 -> £m
E93: Ratio company's forecast: Ofwat baseline | F93: =(F91/F92) -> 0.9821476755 | G93: %
E94: =InpOverride!E$196 -> Cost sharing rate | F94: =InpOverride!F$196 -> 0.25 | G94: =InpOverride!G$196 -> %
E95: =InpOverride!E$199 -> Cost Sharing rate | F95: =InpOverride!F$199 -> 0.75 | G95: =InpOverride!G$199 -> %
E96: =E$74 -> [Company outturn totex - Water Network] | F96: =F$74 -> 835.7 | G96: =G$74 -> £m
E97: Incentive payment (+) or penalty (-) - significant scrutiny - Water Network | F97: =IF(( F96 < F92), F94, F95) * (F92 - F96) -> 3.797592762 | G97: £m
E98: Ex-ante allowance above Ofwat forecast - significant scrutiny - Water Network | F98: =F91+F97-F92 -> -11.39277829 | G98: £m
E100: =InpOverride!E$144 -> Company IAP classification | F100: =InpOverride!F$144 -> Not Significant Scrutiny | G100: =InpOverride!G$144 -> text
E101: =E$88 -> Ex-ante allowance above Ofwat forecast - Water Network | F101: =F$88 -> -7.595185525 | G101: =G$88 -> £m
E102: =E$98 -> Ex-ante allowance above Ofwat forecast - significant scrutiny - Water Network | F102: =F$98 -> -11.39277829 | G102: =G$98 -> £m
E103: Ex-ante allowance above Ofwat forecast - Water Network | F103: =IF(F100 = "Not Significant Scrutiny",F101, F102) -> -7.595185525 | G103: £m
E105: =InpOverride!E$84 -> Cost allowance override switch - Water | F105: =InpOverride!F$84 -> 3 | G105: =InpOverride!G$84 -> 1 = model calculated, 2 = Override, 3 = Off
E106: =E$103 -> Ex-ante allowance above Ofwat forecast - Water Network | F106: =F$103 -> -7.595185525 | G106: =G$103 -> £m
E107: Ex-ante allowance above Ofwat forecast - Active - Water Network | F107: =IF(F105 = 3, 0, F106) -> 0 | G107: £m
D109: Total Cost allowance
E110: =E$70 -> Water Network - Ofwat Baseline Total Gross Totex - Real | F110: =F$70 -> 850.890371 | G110: =G$70 -> £m
E111: =E$103 -> Ex-ante allowance above Ofwat forecast - Water Network | F111: -7.595185525 | G111: £m
E112: Water network - total cost allowance including ex-ante cost sharing | F112: =F110 + F111 -> 843.2951855 | G112: £m
E114: =InpOverride!E$84 -> Cost allowance override switch - Water | F114: =InpOverride!F$84 -> 3 | G114: =InpOverride!G$84 -> 1 = model calculated, 2 = Override, 3 = Off
E115: =E$112 -> Water network - total cost allowance including ex-ante cost sharing | F115: =F$112 -> 843.2951855 | G115: =G$112 -> £m
E116: =InpOverride!E$88 -> Water network - total cost allowance including ex-ante cost sharing - Override | F116: =InpOverride!F$88 -> 0 | G116: =InpOverride!G$88 -> £m
E117: =E$70 -> Water Network - Ofwat Baseline Total Gross Totex - Real | F117: =F$70 -> 850.890371 | G117: =G$70 -> £m
E118: Water network - total cost allowance including ex-ante cost sharing - active | F118: =CHOOSE($F$114,F115,F116,F117) -> 850.890371 | G118: £m
B120: WasteWater Network
E121: =InpOverride!E$56 -> Wastewater network company view of opex - for cost sharing model | F121: =InpOverride!F$56 -> 0 | G121: =InpOverride!G$56 -> £m | H121: =InpOverride!H$56 -> 395.243 | I121: =InpOverride!I$56 -> 0 | J121: =InpOverride!J$56 -> 0 | K121: =InpOverride!K$56 -> 80.499 | L121: =InpOverride!L$56 -> 80.118 | M121: =InpOverride!M$56 -> 79.535 | N121: =InpOverride!N$56 -> 77.992 | O121: =InpOverride!O$56 -> 77.099 | P121: =InpOverride!P$56 -> 0
E122: =InpOverride!E$55 -> Wastewater network company view of capex - for cost sharing model | F122: =InpOverride!F$55 -> 0 | G122: =InpOverride!G$55 -> £m | H122: =InpOverride!H$55 -> 486.854 | I122: =InpOverride!I$55 -> 0 | J122: =InpOverride!J$55 -> 0 | K122: =InpOverride!K$55 -> 111.445 | L122: =InpOverride!L$55 -> 108.18 | M122: =InpOverride!M$55 -> 92.908 | N122: =InpOverride!N$55 -> 93.127 | O122: =InpOverride!O$55 -> 81.194 | P122: =InpOverride!P$55 -> 0
E123: Wastewater Network - Total Expenditure | F123: =SUM(H121:H122) -> 882.097 | G123: £m
E125: =InpOverride!E$53 -> Efficient totex for cost sharing network plus wastewater £m | F125: =InpOverride!F$53 -> 0 | G125: =InpOverride!G$53 -> £m | H125: =InpOverride!H$53 -> 832.0247498 | I125: =InpOverride!I$53 -> 0 | J125: =InpOverride!J$53 -> 0 | K125: =InpOverride!K$53 -> 166.40495 | L125: =InpOverride!L$53 -> 166.40495 | M125: =InpOverride!M$53 -> 166.40495 | N125: =InpOverride!N$53 -> 166.40495 | O125: =InpOverride!O$53 -> 166.40495 | P125: =InpOverride!P$53 -> 0
E126: =InpOverride!E$59 -> WWN operating lease adjustment | F126: =InpOverride!F$59 -> 0 | G126: =InpOverride!G$59 -> £m | H126: =InpOverride!H$59 -> -3.307347133 | I126: =InpOverride!I$59 -> 0 | J126: =InpOverride!J$59 -> 0 | K126: =InpOverride!K$59 -> -0.7572613297 | L126: =InpOverride!L$59 -> -0.693554644 | M126: =InpOverride!M$59 -> -0.6494887816 | N126: =InpOverride!N$59 -> -0.6181299892 | O126: =InpOverride!O$59 -> -0.588912389 | P126: =InpOverride!P$59 -> 0
E127: Wastewater Network - Ofwat Baseline Total Gross Totex - Real | F127: =SUM($H$125:$H$126) -> 828.7174027 | G127: £m
E129: =InpOverride!E$56 -> Wastewater network company view of opex - for cost sharing model | F129: =InpOverride!F$56 -> 0 | G129: =InpOverride!G$56 -> £m | H129: =InpOverride!H$56 -> 395.243 | I129: =InpOverride!I$56 -> 0 | J129: =InpOverride!J$56 -> 0 | K129: =InpOverride!K$56 -> 80.499 | L129: =InpOverride!L$56 -> 80.118 | M129: =InpOverride!M$56 -> 79.535 | N129: =InpOverride!N$56 -> 77.992 | O129: =InpOverride!O$56 -> 77.099 | P129: =InpOverride!P$56 -> 0
E130: =InpOverride!E$55 -> Wastewater network company view of capex - for cost sharing model | F130: =InpOverride!F$55 -> 0 | G130: =InpOverride!G$55 -> £m | H130: =InpOverride!H$55 -> 486.854 | I130: =InpOverride!I$55 -> 0 | J130: =InpOverride!J$55 -> 0 | K130: =InpOverride!K$55 -> 111.445 | L130: =InpOverride!L$55 -> 108.18 | M130: =InpOverride!M$55 -> 92.908 | N130: =InpOverride!N$55 -> 93.127 | O130: =InpOverride!O$55 -> 81.194 | P130: =InpOverride!P$55 -> 0
E131: [Company outturn totex of - Wastewater Network] | F131: =SUM(H129:H130) -> 882.097 | G131: £m
D133: Ex-ante allowance
E134: =E$123 -> Wastewater Network - Total Expenditure | F134: =F$123 -> 882.097 | G134: =G$123 -> £m
E135: =E$127 -> Wastewater Network - Ofwat Baseline Total Gross Totex - Real | F135: =F$127 -> 828.7174027 | G135: =G$127 -> £m
E136: Ratio company's forecast: Ofwat baseline | F136: =IF(F135=0, 0, (F134/F135)) -> 1.064412304 | G136: %
E137: ='Dashboard Calcs'!E$262 -> Outperformance cost sharing rate | F137: ='Dashboard Calcs'!F$262 -> 0.5 | G137: ='Dashboard Calcs'!G$262 -> %
E138: ='Dashboard Calcs'!E$282 -> Example underperformance summary sharing rates | F138: ='Dashboard Calcs'!F$282 -> 0.5 | G138: ='Dashboard Calcs'!G$282 -> %
E139: =E$131 -> [Company outturn totex of - Wastewater Network] | F139: =F$131 -> 882.097 | G139: =G$131 -> £m
E140: Incentive payment (+) or penalty (-) - Wastewater Network | F140: =IF(( F139 < F135), F137, F138) * (F135 - F139) -> -26.68979864 | G140: £m
E141: Ex-ante allowance above Ofwat forecast - Wastewater Network | F141: =F134+F140-F135 -> 26.68979864 | G141: £m
D143: Ex-ante allowance - significant scrutiny
E144: =E$123 -> Wastewater Network - Total Expenditure | F144: =F$123 -> 882.097 | G144: =G$123 -> £m
E145: =E$127 -> Wastewater Network - Ofwat Baseline Total Gross Totex - Real | F145: =F$127 -> 828.7174027 | G145: =G$127 -> £m
E146: Ratio company's forecast: Ofwat baseline | F146: =(F144/F145) -> 1.064412304 | G146: %
E147: =InpOverride!E$196 -> Cost sharing rate | F147: =InpOverride!F$196 -> 0.25 | G147: =InpOverride!G$196 -> %
E148: =InpOverride!E$199 -> Cost Sharing rate | F148: =InpOverride!F$199 -> 0.75 | G148: =InpOverride!G$199 -> %
E149: =E$131 -> [Company outturn totex of - Wastewater Network] | F149: =F$131 -> 882.097 | G149: =G$131 -> £m
E150: Incentive payment (+) or penalty (-) - significant scrutiny - Wastewater Network | F150: =IF(( F149 < F145), F147, F148) * (F145 - F149) -> -40.03469796 | G150: £m
E151: Ex-ante allowance above Ofwat forecast - significant scrutiny - Wastewater Network | F151: =F144+F150-F145 -> 13.34489932 | G151: £m
E153: =InpOverride!E$144 -> Company IAP classification | F153: =InpOverride!F$144 -> Not Significant Scrutiny | G153: =InpOverride!G$144 -> text
E154: =E$141 -> Ex-ante allowance above Ofwat forecast - Wastewater Network | F154: =F$141 -> 26.68979864 | G154: =G$141 -> £m
E155: =E$151 -> Ex-ante allowance above Ofwat forecast - significant scrutiny - Wastewater Network | F155: =F$151 -> 13.34489932 | G155: £m
E156: Ex-ante allowance above Ofwat forecast- Wastewater Network | F156: =IF(F153 = "Not Significant Scrutiny",F154, F155) -> 26.68979864 | G156: £m
E158: =InpOverride!E$90 -> Cost allowance override switch - Waste | F158: =InpOverride!F$90 -> 3 | G158: =InpOverride!G$90 -> 1 = model calculated, 2 = Override, 3 = Off
E159: =E$156 -> Ex-ante allowance above Ofwat forecast- Wastewater Network | F159: =F$156 -> 26.68979864 | G159: £m
E160: Ex-ante allowance above Ofwat forecast- Wastewater Network - Active | F160: =IF(F158 = 3, 0, F159) -> 0 | G160: £m
D162: Total Cost allowance
E163: =E$127 -> Wastewater Network - Ofwat Baseline Total Gross Totex - Real | F163: =F$127 -> 828.7174027 | G163: =G$127 -> £m
E164: =E$156 -> Ex-ante allowance above Ofwat forecast- Wastewater Network | F164: =F$156 -> 26.68979864 | G164: £m
E165: Wastewater Network - total cost allowance including ex-ante cost sharing | F165: =F163 + F164 -> 855.4072014 | G165: £m
E167: =InpOverride!E$90 -> Cost allowance override switch - Waste | F167: =InpOverride!F$90 -> 3 | G167: =InpOverride!G$90 -> 1 = model calculated, 2 = Override, 3 = Off
E168: =E$165 -> Wastewater Network - total cost allowance including ex-ante cost sharing | F168: =F$165 -> 855.4072014 | G168: £m
E169: =InpOverride!E$92 -> Wastewater network - total cost allowance including ex-ante cost sharing - Override | F169: =InpOverride!F$92 -> 0 | G169: =InpOverride!G$92 -> £m
E170: =E$127 -> Wastewater Network - Ofwat Baseline Total Gross Totex - Real | F170: =F$127 -> 828.7174027 | G170: =G$127 -> £m
E171: Wastewater Network - total cost allowance including ex-ante cost sharing - active | F171: =CHOOSE($F$167,F168,F169,F170) -> 828.7174027 | G171: £m
A173: END OF SHEET

Sheet Cost profiling
A1: =RIGHT(CELL("filename", $A$1), LEN(CELL("filename", $A$1)) - SEARCH("]", CELL("filename", $A$1))) -> Cost profiling
E2: =Time!E$22 -> Model Period BEG | J2: =Time!J$22 -> 2019-04-01 | K2: =Time!K$22 -> 2020-04-01 | L2: =Time!L$22 -> 2021-04-01 | M2: =Time!M$22 -> 2022-04-01 | N2: =Time!N$22 -> 2023-04-01 | O2: =Time!O$22 -> 2024-04-01 | P2: =Time!P$22 -> 2025-04-01
E3: =Time!E$23 -> Model Period END | F3: =Check!F$8 -> 0 | G3: Error chks | J3: =Time!J$23 -> 2020-03-31 | K3: =Time!K$23 -> 2021-03-31 | L3: =Time!L$23 -> 2022-03-31 | M3: =Time!M$23 -> 2023-03-31 | N3: =Time!N$23 -> 2024-03-31 | O3: =Time!O$23 -> 2025-03-31 | P3: =Time!P$23 -> 2026-03-31
E4: =Time!E$59 -> Pre Forecast vs Forecast | F4: =Check!$F$20 -> 36 | G4: Track checks | J4: =Time!J$59 -> Pre Fcst | K4: =Time!K$59 -> Forecast | L4: =Time!L$59 -> Forecast | M4: =Time!M$59 -> Forecast | N4: =Time!N$59 -> Forecast | O4: =Time!O$59 -> Forecast | P4: =Time!P$59 -> Post-Fcst
E5: =Time!E$101 -> Financial Year Ending | J5: =Time!J$101 -> 2020 | K5: =Time!K$101 -> 2021 | L5: =Time!L$101 -> 2022 | M5: =Time!M$101 -> 2023 | N5: =Time!N$101 -> 2024 | O5: =Time!O$101 -> 2025 | P5: =Time!P$101 -> 2026
E6: =Time!E$11 -> Model column counter | F6: Constant | G6: Unit | H6: Total | J6: =Time!J$11 -> 1 | K6: =Time!K$11 -> 2 | L6: =Time!L$11 -> 3 | M6: =Time!M$11 -> 4 | N6: =Time!N$11 -> 5 | O6: =Time!O$11 -> 6 | P6: =Time!P$11 -> 7
A8: FIVE YEAR PROFILING
B10: Water resources
E11: =InpOverride!E$121 -> Allowed capex and opex override switch - WR | F11: =InpOverride!F$121 -> 1 | G11: =InpOverride!G$121 -> 2 = Override, 1 = Calculated in opex/capex model
E12: =InpOverride!E$100 -> Capex profile - WR | F12: =InpOverride!F$100 -> 0 | G12: =InpOverride!G$100 -> % | H12: =InpOverride!H$100 -> 0.2621218163 | I12: =InpOverride!I$100 -> 0 | J12: =InpOverride!J$100 -> 0 | K12: =InpOverride!K$100 -> 0.06020690009 | L12: =InpOverride!L$100 -> 0.06760834879 | M12: =InpOverride!M$100 -> 0.05608806687 | N12: =InpOverride!N$100 -> 0.04309109018 | O12: =InpOverride!O$100 -> 0.03512741034 | P12: =InpOverride!P$100 -> 0
E13: =InpOverride!E$101 -> Opex profile - WR | F13: =InpOverride!F$101 -> 0 | G13: =InpOverride!G$101 -> % | H13: =InpOverride!H$101 -> 0.7378781837 | I13: =InpOverride!I$101 -> 0 | J13: =InpOverride!J$101 -> 0 | K13: =InpOverride!K$101 -> 0.1465055326 | L13: =InpOverride!L$101 -> 0.1473269078 | M13: =InpOverride!M$101 -> 0.1475512384 | N13: =InpOverride!N$101 -> 0.1479635403 | O13: =InpOverride!O$101 -> 0.1485309646 | P13: =InpOverride!P$101 -> 0
E15: =InpOverride!E$122 -> Override capex - water resources | F15: =InpOverride!F$122 -> 0 | G15: =InpOverride!G$122 -> £m | H15: =InpOverride!H$122 -> 0 | I15: =InpOverride!I$122 -> 0 | J15: =InpOverride!J$122 -> 0 | K15: =InpOverride!K$122 -> 0 | L15: =InpOverride!L$122 -> 0 | M15: =InpOverride!M$122 -> 0 | N15: =InpOverride!N$122 -> 0 | O15: =InpOverride!O$122 -> 0 | P15: =InpOverride!P$122 -> 0
E16: =InpOverride!E$123 -> Override opex - water resources | F16: =InpOverride!F$123 -> 0 | G16: =InpOverride!G$123 -> £m | H16: =InpOverride!H$123 -> 0 | I16: =InpOverride!I$123 -> 0 | J16: =InpOverride!J$123 -> 0 | K16: =InpOverride!K$123 -> 0 | L16: =InpOverride!L$123 -> 0 | M16: =InpOverride!M$123 -> 0 | N16: =InpOverride!N$123 -> 0 | O16: =InpOverride!O$123 -> 0 | P16: =InpOverride!P$123 -> 0
E18: Water resources - Capex - Active | G18: £m | H18: =SUM(J18:P18) -> 0.2621218163 | J18: =CHOOSE($F$11,J12,J15) -> 0 | K18: =CHOOSE($F$11,K12,K15) -> 0.06020690009 | L18: =CHOOSE($F$11,L12,L15) -> 0.06760834879 | M18: =CHOOSE($F$11,M12,M15) -> 0.05608806687 | N18: 0.04309109018 | O18: 0.03512741034 | P18: 0
E19: Water resources - Opex - Active | G19: £m | H19: =SUM(J19:P19) -> 0.7378781837 | J19: =CHOOSE($F$11,J13,J16) -> 0 | K19: 0.1465055326 | L19: 0.1473269078 | M19: 0.1475512384 | N19: 0.1479635403 | O19: 0.1485309646 | P19: 0
E21: =InpOverride!E$32 -> WR - Other costs not subject to cost sharing excl PDR | F21: =InpOverride!F$32 -> 0 | G21: =InpOverride!G$32 -> £m | H21: =InpOverride!H$32 -> 0.9825 | I21: =InpOverride!I$32 -> 0 | J21: =InpOverride!J$32 -> 0 | K21: =InpOverride!K$32 -> 0.1965 | L21: =InpOverride!L$32 -> 0.1965 | M21: =InpOverride!M$32 -> 0.1965 | N21: =InpOverride!N$32 -> 0.1965 | O21: =InpOverride!O$32 -> 0.1965 | P21: =InpOverride!P$32 -> 0
E22: Water resources - Other costs not subject to cost sharing excl PDR | F22: =H$21 -> 0.9825 | G22: £m
E23: ='Ex-ante allowances'!E$61 -> Water resources - total cost allowance including ex-ante cost sharing - active | F23: ='Ex-ante allowances'!F$61 -> 73.95245022 | G23: ='Ex-ante allowances'!G$61 -> £m
E24: Water resources - total cost allowance including ex-ante cost sharing and third party costs | F24: =SUM(F22:F23) -> 74.93495022 | G24: £m
E26: =E$24 -> Water resources - total cost allowance including ex-ante cost sharing and third party costs | F26: =F$24 -> 74.93495022 | G26: £m
E27: =E$18 -> Water resources - Capex - Active | F27: 0 | G27: £m | H27: 0.2621218163 | I27: 0 | J27: 0 | K27: =K$18 -> 0.06020690009 | L27: =L$18 -> 0.06760834879 | M27: 0.05608806687 | N27: 0.04309109018 | O27: 0.03512741034 | P27: 0
E28: =E$19 -> Water resources - Opex - Active | F28: =F$19 -> 0 | G28: £m | H28: 0.7378781837 | I28: 0 | J28: 0 | K28: 0.1465055326 | L28: 0.1473269078 | M28: 0.1475512384 | N28: 0.1479635403 | O28: 0.1485309646 | P28: 0
E29: =Time!E$54 -> Forecast Period Flag | F29: =Time!F$54 -> 0 | G29: =Time!G$54 -> flag | H29: =Time!H$54 -> 5 | I29: =Time!I$54 -> 0 | J29: =Time!J$54 -> 0 | K29: =Time!K$54 -> 1 | L29: =Time!L$54 -> 1 | M29: =Time!M$54 -> 1 | N29: =Time!N$54 -> 1 | O29: =Time!O$54 -> 1 | P29: =Time!P$54 -> 0
E30: Water resources - profiled total capex | G30: £m | H30: =SUM(J30:P30) -> 19.64208525 | J30: =($F$26 * J27 / SUM($K$27:$O$28)) * J$29 -> 0 | K30: =($F$26 * K27 / SUM($K$27:$O$28)) * K$29 -> 4.511601061 | L30: =($F$26 * L27 / SUM($K$27:$O$28)) * L$29 -> 5.066228251 | M30: 4.202956499 | N30: 3.229028698 | O30: 2.632270745 | P30: 0
E31: Water resources - profiled total opex | G31: £m | H31: 55.29286497 | J31: =($F$26 * J28 / SUM($K$27:$O$28)) * J$29 -> 0 | K31: =($F$26 * K28 / SUM($K$27:$O$28)) * K$29 -> 10.97838479 | L31: 11.0399345 | M31: 11.0567447 | N31: 11.08764053 | O31: 11.13016044 | P31: 0
E33: =E$30 -> Water resources - profiled total capex | F33: 0 | G33: £m | H33: 19.64208525 | I33: 0 | J33: 0 | K33: 4.511601061 | L33: 5.066228251 | M33: 4.202956499 | N33: 3.229028698 | O33: 2.632270745 | P33: 0
E34: =E$31 -> Water resources - profiled total opex | F34: =F$31 -> 0 | G34: £m | H34: 55.29286497 | I34: 0 | J34: 0 | K34: 10.97838479 | L34: 11.0399345 | M34: 11.0567447 | N34: 11.08764053 | O34: 11.13016044 | P34: 0
E35: Water resources - profiled total expenditure | G35: £m | H35: =SUM(J35:P35) -> 74.93495022 | J35: =SUM(J33:J34) -> 0 | K35: =SUM(K33:K34) -> 15.48998585 | L35: 16.10616276 | M35: 15.2597012 | N35: 14.31666922 | O35: 13.76243119 | P35: 0
E36: Water resources - profiled total expenditure including ex-ante cost sharing | F36: =SUM(K30:O31) -> 74.93495022 | G36: £m
E38: =E$24 -> Water resources - total cost allowance including ex-ante cost sharing and third party costs | F38: =F$24 -> 74.93495022 | G38: =G$24 -> £m
E39: =E$36 -> Water resources - profiled total expenditure including ex-ante cost sharing | F39: =F$36 -> 74.93495022 | G39: £m
E40: Water resources - profiled total expenditure check | F40: =IF(ABS(F38-F39) > ChK_Tol, 1, 0) -> 0 | G40: check
B42: Water Network
E43: =InpOverride!E$125 -> Allowed capex and opex override switch - WN | F43: =InpOverride!F$125 -> 1 | G43: =InpOverride!G$125 -> 2 = Override, 1 = Calculated in opex/capex model
E44: =InpOverride!E$104 -> Capex profile - WN | F44: =InpOverride!F$104 -> 0 | G44: =InpOverride!G$104 -> % | H44: =InpOverride!H$104 -> 0.4928013371 | I44: =InpOverride!I$104 -> 0 | J44: =InpOverride!J$104 -> 0 | K44: =InpOverride!K$104 -> 0.07890622131 | L44: =InpOverride!L$104 -> 0.09444605204 | M44: =InpOverride!M$104 -> 0.1133272399 | N44: =InpOverride!N$104 -> 0.1055474301 | O44: =InpOverride!O$104 -> 0.1005743937 | P44: =InpOverride!P$104 -> 0
E45: =InpOverride!E$105 -> Opex profile - WN | F45: =InpOverride!F$105 -> 0 | G45: =InpOverride!G$105 -> % | H45: =InpOverride!H$105 -> 0.5071986629 | I45: =InpOverride!I$105 -> 0 | J45: =InpOverride!J$105 -> 0 | K45: =InpOverride!K$105 -> 0.1023604171 | L45: =InpOverride!L$105 -> 0.1025220505 | M45: =InpOverride!M$105 -> 0.101673549 | N45: =InpOverride!N$105 -> 0.1005670315 | O45: =InpOverride!O$105 -> 0.1000756148 | P45: =InpOverride!P$105 -> 0
E47: =InpOverride!E$126 -> Override capex - water network | F47: =InpOverride!F$126 -> 0 | G47: =InpOverride!G$126 -> £m | H47: =InpOverride!H$126 -> 0 | I47: =InpOverride!I$126 -> 0 | J47: =InpOverride!J$126 -> 0 | K47: =InpOverride!K$126 -> 0 | L47: =InpOverride!L$126 -> 0 | M47: =InpOverride!M$126 -> 0 | N47: =InpOverride!N$126 -> 0 | O47: =InpOverride!O$126 -> 0 | P47: =InpOverride!P$126 -> 0
E48: =InpOverride!E$127 -> Override opex - water network | F48: =InpOverride!F$127 -> 0 | G48: =InpOverride!G$127 -> £m | H48: =InpOverride!H$127 -> 0 | I48: =InpOverride!I$127 -> 0 | J48: =InpOverride!J$127 -> 0 | K48: =InpOverride!K$127 -> 0 | L48: =InpOverride!L$127 -> 0 | M48: =InpOverride!M$127 -> 0 | N48: =InpOverride!N$127 -> 0 | O48: =InpOverride!O$127 -> 0 | P48: =InpOverride!P$127 -> 0
E50: Water network - Capex - Active | G50: £m | H50: =SUM(J50:P50) -> 0.4928013371 | J50: =CHOOSE($F$43,J44,J47) -> 0 | K50: =CHOOSE($F$43,K44,K47) -> 0.07890622131 | L50: 0.09444605204 | M50: 0.1133272399 | N50: 0.1055474301 | O50: 0.1005743937 | P50: 0
E51: Water network - Opex - Active | G51: £m | H51: =SUM(J51:P51) -> 0.5071986629 | J51: =CHOOSE($F$43,J45,J48) -> 0 | K51: 0.1023604171 | L51: 0.1025220505 | M51: 0.101673549 | N51: 0.1005670315 | O51: 0.1000756148 | P51: 0
E53: =InpOverride!E$41 -> WN - Other costs not subject to cost sharing excl PDR | F53: =InpOverride!F$41 -> 0 | G53: =InpOverride!G$41 -> £m | H53: =InpOverride!H$41 -> 8.063889828 | I53: =InpOverride!I$41 -> 0 | J53: =InpOverride!J$41 -> 0 | K53: =InpOverride!K$41 -> 1.612777966 | L53: =InpOverride!L$41 -> 1.612777966 | M53: =InpOverride!M$41 -> 1.612777966 | N53: =InpOverride!N$41 -> 1.612777966 | O53: =InpOverride!O$41 -> 1.612777966 | P53: =InpOverride!P$41 -> 0
E54: Water network - Other costs not subject to cost sharing excl PDR | F54: =H$53 -> 8.063889828 | G54: £m
E55: ='Ex-ante allowances'!E$118 -> Water network - total cost allowance including ex-ante cost sharing - active | F55: ='Ex-ante allowances'!F$118 -> 850.890371 | G55: ='Ex-ante allowances'!G$118 -> £m
E56: Water network - total cost allowance including ex-ante cost sharing and third party costs | F56: =SUM(F54:F55) -> 858.9542609 | G56: £m
E58: =E$56 -> Water network - total cost allowance including ex-ante cost sharing and third party costs | F58: =F$56 -> 858.9542609 | G58: £m
E59: =E$50 -> Water network - Capex - Active | F59: =F$50 -> 0 | G59: £m | H59: 0.4928013371 | I59: 0 | J59: 0 | K59: =K$50 -> 0.07890622131 | L59: =L$50 -> 0.09444605204 | M59: 0.1133272399 | N59: 0.1055474301 | O59: 0.1005743937 | P59: 0
E60: =E$51 -> Water network - Opex - Active | F60: =F$51 -> 0 | G60: £m | H60: 0.5071986629 | I60: 0 | J60: 0 | K60: 0.1023604171 | L60: 0.1025220505 | M60: 0.101673549 | N60: 0.1005670315 | O60: 0.1000756148 | P60: 0
E61: =Time!E$54 -> Forecast Period Flag | F61: =Time!F$54 -> 0 | G61: =Time!G$54 -> flag | H61: =Time!H$54 -> 5 | I61: =Time!I$54 -> 0 | J61: =Time!J$54 -> 0 | K61: =Time!K$54 -> 1 | L61: =Time!L$54 -> 1 | M61: =Time!M$54 -> 1 | N61: =Time!N$54 -> 1 | O61: =Time!O$54 -> 1 | P61: =Time!P$54 -> 0
E62: Water network - profiled total capex | G62: £m | H62: =SUM(J62:P62) -> 423.2938082 | J62: =($F58 * J59 / SUM($K$59:$O$60)) * J$61 -> 0 | K62: =($F58 * K59 / SUM($K$59:$O$60)) * K$61 -> 67.77683501 | L62: 81.12483882 | M62: 97.34291559 | N62: 90.66041484 | O62: 86.38880397 | P62: 0
E63: Water network - profiled total opex | G63: £m | H63: 435.6604526 | J63: =($F58 * J60 / SUM($K$59:$O$60)) * J$61 -> 0 | K63: =($F58 * K60 / SUM($K$59:$O$60)) * K$61 -> 87.92291645 | L63: =($F58 * L60 / SUM($K$59:$O$60)) * L$61 -> 88.06175208 | M63: 87.3329281 | N63: 86.38248023 | O63: 85.96037578 | P63: 0
E65: =E$62 -> Water network - profiled total capex | F65: =F$62 -> 0 | G65: £m | H65: 423.2938082 | I65: 0 | J65: 0 | K65: =K$62 -> 67.77683501 | L65: 81.12483882 | M65: 97.34291559 | N65: 90.66041484 | O65: 86.38880397 | P65: 0
E66: =E$63 -> Water network - profiled total opex | F66: =F$63 -> 0 | G66: £m | H66: 435.6604526 | I66: 0 | J66: 0 | K66: 87.92291645 | L66: 88.06175208 | M66: 87.3329281 | N66: 86.38248023 | O66: 85.96037578 | P66: 0
E67: Water network - profiled total expenditure | G67: £m | H67: =SUM(J67:P67) -> 858.9542609 | J67: =SUM(J65:J66) -> 0 | K67: =SUM(K65:K66) -> 155.6997515 | L67: =SUM(L65:L66) -> 169.1865909 | M67: =SUM(M65:M66) -> 184.6758437 | N67: =SUM(N65:N66) -> 177.0428951 | O67: =SUM(O65:O66) -> 172.3491798 | P67: =SUM(P65:P66) -> 0
E68: Water network - profiled total expenditure including ex-ante cost sharing | F68: =H67 -> 858.9542609 | G68: £m
E70: =E$56 -> Water network - total cost allowance including ex-ante cost sharing and third party costs | F70: =F$56 -> 858.9542609 | G70: £m
E71: =E$68 -> Water network - profiled total expenditure including ex-ante cost sharing | F71: =F$68 -> 858.9542609 | G71: £m
E72: Water network - profiled total expenditure check | F72: =IF(ABS(F70-F71) > ChK_Tol, 1, 0) -> 0 | G72: check
B74: Wastewater Network
E75: =InpOverride!E$129 -> Allowed capex and opex override switch - WWN | F75: =InpOverride!F$129 -> 1 | G75: =InpOverride!G$129 -> 2 = Override, 1 = Calculated in opex/capex model
E76: =InpOverride!E$108 -> Capex profile - WWN | F76: =InpOverride!F$108 -> 0 | G76: =InpOverride!G$108 -> % | H76: =InpOverride!H$108 -> 0.5377583006 | I76: =InpOverride!I$108 -> 0 | J76: =InpOverride!J$108 -> 0 | K76: =InpOverride!K$108 -> 0.122189893 | L76: =InpOverride!L$108 -> 0.1190193078 | M76: =InpOverride!M$108 -> 0.102488078 | N76: =InpOverride!N$108 -> 0.1030629666 | O76: =InpOverride!O$108 -> 0.0909980551 | P76: =InpOverride!P$108 -> 0
E77: =InpOverride!E$109 -> Opex profile - WNN | F77: =InpOverride!F$109 -> 0 | G77: =InpOverride!G$109 -> % | H77: =InpOverride!H$109 -> 0.4622416994 | I77: =InpOverride!I$109 -> 0 | J77: =InpOverride!J$109 -> 0 | K77: =InpOverride!K$109 -> 0.0941106126 | L77: =InpOverride!L$109 -> 0.09369806934 | M77: =InpOverride!M$109 -> 0.09301876501 | N77: =InpOverride!N$109 -> 0.09122397817 | O77: =InpOverride!O$109 -> 0.0901902743 | P77: =InpOverride!P$109 -> 0
E79: =InpOverride!E$130 -> Override capex - Wastewater network | F79: =InpOverride!F$130 -> 0 | G79: =InpOverride!G$130 -> £m | H79: =InpOverride!H$130 -> 0 | I79: =InpOverride!I$130 -> 0 | J79: =InpOverride!J$130 -> 0 | K79: =InpOverride!K$130 -> 0 | L79: =InpOverride!L$130 -> 0 | M79: =InpOverride!M$130 -> 0 | N79: =InpOverride!N$130 -> 0 | O79: =InpOverride!O$130 -> 0 | P79: =InpOverride!P$130 -> 0
E80: =InpOverride!E$131 -> Override opex - Wastewater network | F80: =InpOverride!F$131 -> 0 | G80: =InpOverride!G$131 -> £m | H80: =InpOverride!H$131 -> 0 | I80: =InpOverride!I$131 -> 0 | J80: =InpOverride!J$131 -> 0 | K80: =InpOverride!K$131 -> 0 | L80: =InpOverride!L$131 -> 0 | M80: =InpOverride!M$131 -> 0 | N80: =InpOverride!N$131 -> 0 | O80: =InpOverride!O$131 -> 0 | P80: =InpOverride!P$131 -> 0
E82: Wastewater network - Capex - Active | G82: £m | H82: =SUM(J82:P82) -> 0.5377583006 | J82: =CHOOSE($F$75,J76,J79) -> 0 | K82: =CHOOSE($F$75,K76,K79) -> 0.122189893 | L82: 0.1190193078 | M82: 0.102488078 | N82: 0.1030629666 | O82: 0.0909980551 | P82: 0
E83: Wastewater network - Opex - Active | G83: £m | H83: =SUM(J83:P83) -> 0.4622416994 | J83: =CHOOSE($F$75,J77,J80) -> 0 | K83: 0.0941106126 | L83: 0.09369806934 | M83: 0.09301876501 | N83: 0.09122397817 | O83: 0.0901902743 | P83: 0
E85: =InpOverride!E57 -> WWN - Other costs not subject to cost sharing excl PDR | F85: =InpOverride!F57 -> 0 | G85: =InpOverride!G57 -> £m | H85: =InpOverride!H57 -> 7.779249234 | I85: =InpOverride!I57 -> 0 | J85: =InpOverride!J57 -> 0 | K85: =InpOverride!K57 -> 1.555849847 | L85: =InpOverride!L57 -> 1.555849847 | M85: =InpOverride!M57 -> 1.555849847 | N85: =InpOverride!N57 -> 1.555849847 | O85: =InpOverride!O57 -> 1.555849847 | P85: =InpOverride!P57 -> 0
E86: Water network - Other costs not subject to cost sharing excl PDR | F86: =H$85 -> 7.779249234 | G86: £m
E87: ='Ex-ante allowances'!E$171 -> Wastewater Network - total cost allowance including ex-ante cost sharing - active | F87: ='Ex-ante allowances'!F$171 -> 828.7174027 | G87: ='Ex-ante allowances'!G$171 -> £m
E88: Wastewater network - total cost allowance including ex-ante cost sharing and third party costs | F88: =SUM(F86:F87) -> 836.4966519 | G88: £m
E90: =E$88 -> Wastewater network - total cost allowance including ex-ante cost sharing and third party costs | F90: =F$88 -> 836.4966519 | G90: =G$88 -> £m
E91: =E$82 -> Wastewater network - Capex - Active | F91: =F$82 -> 0 | G91: £m | H91: 0.5377583006 | I91: 0 | J91: 0 | K91: 0.122189893 | L91: 0.1190193078 | M91: 0.102488078 | N91: 0.1030629666 | O91: 0.0909980551 | P91: 0
E92: =E$83 -> Wastewater network - Opex - Active | F92: =F$83 -> 0 | G92: £m | H92: 0.4622416994 | I92: 0 | J92: 0 | K92: 0.0941106126 | L92: 0.09369806934 | M92: 0.09301876501 | N92: 0.09122397817 | O92: 0.0901902743 | P92: 0
E93: =Time!E$54 -> Forecast Period Flag | F93: =Time!F$54 -> 0 | G93: =Time!G$54 -> flag | H93: =Time!H$54 -> 5 | I93: =Time!I$54 -> 0 | J93: =Time!J$54 -> 0 | K93: =Time!K$54 -> 1 | L93: =Time!L$54 -> 1 | M93: =Time!M$54 -> 1 | N93: =Time!N$54 -> 1 | O93: =Time!O$54 -> 1 | P93: =Time!P$54 -> 0
E94: Wastewater network - profiled total capex | G94: £m | H94: =SUM(J94:P94) -> 449.833018 | J94: =IF($F$90 = 0, 0,($F90 * J91 / SUM($K$91:$O$92)) * J$93) -> 0 | K94: =IF($F$90 = 0, 0,($F90 * K91 / SUM($K$91:$O$92)) * K$93) -> 102.2114364 | L94: =IF($F$90 = 0, 0,($F90 * L91 / SUM($K$91:$O$92)) * L$93) -> 99.55925248 | M94: 85.73093415 | N94: 86.21182654 | O94: 76.11956843 | P94: 0
E95: Wastewater network - profiled total opex | G95: £m | H95: =SUM(J95:P95) -> 386.663634 | J95: =IF($F$90 = 0, 0,($F90 * J92 / SUM($K$91:$O$92)) * J$93) -> 0 | K95: =IF($F$90 = 0, 0,($F90 * K92 / SUM($K$91:$O$92)) * K$93) -> 78.72321235 | L95: =IF($F$90 = 0, 0,($F90 * L92 / SUM($K$91:$O$92)) * L$93) -> 78.3781213 | M95: 77.8098855 | N95: 76.30855232 | O95: 75.44386249 | P95: 0
E97: =E$94 -> Wastewater network - profiled total capex | F97: 0 | G97: £m | H97: =H$94 -> 449.833018 | I97: 0 | J97: 0 | K97: =K$94 -> 102.2114364 | L97: =L$94 -> 99.55925248 | M97: 85.73093415 | N97: 86.21182654 | O97: 76.11956843 | P97: 0
E98: =E$95 -> Wastewater network - profiled total opex | F98: 0 | G98: £m | H98: 386.663634 | I98: 0 | J98: 0 | K98: =K$95 -> 78.72321235 | L98: =L$95 -> 78.3781213 | M98: 77.8098855 | N98: 76.30855232 | O98: 75.44386249 | P98: 0
E99: Wastewater network - profiled total expenditure | G99: £m | H99: =SUM(J99:P99) -> 836.4966519 | J99: =SUM(J97:J98) -> 0 | K99: =SUM(K97:K98) -> 180.9346487 | L99: =SUM(L97:L98) -> 177.9373738 | M99: =SUM(M97:M98) -> 163.5408196 | N99: =SUM(N97:N98) -> 162.5203789 | O99: =SUM(O97:O98) -> 151.5634309 | P99: =SUM(P97:P98) -> 0
E100: Wastewater network - profiled total expenditure including ex-ante cost sharing | F100: =H99 -> 836.4966519 | G100: £m
E102: =E$88 -> Wastewater network - total cost allowance including ex-ante cost sharing and third party costs | F102: =F$88 -> 836.4966519 | G102: =G$88 -> £m
E103: =E$100 -> Wastewater network - profiled total expenditure including ex-ante cost sharing | F103: =F$100 -> 836.4966519 | G103: =G$100 -> £m
E104: Wastewater network - profiled total expenditure check | F104: =IF(ABS(F102-F103) > ChK_Tol, 1, 0) -> 0 | G104: check
B106: Bioresources
E107: =InpOverride!E$133 -> Allowed capex and opex override switch - BIO | F107: =InpOverride!F$133 -> 1 | G107: =InpOverride!G$133 -> 2 = Override, 1 = Calculated in opex/capex model
E108: =InpOverride!E$112 -> Capex profile - BR | F108: =InpOverride!F$112 -> 0 | G108: =InpOverride!G$112 -> % | H108: =InpOverride!H$112 -> 0.2486052304 | I108: =InpOverride!I$112 -> 0 | J108: =InpOverride!J$112 -> 0 | K108: =InpOverride!K$112 -> 0.0480257258 | L108: =InpOverride!L$112 -> 0.04921491495 | M108: =InpOverride!M$112 -> 0.05247415759 | N108: =InpOverride!N$112 -> 0.05083766442 | O108: =InpOverride!O$112 -> 0.04805276763 | P108: =InpOverride!P$112 -> 0
E109: =InpOverride!E$113 -> Opex profile - BR | F109: =InpOverride!F$113 -> 0 | G109: =InpOverride!G$113 -> % | H109: =InpOverride!H$113 -> 0.7513947696 | I109: =InpOverride!I$113 -> 0 | J109: =InpOverride!J$113 -> 0 | K109: =InpOverride!K$113 -> 0.1489578028 | L109: =InpOverride!L$113 -> 0.1505415171 | M109: =InpOverride!M$113 -> 0.1503018761 | N109: =InpOverride!N$113 -> 0.1504581637 | O109: =InpOverride!O$113 -> 0.1511354099 | P109: =InpOverride!P$113 -> 0
E111: =InpOverride!E$134 -> Override capex - Bioresources | F111: =InpOverride!F$134 -> 0 | G111: =InpOverride!G$134 -> £m | H111: =InpOverride!H$134 -> 0 | I111: =InpOverride!I$134 -> 0 | J111: =InpOverride!J$134 -> 0 | K111: =InpOverride!K$134 -> 0 | L111: =InpOverride!L$134 -> 0 | M111: =InpOverride!M$134 -> 0 | N111: =InpOverride!N$134 -> 0 | O111: =InpOverride!O$134 -> 0 | P111: =InpOverride!P$134 -> 0
E112: =InpOverride!E$135 -> Override opex - Bioresources | F112: =InpOverride!F$135 -> 0 | G112: =InpOverride!G$135 -> £m | H112: =InpOverride!H$135 -> 0 | I112: =InpOverride!I$135 -> 0 | J112: =InpOverride!J$135 -> 0 | K112: =InpOverride!K$135 -> 0 | L112: =InpOverride!L$135 -> 0 | M112: =InpOverride!M$135 -> 0 | N112: =InpOverride!N$135 -> 0 | O112: =InpOverride!O$135 -> 0 | P112: =InpOverride!P$135 -> 0
E114: Bioresources - Capex - Active | G114: £m | H114: =SUM(J114:P114) -> 0.2486052304 | J114: =CHOOSE($F$107,J108,J111) -> 0 | K114: =CHOOSE($F$107,K108,K111) -> 0.0480257258 | L114: 0.04921491495 | M114: 0.05247415759 | N114: 0.05083766442 | O114: 0.04805276763 | P114: 0
E115: Bioresources - Opex - Active | G115: £m | H115: =SUM(J115:P115) -> 0.7513947696 | J115: =CHOOSE($F$107,J109,J112) -> 0 | K115: 0.1489578028 | L115: 0.1505415171 | M115: 0.1503018761 | N115: 0.1504581637 | O115: 0.1511354099 | P115: 0
E117: =InpOverride!E$63 -> Efficient totex for cost sharing bioresources £m | F117: =InpOverride!F$63 -> 0 | G117: =InpOverride!G$63 -> £m | H117: =InpOverride!H$63 -> 92.87658869 | I117: =InpOverride!I$63 -> 0 | J117: =InpOverride!J$63 -> 0 | K117: =InpOverride!K$63 -> 18.57531774 | L117: =InpOverride!L$63 -> 18.57531774 | M117: =InpOverride!M$63 -> 18.57531774 | N117: =InpOverride!N$63 -> 18.57531774 | O117: =InpOverride!O$63 -> 18.57531774 | P117: =InpOverride!P$63 -> 0
E118: =InpOverride!E$67 -> BR - Other costs not subject to cost sharing excl PDR | F118: =InpOverride!F$67 -> 0 | G118: =InpOverride!G$67 -> £m | H118: =InpOverride!H$67 -> 0 | I118: =InpOverride!I$67 -> 0 | J118: =InpOverride!J$67 -> 0 | K118: =InpOverride!K$67 -> 0 | L118: =InpOverride!L$67 -> 0 | M118: =InpOverride!M$67 -> 0 | N118: =InpOverride!N$67 -> 0 | O118: =InpOverride!O$67 -> 0 | P118: =InpOverride!P$67 -> 0
E119: Bioresources - Ofwat Baseline Total Gross Totex including third party costs - Real | G119: £m | H119: =SUM(J119:P119) -> 92.87658869 | J119: =SUM(J117:J118) -> 0 | K119: 18.57531774 | L119: 18.57531774 | M119: 18.57531774 | N119: 18.57531774 | O119: 18.57531774 | P119: 0
E121: =E$119 -> Bioresources - Ofwat Baseline Total Gross Totex including third party costs - Real | F121: =F$119 -> 0 | G121: £m | H121: 92.87658869 | I121: 0 | J121: 0 | K121: 18.57531774 | L121: 18.57531774 | M121: 18.57531774 | N121: 18.57531774 | O121: 18.57531774 | P121: 0
E122: =InpOverride!E69 -> BR operating lease adjustment | F122: =InpOverride!F69 -> 0 | G122: =InpOverride!G69 -> £m | H122: =InpOverride!H69 -> 0 | I122: =InpOverride!I69 -> 0 | J122: =InpOverride!J69 -> 0 | K122: =InpOverride!K69 -> 0 | L122: =InpOverride!L69 -> 0 | M122: =InpOverride!M69 -> 0 | N122: =InpOverride!N69 -> 0 | O122: =InpOverride!O69 -> 0 | P122: =InpOverride!P69 -> 0
E123: Bioresources - Ofwat Baseline Total Gross Totex inc 3rd party and operating lease adj- Real | F123: =SUM($H$121:$H$122) -> 92.87658869 | G123: £m
E125: =E$123 -> Bioresources - Ofwat Baseline Total Gross Totex inc 3rd party and operating lease adj- Real | F125: =F$123 -> 92.87658869 | G125: =G$123 -> £m
E126: =E$114 -> Bioresources - Capex - Active | F126: =F$114 -> 0 | G126: £m | H126: 0.2486052304 | I126: 0 | J126: =J$114 -> 0 | K126: =K$114 -> 0.0480257258 | L126: =L$114 -> 0.04921491495 | M126: 0.05247415759 | N126: 0.05083766442 | O126: 0.04805276763 | P126: 0
E127: =E$115 -> Bioresources - Opex - Active | F127: =F$115 -> 0 | G127: £m | H127: 0.7513947696 | I127: 0 | J127: =J$115 -> 0 | K127: =K$115 -> 0.1489578028 | L127: 0.1505415171 | M127: 0.1503018761 | N127: 0.1504581637 | O127: 0.1511354099 | P127: 0
E128: =Time!E$54 -> Forecast Period Flag | F128: =Time!F$54 -> 0 | G128: =Time!G$54 -> flag | H128: =Time!H$54 -> 5 | I128: =Time!I$54 -> 0 | J128: =Time!J$54 -> 0 | K128: =Time!K$54 -> 1 | L128: =Time!L$54 -> 1 | M128: =Time!M$54 -> 1 | N128: =Time!N$54 -> 1 | O128: =Time!O$54 -> 1 | P128: =Time!P$54 -> 0
E129: Bioresources - profiled total capex | G129: £m | H129: =SUM(J129:P129) -> 23.08960573 | J129: =IF($F$125 = 0, 0,($F125 * J126 / SUM($K$126:$O$127)) * J$128) -> 0 | K129: =IF($F$125 = 0, 0,($F125 * K126 / SUM($K$126:$O$127)) * K$128) -> 4.460465582 | L129: =IF($F$125 = 0, 0,($F125 * L126 / SUM($K$126:$O$127)) * L$128) -> 4.570913413 | M129: 4.873620752 | N129: 4.721628848 | O129: 4.462977134 | P129: 0
E130: Bioresources - profiled total opex | G130: £m | H130: 69.78698296 | J130: =IF($F$125 = 0, 0,($F125 * J127 / SUM($K$126:$O$127)) * J$128) -> 0 | K130: =IF($F$125 = 0, 0,($F125 * K127 / SUM($K$126:$O$127)) * K$128) -> 13.83469259 | L130: 13.98178256 | M130: 13.95952553 | N130: 13.97404098 | O130: 14.0369413 | P130: 0
E132: =E$129 -> Bioresources - profiled total capex | F132: 0 | G132: £m | H132: 23.08960573 | I132: 0 | J132: =J$129 -> 0 | K132: 4.460465582 | L132: 4.570913413 | M132: 4.873620752 | N132: 4.721628848 | O132: 4.462977134 | P132: 0
E133: =E$130 -> Bioresources - profiled total opex | F133: 0 | G133: £m | H133: 69.78698296 | I133: 0 | J133: =J$130 -> 0 | K133: =K$130 -> 13.83469259 | L133: 13.98178256 | M133: 13.95952553 | N133: 13.97404098 | O133: 14.0369413 | P133: 0
E134: Bioresources - profiled total expenditure | G134: £m | H134: =SUM(J134:P134) -> 92.87658869 | J134: =SUM(J132:J133) -> 0 | K134: =SUM(K132:K133) -> 18.29515817 | L134: =SUM(L132:L133) -> 18.55269597 | M134: =SUM(M132:M133) -> 18.83314628 | N134: =SUM(N132:N133) -> 18.69566983 | O134: =SUM(O132:O133) -> 18.49991844 | P134: =SUM(P132:P133) -> 0
E135: Bioresources - profiled total expenditure including ex-ante cost sharing | F135: =H134 -> 92.87658869 | G135: £m
E137: =E$123 -> Bioresources - Ofwat Baseline Total Gross Totex inc 3rd party and operating lease adj- Real | F137: =F$123 -> 92.87658869 | G137: =G$123 -> £m
E138: =E$135 -> Bioresources - profiled total expenditure including ex-ante cost sharing | F138: =F$135 -> 92.87658869 | G138: =G$135 -> £m
E139: Bioresources - profiled total expenditure check | F139: =IF(ABS(F137-F138) > ChK_Tol, 1, 0) -> 0 | G139: check
B141: Dummy control
E142: =InpOverride!E$137 -> Allowed capex and opex override switch - DMMY | F142: =InpOverride!F$137 -> 1 | G142: =InpOverride!G$137 -> 2 = Override, 1 = Calculated in opex/capex model
E143: =InpOverride!E116 -> Capex profile - DMMY | F143: =InpOverride!F116 -> 0 | G143: =InpOverride!G116 -> % | H143: =InpOverride!H116 -> 0 | I143: =InpOverride!I116 -> 0 | J143: =InpOverride!J116 -> 0 | K143: =InpOverride!K116 -> 0 | L143: =InpOverride!L116 -> 0 | M143: =InpOverride!M116 -> 0 | N143: =InpOverride!N116 -> 0 | O143: =InpOverride!O116 -> 0 | P143: =InpOverride!P116 -> 0
E144: =InpOverride!E117 -> Opex profile - DMMY | F144: =InpOverride!F117 -> 0 | G144: =InpOverride!G117 -> % | H144: =InpOverride!H117 -> 0 | I144: =InpOverride!I117 -> 0 | J144: =InpOverride!J117 -> 0 | K144: =InpOverride!K117 -> 0 | L144: =InpOverride!L117 -> 0 | M144: =InpOverride!M117 -> 0 | N144: =InpOverride!N117 -> 0 | O144: =InpOverride!O117 -> 0 | P144: =InpOverride!P117 -> 0
E146: =InpOverride!E$138 -> Override capex - Dummy | F146: =InpOverride!F$138 -> 0 | G146: =InpOverride!G$138 -> £m | H146: =InpOverride!H$138 -> 0 | I146: =InpOverride!I$138 -> 0 | J146: =InpOverride!J$138 -> 0 | K146: =InpOverride!K$138 -> 0 | L146: =InpOverride!L$138 -> 0 | M146: =InpOverride!M$138 -> 0 | N146: =InpOverride!N$138 -> 0 | O146: =InpOverride!O$138 -> 0 | P146: =InpOverride!P$138 -> 0
E147: =InpOverride!E$139 -> Override opex - Dummy | F147: =InpOverride!F$139 -> 0 | G147: =InpOverride!G$139 -> £m | H147: =InpOverride!H$139 -> 0 | I147: =InpOverride!I$139 -> 0 | J147: =InpOverride!J$139 -> 0 | K147: =InpOverride!K$139 -> 0 | L147: =InpOverride!L$139 -> 0 | M147: =InpOverride!M$139 -> 0 | N147: =InpOverride!N$139 -> 0 | O147: =InpOverride!O$139 -> 0 | P147: =InpOverride!P$139 -> 0
E149: Dummy - Capex - Active | G149: £m | H149: =SUM(J149:P149) -> 0 | J149: =CHOOSE($F$142,J143,J146) -> 0 | K149: =CHOOSE($F$142,K143,K146) -> 0 | L149: 0 | M149: 0 | N149: 0 | O149: 0 | P149: 0
E150: Dummy - Opex - Active | G150: £m | H150: =SUM(J150:P150) -> 0 | J150: =CHOOSE($F$142,J144,J147) -> 0 | K150: 0 | L150: 0 | M150: 0 | N150: 0 | O150: 0 | P150: 0
E152: =InpOverride!E$73 -> Final cost allowance for cost sharing for WWW Dummy £m | F152: =InpOverride!F$73 -> 0 | G152: =InpOverride!G$73 -> £m | H152: =InpOverride!H$73 -> 0 | I152: =InpOverride!I$73 -> 0 | J152: =InpOverride!J$73 -> 0 | K152: =InpOverride!K$73 -> 0 | L152: =InpOverride!L$73 -> 0 | M152: =InpOverride!M$73 -> 0 | N152: =InpOverride!N$73 -> 0 | O152: =InpOverride!O$73 -> 0 | P152: =InpOverride!P$73 -> 0
E153: =InpOverride!E$77 -> DMMY - Other costs not subject to cost sharing excl PDR | F153: =InpOverride!F$77 -> 0 | G153: =InpOverride!G$77 -> £m | H153: =InpOverride!H$77 -> 0 | I153: =InpOverride!I$77 -> 0 | J153: =InpOverride!J$77 -> 0 | K153: =InpOverride!K$77 -> 0 | L153: =InpOverride!L$77 -> 0 | M153: =InpOverride!M$77 -> 0 | N153: =InpOverride!N$77 -> 0 | O153: =InpOverride!O$77 -> 0 | P153: =InpOverride!P$77 -> 0
E154: Dummy - Ofwat Baseline Total Gross Totex including third party costs - Real | G154: £m | H154: =SUM(J154:P154) -> 0 | J154: =SUM(J152:J153) -> 0 | K154: =SUM(K152:K153) -> 0 | L154: 0 | M154: 0 | N154: 0 | O154: 0 | P154: 0
E156: =E$154 -> Dummy - Ofwat Baseline Total Gross Totex including third party costs - Real | F156: =F$154 -> 0 | G156: £m | H156: 0 | I156: 0 | J156: 0 | K156: 0 | L156: 0 | M156: 0 | N156: 0 | O156: 0 | P156: 0
E157: =InpOverride!E79 -> DMMY operating lease adjustment | F157: =InpOverride!F79 -> 0 | G157: =InpOverride!G79 -> £m | H157: =InpOverride!H79 -> 0 | I157: =InpOverride!I79 -> 0 | J157: =InpOverride!J79 -> 0 | K157: =InpOverride!K79 -> 0 | L157: =InpOverride!L79 -> 0 | M157: =InpOverride!M79 -> 0 | N157: =InpOverride!N79 -> 0 | O157: =InpOverride!O79 -> 0 | P157: =InpOverride!P79 -> 0
E158: Dummy - Ofwat Baseline Total Gross Totex - Real | F158: =SUM($H$156:$H$157) -> 0 | G158: £m
E160: =E$158 -> Dummy - Ofwat Baseline Total Gross Totex - Real | F160: =F$158 -> 0 | G160: =G$158 -> £m
E161: =E$149 -> Dummy - Capex - Active | F161: =F$149 -> 0 | G161: £m | H161: 0 | I161: 0 | J161: 0 | K161: 0 | L161: 0 | M161: 0 | N161: 0 | O161: 0 | P161: 0
E162: =E$150 -> Dummy - Opex - Active | F162: =F$150 -> 0 | G162: £m | H162: 0 | I162: 0 | J162: 0 | K162: 0 | L162: 0 | M162: 0 | N162: 0 | O162: 0 | P162: 0
E163: =Time!E$54 -> Forecast Period Flag | F163: =Time!F$54 -> 0 | G163: =Time!G$54 -> flag | H163: =Time!H$54 -> 5 | I163: =Time!I$54 -> 0 | J163: =Time!J$54 -> 0 | K163: =Time!K$54 -> 1 | L163: =Time!L$54 -> 1 | M163: =Time!M$54 -> 1 | N163: =Time!N$54 -> 1 | O163: =Time!O$54 -> 1 | P163: =Time!P$54 -> 0
E164: Dummy - profiled total capex | G164: £m | H164: =SUM(J164:P164) -> 0 | J164: =IF($F160 = 0, 0,($F160 * J161 / SUM($K$161:$O$162))) *J$163 -> 0 | K164: =IF($F160 = 0, 0,($F160 * K161 / SUM($K$161:$O$162))) *K$163 -> 0 | L164: 0 | M164: 0 | N164: 0 | O164: 0 | P164: 0
E165: Dummy - profiled total opex | G165: £m | H165: 0 | J165: =IF($F$160 = 0, 0,($F160 * J162 / SUM($K$161:$O$162))) *J$163 -> 0 | K165: =IF($F$160 = 0, 0,($F160 * K162 / SUM($K$161:$O$162))) *K$163 -> 0 | L165: 0 | M165: 0 | N165: 0 | O165: 0 | P165: 0
E167: =E$164 -> Dummy - profiled total capex | F167: 0 | G167: £m | H167: 0 | I167: 0 | J167: 0 | K167: =K$164 -> 0 | L167: 0 | M167: 0 | N167: 0 | O167: 0 | P167: 0
E168: =E$165 -> Dummy - profiled total opex | F168: 0 | G168: £m | H168: 0 | I168: 0 | J168: 0 | K168: =K$165 -> 0 | L168: 0 | M168: 0 | N168: 0 | O168: 0 | P168: 0
E169: Dummy - profiled total expenditure | G169: £m | H169: =SUM(J169:P169) -> 0 | J169: =SUM(J167:J168) -> 0 | K169: =SUM(K167:K168) -> 0 | L169: =SUM(L167:L168) -> 0 | M169: 0 | N169: 0 | O169: 0 | P169: 0
E170: Dummy - profiled total expenditure including ex-ante cost sharing | F170: =H169 -> 0 | G170: £m
E172: =E$158 -> Dummy - Ofwat Baseline Total Gross Totex - Real | F172: =F$158 -> 0 | G172: =G$158 -> £m
E173: =E$170 -> Dummy - profiled total expenditure including ex-ante cost sharing | F173: =F$170 -> 0 | G173: =G$170 -> £m
E174: Dummy - profiled total expenditure check | F174: =IF(ABS(F172-F173) > ChK_Tol, 1, 0) -> 0 | G174: check
A176: END OF SHEET

Sheet Outputs-->

Sheet F_Outputs
C1: PR19CostSharOut2
A2: Acronym | B2: Reference | C2: Item description | D2: Unit | E2: Model | F2: 2020-21 | G2: 2021-22 | H2: 2022-23 | I2: 2023-24 | J2: 2024-25 | K2: 2020-25
B4: C_WR_PR19FM008 | C4: Final cost allowance for Water Resources - including cost sharing | D4: £m | E4: Price Review 2019 | F4: ='Cost profiling'!K35 -> 15.48998585 | G4: ='Cost profiling'!L35 -> 16.10616276 | H4: ='Cost profiling'!M35 -> 15.2597012 | I4: ='Cost profiling'!N35 -> 14.31666922 | J4: ='Cost profiling'!O35 -> 13.76243119
B5: C_NPW_PR19FM008 | C5: Final cost allowance for Network Plus Water - including cost sharing | D5: £m | E5: Price Review 2019 | F5: ='Cost profiling'!K67 -> 155.6997515 | G5: ='Cost profiling'!L67 -> 169.1865909 | H5: ='Cost profiling'!M67 -> 184.6758437 | I5: ='Cost profiling'!N67 -> 177.0428951 | J5: ='Cost profiling'!O67 -> 172.3491798
B6: C_WW_PR19FM008 | C6: Final cost allowance for Wholesale Water - including cost sharing | D6: £m | E6: Price Review 2019 | F6: =F5+F4 -> 171.1897373 | G6: =G5+G4 -> 185.2927537 | H6: 199.9355449 | I6: 191.3595643 | J6: 186.1116109
B7: C_WROPEXFM_PR19FM008 | C7: WR - Total gross operational expenditure -real - including cost sharing | D7: £m | E7: Price Review 2019 | F7: ='Cost profiling'!K31 -> 10.97838479 | G7: ='Cost profiling'!L31 -> 11.0399345 | H7: ='Cost profiling'!M31 -> 11.0567447 | I7: ='Cost profiling'!N31 -> 11.08764053 | J7: ='Cost profiling'!O31 -> 11.13016044
B8: C_WRCAPEXFM_PR19FM008 | C8: WR - Total gross capital expenditure - real (including g&c) - including cost sharing | D8: £m | E8: Price Review 2019 | F8: ='Cost profiling'!K30 -> 4.511601061 | G8: ='Cost profiling'!L30 -> 5.066228251 | H8: ='Cost profiling'!M30 -> 4.202956499 | I8: ='Cost profiling'!N30 -> 3.229028698 | J8: ='Cost profiling'!O30 -> 2.632270745
B9: C_WRTOTEXFM_PR19FM008 | C9: WR - Total gross totex - real - including cost sharing | D9: £m | E9: Price Review 2019 | F9: =F8+F7 -> 15.48998585 | G9: =G8+G7 -> 16.10616276 | H9: 15.2597012 | I9: 14.31666922 | J9: 13.76243119
B10: C_WNOPEXFM_PR19FM008 | C10: WN - Total gross operational expenditure -real - including cost sharing | D10: £m | E10: Price Review 2019 | F10: ='Cost profiling'!K63 -> 87.92291645 | G10: ='Cost profiling'!L63 -> 88.06175208 | H10: ='Cost profiling'!M63 -> 87.3329281 | I10: ='Cost profiling'!N63 -> 86.38248023 | J10: ='Cost profiling'!O63 -> 85.96037578
B11: C_WNCAPEXFM_PR19FM008 | C11: WN - Total gross capital expenditure - real - including cost sharing | D11: £m | E11: Price Review 2019 | F11: ='Cost profiling'!K62 -> 67.77683501 | G11: ='Cost profiling'!L62 -> 81.12483882 | H11: ='Cost profiling'!M62 -> 97.34291559 | I11: ='Cost profiling'!N62 -> 90.66041484 | J11: ='Cost profiling'!O62 -> 86.38880397
B12: C_WNTOTEXFM_PR19FM008 | C12: WN - Total gross totex - real (including g&c) - including cost sharing | D12: £m | E12: Price Review 2019 | F12: =F11+F10 -> 155.6997515 | G12: =G11+G10 -> 169.1865909 | H12: 184.6758437 | I12: 177.0428951 | J12: 172.3491798
B13: C_WWN_PR19FM008 | C13: Final cost allowance for Network Plus Wastewater - including cost sharing | D13: £m | E13: Price Review 2019 | F13: ='Cost profiling'!K99 -> 180.9346487 | G13: ='Cost profiling'!L99 -> 177.9373738 | H13: ='Cost profiling'!M99 -> 163.5408196 | I13: ='Cost profiling'!N99 -> 162.5203789 | J13: ='Cost profiling'!O99 -> 151.5634309
B14: C_WWNOPEXFM_PR19FM008 | C14: WWN - Total gross operational expenditure - real - including cost sharing | D14: £m | E14: Price Review 2019 | F14: ='Cost profiling'!K98 -> 78.72321235 | G14: ='Cost profiling'!L98 -> 78.3781213 | H14: ='Cost profiling'!M98 -> 77.8098855 | I14: ='Cost profiling'!N98 -> 76.30855232 | J14: ='Cost profiling'!O98 -> 75.44386249
B15: C_WWNCAPEXFM_PR19FM008 | C15: WWN - Total gross capital expenditure - real - including cost sharing | D15: £m | E15: Price Review 2019 | F15: ='Cost profiling'!K97 -> 102.2114364 | G15: ='Cost profiling'!L97 -> 99.55925248 | H15: ='Cost profiling'!M97 -> 85.73093415 | I15: ='Cost profiling'!N97 -> 86.21182654 | J15: ='Cost profiling'!O97 -> 76.11956843
B16: C_BROPEXFM_PR19FM008 | C16: BIO - Total gross operational expenditure -real | D16: £m | E16: Price Review 2019 | F16: ='Cost profiling'!K130 -> 13.83469259 | G16: ='Cost profiling'!L130 -> 13.98178256 | H16: ='Cost profiling'!M130 -> 13.95952553 | I16: ='Cost profiling'!N130 -> 13.97404098 | J16: ='Cost profiling'!O130 -> 14.0369413
B17: C_BRCAPEXFM_PR19FM008 | C17: BIO - Total gross capital expenditure - real (including g&c) | D17: £m | E17: Price Review 2019 | F17: ='Cost profiling'!K129 -> 4.460465582 | G17: ='Cost profiling'!L129 -> 4.570913413 | H17: ='Cost profiling'!M129 -> 4.873620752 | I17: ='Cost profiling'!N129 -> 4.721628848 | J17: ='Cost profiling'!O129 -> 4.462977134
B18: C_BRTOTEXFM_PR19FM008 | C18: BIO - Total gross totex - real | D18: £m | E18: Price Review 2019 | F18: ='Cost profiling'!K134 -> 18.29515817 | G18: ='Cost profiling'!L134 -> 18.55269597 | H18: ='Cost profiling'!M134 -> 18.83314628 | I18: ='Cost profiling'!N134 -> 18.69566983 | J18: ='Cost profiling'!O134 -> 18.49991844
B19: C_DUMMYOPEXFM_PR19FM008 | C19: Dummy - profiled total opex | D19: £m | E19: Price Review 2019 | F19: ='Cost profiling'!K165 -> 0 | G19: ='Cost profiling'!L165 -> 0 | H19: ='Cost profiling'!M165 -> 0 | I19: ='Cost profiling'!N165 -> 0 | J19: ='Cost profiling'!O165 -> 0
B20: C_DUMMYCAPEXFM_PR19FM008 | C20: Dummy - profiled total capex | D20: £m | E20: Price Review 2019 | F20: ='Cost profiling'!K164 -> 0 | G20: ='Cost profiling'!L164 -> 0 | H20: ='Cost profiling'!M164 -> 0 | I20: ='Cost profiling'!N164 -> 0 | J20: ='Cost profiling'!O164 -> 0
B21: C_DUMMYTOTEXFM_PR19FM008 | C21: Dummy - profiled total expenditure | D21: £m | E21: Price Review 2019 | F21: ='Cost profiling'!K169 -> 0 | G21: ='Cost profiling'!L169 -> 0 | H21: ='Cost profiling'!M169 -> 0 | I21: ='Cost profiling'!N169 -> 0 | J21: ='Cost profiling'!O169 -> 0
B22: C_WR_CS_EXANTE_001 | C22: ='Ex-ante allowances'!$E$46 & " - Water Resources" -> Ex-ante allowance above Ofwat forecast - Water Resources | D22: £m | E22: Price Review 2019 | K22: ='Ex-ante allowances'!$F$50 -> 0
B23: C_WN_CS_EXANTE_001 | C23: ='Ex-ante allowances'!$E$103 -> Ex-ante allowance above Ofwat forecast - Water Network | D23: £m | E23: Price Review 2019 | K23: ='Ex-ante allowances'!$F$107 -> 0
B24: C_WWN_CS_EXANTE_001 | C24: ='Ex-ante allowances'!$E$156 -> Ex-ante allowance above Ofwat forecast- Wastewater Network | D24: £m | E24: Price Review 2019 | K24: ='Ex-ante allowances'!$F$160 -> 0
B25: C_WR_WN_OUTPERFORM_001 | C25: ='Dashboard - WR + WN'!B51 -> Cost sharing rate for outperform | D25: ='Dashboard - WR + WN'!D51 -> % | E25: Price Review 2019 | K25: ='Dashboard - WR + WN'!C51 -> 0.5
B26: C_WR_WN_UNDERPERFORM_001 | C26: ='Dashboard - WR + WN'!B52 -> Cost sharing rate for underperform | D26: ='Dashboard - WR + WN'!D52 -> % | E26: Price Review 2019 | K26: ='Dashboard - WR + WN'!C52 -> 0.5
B27: C_WWN_OUTPERFORM_001 | C27: ='Dashboard - WWN'!B51 -> Cost sharing rate for outperform | D27: % | E27: Price Review 2019 | K27: ='Dashboard - WWN'!C51 -> 0.5
B28: C_WWN_UNDERPERFORM_001 | C28: ='Dashboard - WWN'!B52 -> Cost sharing rate for underperform | D28: % | E28: Price Review 2019 | K28: ='Dashboard - WWN'!C52 -> 0.5
B29: TC_PR19FM008_QA1 | C29: Cost sharing model time stamp | D29: text | E29: Price Review 2019 | F29: =CONCATENATE("[…]", TEXT(NOW(),"dd/mm/yyy hh:mm:ss")) -> […]12/12/2019 15:49:49 | G29: =CONCATENATE("[…]", TEXT(NOW(),"dd/mm/yyy hh:mm:ss")) -> […]12/12/2019 15:49:49 | H29: =CONCATENATE("[…]", TEXT(NOW(),"dd/mm/yyy hh:mm:ss")) -> […]12/12/2019 15:49:49 | I29: […]12/12/2019 15:49:49 | J29: […]12/12/2019 15:49:49
B30: TC_PR19FM008_QA2 | C30: Cost sharing model date stamp | D30: text | E30: Price Review 2019 | F30: =CONCATENATE("[…]", TEXT(NOW(),"dd/mm/yyy hh:mm:ss")) -> […]12/12/2019 15:49:49 | G30: […]12/12/2019 15:49:49 | H30: […]12/12/2019 15:49:49 | I30: […]12/12/2019 15:49:49 | J30: […]12/12/2019 15:49:49

Sheet Integrity checks-->

Sheet Check
A1: =RIGHT(CELL("filename", $A$1), LEN(CELL("filename", $A$1)) - SEARCH("]", CELL("filename", $A$1))) -> Check
E2: =Time!E$22 -> Model Period BEG | J2: =Time!J$22 -> 2019-04-01 | K2: =Time!K$22 -> 2020-04-01 | L2: =Time!L$22 -> 2021-04-01 | M2: =Time!M$22 -> 2022-04-01 | N2: =Time!N$22 -> 2023-04-01 | O2: =Time!O$22 -> 2024-04-01 | P2: =Time!P$22 -> 2025-04-01
E3: =Time!E$23 -> Model Period END | F3: =Check!F$8 -> 0 | G3: Error chks | J3: =Time!J$23 -> 2020-03-31 | K3: =Time!K$23 -> 2021-03-31 | L3: =Time!L$23 -> 2022-03-31 | M3: =Time!M$23 -> 2023-03-31 | N3: =Time!N$23 -> 2024-03-31 | O3: =Time!O$23 -> 2025-03-31 | P3: =Time!P$23 -> 2026-03-31
E4: =Time!E$59 -> Pre Forecast vs Forecast | F4: =Check!$F$20 -> 36 | G4: Track checks | J4: =Time!J$59 -> Pre Fcst | K4: =Time!K$59 -> Forecast | L4: =Time!L$59 -> Forecast | M4: =Time!M$59 -> Forecast | N4: =Time!N$59 -> Forecast | O4: =Time!O$59 -> Forecast | P4: =Time!P$59 -> Post-Fcst
E5: =Time!E$101 -> Financial Year Ending | J5: =Time!J$101 -> 2020 | K5: =Time!K$101 -> 2021 | L5: =Time!L$101 -> 2022 | M5: =Time!M$101 -> 2023 | N5: =Time!N$101 -> 2024 | O5: =Time!O$101 -> 2025 | P5: =Time!P$101 -> 2026
E6: =Time!E$11 -> Model column counter | F6: Constant | G6: Unit | H6: Total | J6: =Time!J$11 -> 1 | K6: =Time!K$11 -> 2 | L6: =Time!L$11 -> 3 | M6: =Time!M$11 -> 4 | N6: =Time!N$11 -> 5 | O6: =Time!O$11 -> 6 | P6: =Time!P$11 -> 7
E8: Total error checks | F8: =SUM(F10:F18) -> 0 | G8: check
A10: [Do not delete]
E12: ='Cost profiling'!E40 -> Water resources - profiled total expenditure check | F12: ='Cost profiling'!F40 -> 0 | G12: ='Cost profiling'!G40 -> check
E13: ='Cost profiling'!E72 -> Water network - profiled total expenditure check | F13: ='Cost profiling'!F72 -> 0 | G13: ='Cost profiling'!G72 -> check
E14: ='Cost profiling'!E104 -> Wastewater network - profiled total expenditure check | F14: ='Cost profiling'!F104 -> 0 | G14: ='Cost profiling'!G104 -> check
E15: ='Cost profiling'!E139 -> Bioresources - profiled total expenditure check | F15: ='Cost profiling'!F139 -> 0 | G15: ='Cost profiling'!G139 -> check
E16: ='Cost profiling'!E174 -> Dummy - profiled total expenditure check | F16: ='Cost profiling'!F174 -> 0 | G16: ='Cost profiling'!G174 -> check
A18: [Do not delete]
E20: Total track changes | F20: =Track!I$2 -> 36 | G20: check
A22: END OF SHEET

Sheet Track
A1: =RIGHT(CELL("filename", $A$1), LEN(CELL("filename", $A$1)) - SEARCH("]", CELL("filename", $A$1))) -> Track | L1: do not del col
F2: =Check!F$8 -> 0 | G2: Error chks | I2: =SUM(I6:I60) -> 36
E3: Store Track | F3: =Check!$F$20 -> 36 | G3: Track checks
F5: Nil inputs | I5: =MATCH($F$5, L5:AE5, 0) -> 2 | M5: Nil inputs
E6: [do not delete row]
A7: INPUTS
I8: =IF(ABS(J8) > Trk_Tol, 1, 0) -> 0 | J8: =F8 - INDEX(L8:BT8, $I$5) -> 0 | K8: =IF(ABS(J8) > Trk_Tol, IF(INDEX(L8:BT8, $I$5) = 0, 0, F8 / INDEX(L8:BT8, $I$5) - 1), 0) -> 0
E9: ='Ex-ante allowances'!E13 -> Water Resources - Total Expenditure | F9: ='Ex-ante allowances'!F13 -> 79.555 | G9: ='Ex-ante allowances'!G13 -> £m | I9: 1 | J9: 79.555 | K9: 0
E10: ='Ex-ante allowances'!E17 -> Water Resources - Ofwat Baseline Total Gross Totex - Real | F10: ='Ex-ante allowances'!F17 -> 73.95245022 | G10: ='Ex-ante allowances'!G17 -> £m | I10: 1 | J10: 73.95245022 | K10: 0
E11: ='Ex-ante allowances'!E21 -> [Company outturn totex - Water Resources] | F11: ='Ex-ante allowances'!F21 -> 79.555 | G11: ='Ex-ante allowances'!G21 -> £m | I11: 1 | J11: 79.555 | K11: 0
E12: ='Ex-ante allowances'!E30 -> Incentive payment (+) or penalty (-) | F12: ='Ex-ante allowances'!F30 -> -2.801274891 | G12: ='Ex-ante allowances'!G30 -> £m | I12: 1 | J12: -2.801274891 | K12: 0
E13: ='Ex-ante allowances'!E31 -> Ex-ante allowance above Ofwat forecast | F13: ='Ex-ante allowances'!F31 -> 2.801274891 | G13: ='Ex-ante allowances'!G31 -> £m | I13: 1 | J13: 2.801274891 | K13: 0
E14: ='Ex-ante allowances'!E40 -> Incentive payment (+) or penalty (-) - significant scrutiny | F14: ='Ex-ante allowances'!F40 -> -4.201912336 | G14: ='Ex-ante allowances'!G40 -> £m | I14: 1 | J14: -4.201912336 | K14: 0
E15: ='Ex-ante allowances'!E41 -> Ex-ante allowance above Ofwat forecast - significant scrutiny | F15: ='Ex-ante allowances'!F41 -> 1.400637445 | G15: ='Ex-ante allowances'!G41 -> £m | I15: 1 | J15: 1.400637445 | K15: 0
E16: ='Ex-ante allowances'!E61 -> Water resources - total cost allowance including ex-ante cost sharing - active | F16: ='Ex-ante allowances'!F61 -> 73.95245022 | G16: ='Ex-ante allowances'!G61 -> £m | I16: 1 | J16: 73.95245022 | K16: 0
E17: ='Cost profiling'!E$30 -> Water resources - profiled total capex | F17: ='Cost profiling'!H$30 -> 19.64208525 | G17: ='Cost profiling'!G$30 -> £m | I17: 1 | J17: 19.64208525 | K17: 0
E18: ='Cost profiling'!E$31 -> Water resources - profiled total opex | F18: ='Cost profiling'!H$31 -> 55.29286497 | G18: ='Cost profiling'!G$31 -> £m | I18: 1 | J18: 55.29286497 | K18: 0
E19: ='Cost profiling'!E$35 -> Water resources - profiled total expenditure | F19: ='Cost profiling'!H$35 -> 74.93495022 | G19: ='Cost profiling'!G$35 -> £m | I19: 1 | J19: 74.93495022 | K19: 0
I20: 0 | J20: 0 | K20: 0
I21: 0 | J21: 0 | K21: 0
E22: ='Ex-ante allowances'!E66 -> Water Network - Total Expenditure | F22: ='Ex-ante allowances'!F66 -> 835.7 | G22: ='Ex-ante allowances'!G66 -> £m | I22: 1 | J22: 835.7 | K22: 0
E23: ='Ex-ante allowances'!E70 -> Water Network - Ofwat Baseline Total Gross Totex - Real | F23: ='Ex-ante allowances'!F70 -> 850.890371 | G23: ='Ex-ante allowances'!G70 -> £m | I23: 1 | J23: 850.890371 | K23: 0
E24: ='Ex-ante allowances'!E74 -> [Company outturn totex - Water Network] | F24: ='Ex-ante allowances'!F74 -> 835.7 | G24: ='Ex-ante allowances'!G74 -> £m | I24: 1 | J24: 835.7 | K24: 0
E25: ='Ex-ante allowances'!E87 -> Incentive payment (+) or penalty (-) - Water Network | F25: ='Ex-ante allowances'!F87 -> 7.595185525 | G25: ='Ex-ante allowances'!G87 -> £m | I25: 1 | J25: 7.595185525 | K25: 0
E26: ='Ex-ante allowances'!E88 -> Ex-ante allowance above Ofwat forecast - Water Network | F26: ='Ex-ante allowances'!F88 -> -7.595185525 | G26: ='Ex-ante allowances'!G88 -> £m | I26: 1 | J26: -7.595185525 | K26: 0
E27: ='Ex-ante allowances'!E97 -> Incentive payment (+) or penalty (-) - significant scrutiny - Water Network | F27: ='Ex-ante allowances'!F97 -> 3.797592762 | G27: ='Ex-ante allowances'!G97 -> £m | I27: 1 | J27: 3.797592762 | K27: 0
E28: ='Ex-ante allowances'!E98 -> Ex-ante allowance above Ofwat forecast - significant scrutiny - Water Network | F28: ='Ex-ante allowances'!F98 -> -11.39277829 | G28: ='Ex-ante allowances'!G98 -> £m | I28: 1 | J28: -11.39277829 | K28: 0
E29: ='Ex-ante allowances'!E118 -> Water network - total cost allowance including ex-ante cost sharing - active | F29: ='Ex-ante allowances'!F118 -> 850.890371 | G29: ='Ex-ante allowances'!G118 -> £m | I29: 1 | J29: 850.890371 | K29: 0
E30: ='Cost profiling'!E$62 -> Water network - profiled total capex | F30: ='Cost profiling'!H$62 -> 423.2938082 | G30: ='Cost profiling'!G$62 -> £m | I30: 1 | J30: 423.2938082 | K30: 0
E31: ='Cost profiling'!E$63 -> Water network - profiled total opex | F31: ='Cost profiling'!H$63 -> 435.6604526 | G31: ='Cost profiling'!G$63 -> £m | I31: 1 | J31: 435.6604526 | K31: 0
E32: ='Cost profiling'!E$67 -> Water network - profiled total expenditure | F32: ='Cost profiling'!H$67 -> 858.9542609 | G32: ='Cost profiling'!G$67 -> £m | I32: 1 | J32: 858.9542609 | K32: 0
I33: 0 | J33: 0 | K33: 0
E34: ='Ex-ante allowances'!E123 -> Wastewater Network - Total Expenditure | F34: ='Ex-ante allowances'!F123 -> 882.097 | G34: ='Ex-ante allowances'!G123 -> £m | I34: 1 | J34: 882.097 | K34: 0
E35: ='Ex-ante allowances'!E127 -> Wastewater Network - Ofwat Baseline Total Gross Totex - Real | F35: ='Ex-ante allowances'!F127 -> 828.7174027 | G35: ='Ex-ante allowances'!G127 -> £m | I35: 1 | J35: 828.7174027 | K35: 0
E36: ='Ex-ante allowances'!E131 -> [Company outturn totex of - Wastewater Network] | F36: ='Ex-ante allowances'!F131 -> 882.097 | G36: ='Ex-ante allowances'!G131 -> £m | I36: 1 | J36: 882.097 | K36: 0
E37: ='Ex-ante allowances'!E140 -> Incentive payment (+) or penalty (-) - Wastewater Network | F37: ='Ex-ante allowances'!F140 -> -26.68979864 | G37: ='Ex-ante allowances'!G140 -> £m | I37: 1 | J37: -26.68979864 | K37: 0
E38: ='Ex-ante allowances'!E141 -> Ex-ante allowance above Ofwat forecast - Wastewater Network | F38: ='Ex-ante allowances'!F141 -> 26.68979864 | G38: ='Ex-ante allowances'!G141 -> £m | I38: 1 | J38: 26.68979864 | K38: 0
E39: ='Ex-ante allowances'!E150 -> Incentive payment (+) or penalty (-) - significant scrutiny - Wastewater Network | F39: ='Ex-ante allowances'!F150 -> -40.03469796 | G39: ='Ex-ante allowances'!G150 -> £m | I39: 1 | J39: -40.03469796 | K39: 0
E40: ='Ex-ante allowances'!E151 -> Ex-ante allowance above Ofwat forecast - significant scrutiny - Wastewater Network | F40: ='Ex-ante allowances'!F151 -> 13.34489932 | G40: ='Ex-ante allowances'!G151 -> £m | I40: 1 | J40: 13.34489932 | K40: 0
E41: ='Ex-ante allowances'!E171 -> Wastewater Network - total cost allowance including ex-ante cost sharing - active | F41: ='Ex-ante allowances'!F171 -> 828.7174027 | G41: ='Ex-ante allowances'!G171 -> £m | I41: 1 | J41: 828.7174027 | K41: 0
E42: ='Cost profiling'!E$94 -> Wastewater network - profiled total capex | F42: ='Cost profiling'!H94 -> 449.833018 | G42: ='Cost profiling'!G94 -> £m | I42: 1 | J42: 449.833018 | K42: 0
E43: ='Cost profiling'!E$95 -> Wastewater network - profiled total opex | F43: ='Cost profiling'!H95 -> 386.663634 | G43: ='Cost profiling'!G95 -> £m | I43: 1 | J43: 386.663634 | K43: 0
E44: ='Cost profiling'!E$99 -> Wastewater network - profiled total expenditure | F44: ='Cost profiling'!H99 -> 836.4966519 | G44: ='Cost profiling'!G99 -> £m | I44: 1 | J44: 836.4966519 | K44: 0
I45: 0 | J45: 0 | K45: 0
E46: ='Cost profiling'!E$129 -> Bioresources - profiled total capex | F46: ='Cost profiling'!H129 -> 23.08960573 | G46: ='Cost profiling'!G129 -> £m | I46: 1 | J46: 23.08960573 | K46: 0
E47: ='Cost profiling'!E$130 -> Bioresources - profiled total opex | F47: ='Cost profiling'!H130 -> 69.78698296 | G47: ='Cost profiling'!G130 -> £m | I47: 1 | J47: 69.78698296 | K47: 0
E48: ='Cost profiling'!E$134 -> Bioresources - profiled total expenditure | F48: ='Cost profiling'!H134 -> 92.87658869 | G48: ='Cost profiling'!G134 -> £m | I48: 1 | J48: 92.87658869 | K48: 0
I49: 0 | J49: 0 | K49: 0
E50: ='Cost profiling'!E$164 -> Dummy - profiled total capex | F50: ='Cost profiling'!H164 -> 0 | G50: ='Cost profiling'!G164 -> £m | I50: 0 | J50: 0 | K50: 0
E51: ='Cost profiling'!E$165 -> Dummy - profiled total opex | F51: ='Cost profiling'!H165 -> 0 | G51: ='Cost profiling'!G165 -> £m | I51: 0 | J51: 0 | K51: 0
E52: ='Cost profiling'!E$169 -> Dummy - profiled total expenditure | F52: ='Cost profiling'!H169 -> 0 | G52: ='Cost profiling'!G169 -> £m | I52: 0 | J52: 0 | K52: 0
I53: 0 | J53: 0 | K53: 0
A54: INFO ONLY
E56: Date | F56: =TODAY() -> 2019-12-12
E57: Time | F57: =NOW() -> 43811.6596
E58: File | F58: =MID(CELL("filename",$A$1), SEARCH("[", CELL("filename",$A$1)) + 1, SEARCH("]", CELL("filename",$A$1)) - SEARCH("[", CELL("filename",$A$1)) - 1) -> PR19FM008 Cost_sharing__total_costs v3d_SWB_FD_signedoff.xlsm
E60: [do not delete row] | I60: range end
E62: Comment: Key input and logic changes | M62: Nil inputs
E63: Comment: Key result changes
A66: End of sheet
